﻿Body Name,Body,Service Area Categorisation,Service Division Categorisation,Responsible Unit,Expenses Type,Detailed Expenses Type,Payment Date,Transaction Number,Payment Amount,Supplier Type,Supplier Name,Supplier Id
Portsmouth City Council,PCC,Other,Suspense and Capital Schemes,Capital - Housing RA,Capital Charges,Capital Expenditure (WIP),16-Mar-22,6560719,"3,568.53",LIMITED COMPANY,A PURKISS BUILDING AND DECORATING LTD,300000020458351
Portsmouth City Council,PCC,Children's and Education Services,Primary Schools,Children's Services and Education,Premises-Related Expenditure,Energy costs,10-Mar-22,6559874,166.28,LIMITED COMPANY,CONTRACT NATURAL GAS LTD,300000020484079
Portsmouth City Council,PCC,Children's and Education Services,Primary Schools,Children's Services and Education,Premises-Related Expenditure,Energy costs,10-Mar-22,6559874,119.48,LIMITED COMPANY,CONTRACT NATURAL GAS LTD,300000020484079
Portsmouth City Council,PCC,Cultural and Related Services,Library Service,"Culture, Leisure & Regulatory Services",Premises-Related Expenditure,Energy costs,10-Mar-22,6559874,105.34,LIMITED COMPANY,CONTRACT NATURAL GAS LTD,300000020484079
Portsmouth City Council,PCC,Children's and Education Services,Family Support Services,Children's Services and Education,Premises-Related Expenditure,Energy costs,10-Mar-22,6559874,132.28,LIMITED COMPANY,CONTRACT NATURAL GAS LTD,300000020484079
Portsmouth City Council,PCC,Housing Revenue Account,Repairs and Maintenance,"Housing, Neighbourhood and Building Services",Premises-Related Expenditure,"Repairs, alterations and maintenance of buildings",25-Mar-22,6562349,"1,400.00",LIMITED COMPANY,A PURKISS BUILDING AND DECORATING LTD,300000020458351
Portsmouth City Council,PCC,Housing Revenue Account,Special Services,"Housing, Neighbourhood and Building Services",Premises-Related Expenditure,Water Services,23-Mar-22,6561718,-98.43,SUPPLIER,ADVANCED DEMAND SIDE MANAGEMENT LIMITED,300000020478882
Portsmouth City Council,PCC,Adult Social Care,Physical Support Older People (85+),Adult Care,Third Party Payments,Other establishments,29-Mar-22,6563091,"1,486.24",SUPPLIER,ABICARE SERVICES LTD,300000020470310
Portsmouth City Council,PCC,Cultural and Related Services,Culture and Heritage,"Culture, Leisure & Regulatory Services",Premises-Related Expenditure,Energy costs,10-Mar-22,6559874,2.48,LIMITED COMPANY,CONTRACT NATURAL GAS LTD,300000020484079
Portsmouth City Council,PCC,Children's and Education Services,Primary Schools,Children's Services and Education,Premises-Related Expenditure,Energy costs,10-Mar-22,6559874,211.66,LIMITED COMPANY,CONTRACT NATURAL GAS LTD,300000020484079
Portsmouth City Council,PCC,Housing Revenue Account,Supervision and Management,"Housing, Neighbourhood and Building Services",Premises-Related Expenditure,Water Services,23-Mar-22,6561718,-113.23,SUPPLIER,ADVANCED DEMAND SIDE MANAGEMENT LIMITED,300000020478882
Portsmouth City Council,PCC,Housing Revenue Account,Special Services,"Housing, Neighbourhood and Building Services",Premises-Related Expenditure,Water Services,23-Mar-22,6561718,"1,057.45",SUPPLIER,ADVANCED DEMAND SIDE MANAGEMENT LIMITED,300000020478882
Portsmouth City Council,PCC,Children's and Education Services,Primary Schools,Children's Services and Education,Premises-Related Expenditure,Energy costs,10-Mar-22,6559874,110.34,LIMITED COMPANY,CONTRACT NATURAL GAS LTD,300000020484079
Portsmouth City Council,PCC,Costs below Net Cost of Services,Trading,Regeneration,Premises-Related Expenditure,Energy costs,10-Mar-22,6559874,40.96,LIMITED COMPANY,CONTRACT NATURAL GAS LTD,300000020484079
Portsmouth City Council,PCC,Housing Revenue Account,Special Services,"Housing, Neighbourhood and Building Services",Premises-Related Expenditure,Water Services,23-Mar-22,6561718,183.69,SUPPLIER,ADVANCED DEMAND SIDE MANAGEMENT LIMITED,300000020478882
Portsmouth City Council,PCC,Children's and Education Services,Family Support Services,Children's Services and Education,Premises-Related Expenditure,Energy costs,10-Mar-22,6559874,175.48,LIMITED COMPANY,CONTRACT NATURAL GAS LTD,300000020484079
Portsmouth City Council,PCC,Children's and Education Services,Primary Schools,Children's Services and Education,Premises-Related Expenditure,Energy costs,10-Mar-22,6559874,175.36,LIMITED COMPANY,CONTRACT NATURAL GAS LTD,300000020484079
Portsmouth City Council,PCC,Children's and Education Services,Primary Schools,Children's Services and Education,Premises-Related Expenditure,Energy costs,10-Mar-22,6559874,22.32,LIMITED COMPANY,CONTRACT NATURAL GAS LTD,300000020484079
Portsmouth City Council,PCC,Children's and Education Services,Primary Schools,Children's Services and Education,Premises-Related Expenditure,Energy costs,10-Mar-22,6559874,126.31,LIMITED COMPANY,CONTRACT NATURAL GAS LTD,300000020484079
Portsmouth City Council,PCC,Children's and Education Services,Primary Schools,Children's Services and Education,Premises-Related Expenditure,Energy costs,10-Mar-22,6559874,106.48,LIMITED COMPANY,CONTRACT NATURAL GAS LTD,300000020484079
Portsmouth City Council,PCC,Children's and Education Services,Primary Schools,Children's Services and Education,Premises-Related Expenditure,Energy costs,10-Mar-22,6559874,9.3,LIMITED COMPANY,CONTRACT NATURAL GAS LTD,300000020484079
Portsmouth City Council,PCC,Children's and Education Services,Primary Schools,Children's Services and Education,Premises-Related Expenditure,Energy costs,10-Mar-22,6559874,21.11,LIMITED COMPANY,CONTRACT NATURAL GAS LTD,300000020484079
Portsmouth City Council,PCC,Children's and Education Services,Secondary Schools,Children's Services and Education,Premises-Related Expenditure,Energy costs,10-Mar-22,6559874,18.48,LIMITED COMPANY,CONTRACT NATURAL GAS LTD,300000020484079
Portsmouth City Council,PCC,Children's and Education Services,Secondary Schools,Children's Services and Education,Premises-Related Expenditure,Energy costs,10-Mar-22,6559874,289.56,LIMITED COMPANY,CONTRACT NATURAL GAS LTD,300000020484079
Portsmouth City Council,PCC,Planning Services,Business support,Regeneration,Premises-Related Expenditure,Energy costs,10-Mar-22,6559874,567.82,LIMITED COMPANY,CONTRACT NATURAL GAS LTD,300000020484079
Portsmouth City Council,PCC,Children's and Education Services,Children Looked After,Children's Services and Education,Premises-Related Expenditure,Energy costs,10-Mar-22,6559874,127.24,LIMITED COMPANY,CONTRACT NATURAL GAS LTD,300000020484079
Portsmouth City Council,PCC,Housing Revenue Account,Special Services,"Housing, Neighbourhood and Building Services",Premises-Related Expenditure,Water Services,23-Mar-22,6561718,185.25,SUPPLIER,ADVANCED DEMAND SIDE MANAGEMENT LIMITED,300000020478882
Portsmouth City Council,PCC,Cultural and Related Services,Library Service,"Culture, Leisure & Regulatory Services",Premises-Related Expenditure,Energy costs,10-Mar-22,6559874,141.67,LIMITED COMPANY,CONTRACT NATURAL GAS LTD,300000020484079
Portsmouth City Council,PCC,Adult Social Care,Physical Support Older People (85+),Adult Care,Third Party Payments,Other establishments,29-Mar-22,6563091,"2,002.56",SUPPLIER,ABICARE SERVICES LTD,300000020470310
Portsmouth City Council,PCC,Housing Revenue Account,Special Services,"Housing, Neighbourhood and Building Services",Premises-Related Expenditure,Water Services,23-Mar-22,6561718,52.49,SUPPLIER,ADVANCED DEMAND SIDE MANAGEMENT LIMITED,300000020478882
Portsmouth City Council,PCC,Housing Revenue Account,Special Services,"Housing, Neighbourhood and Building Services",Premises-Related Expenditure,Water Services,23-Mar-22,6561718,451.34,SUPPLIER,ADVANCED DEMAND SIDE MANAGEMENT LIMITED,300000020478882
Portsmouth City Council,PCC,Housing Revenue Account,Special Services,"Housing, Neighbourhood and Building Services",Premises-Related Expenditure,Water Services,23-Mar-22,6561718,90.63,SUPPLIER,ADVANCED DEMAND SIDE MANAGEMENT LIMITED,300000020478882
Portsmouth City Council,PCC,Housing Revenue Account,Supervision and Management,"Housing, Neighbourhood and Building Services",Premises-Related Expenditure,Water Services,23-Mar-22,6561718,863.63,SUPPLIER,ADVANCED DEMAND SIDE MANAGEMENT LIMITED,300000020478882
Portsmouth City Council,PCC,Housing Revenue Account,Supervision and Management,"Housing, Neighbourhood and Building Services",Premises-Related Expenditure,Water Services,23-Mar-22,6561718,441.68,SUPPLIER,ADVANCED DEMAND SIDE MANAGEMENT LIMITED,300000020478882
Portsmouth City Council,PCC,Housing Revenue Account,Supervision and Management,"Housing, Neighbourhood and Building Services",Premises-Related Expenditure,Water Services,23-Mar-22,6561718,229.96,SUPPLIER,ADVANCED DEMAND SIDE MANAGEMENT LIMITED,300000020478882
Portsmouth City Council,PCC,Housing Revenue Account,Supervision and Management,"Housing, Neighbourhood and Building Services",Premises-Related Expenditure,Water Services,23-Mar-22,6561718,8.87,SUPPLIER,ADVANCED DEMAND SIDE MANAGEMENT LIMITED,300000020478882
Portsmouth City Council,PCC,Housing Revenue Account,Supervision and Management,"Housing, Neighbourhood and Building Services",Premises-Related Expenditure,Water Services,23-Mar-22,6561718,403.84,SUPPLIER,ADVANCED DEMAND SIDE MANAGEMENT LIMITED,300000020478882
Portsmouth City Council,PCC,Housing Revenue Account,Supervision and Management,"Housing, Neighbourhood and Building Services",Premises-Related Expenditure,Water Services,23-Mar-22,6561718,4.85,SUPPLIER,ADVANCED DEMAND SIDE MANAGEMENT LIMITED,300000020478882
Portsmouth City Council,PCC,Housing Revenue Account,Supervision and Management,"Housing, Neighbourhood and Building Services",Premises-Related Expenditure,Water Services,23-Mar-22,6561718,68.82,SUPPLIER,ADVANCED DEMAND SIDE MANAGEMENT LIMITED,300000020478882
Portsmouth City Council,PCC,Housing Revenue Account,Supervision and Management,"Housing, Neighbourhood and Building Services",Premises-Related Expenditure,Water Services,23-Mar-22,6561718,4.7,SUPPLIER,ADVANCED DEMAND SIDE MANAGEMENT LIMITED,300000020478882
Portsmouth City Council,PCC,Support Service / Transparency Costs Unallocated,AMS,"Housing, Neighbourhood and Building Services",Premises-Related Expenditure,Water Services,23-Mar-22,6561718,"2,479.87",SUPPLIER,ADVANCED DEMAND SIDE MANAGEMENT LIMITED,300000020478882
Portsmouth City Council,PCC,Cultural and Related Services,Recreation and Sport,"Culture, Leisure & Regulatory Services",Premises-Related Expenditure,Energy costs,10-Mar-22,6559874,"5,111.90",LIMITED COMPANY,CONTRACT NATURAL GAS LTD,300000020484079
Portsmouth City Council,PCC,Housing Revenue Account,Supervision and Management,"Housing, Neighbourhood and Building Services",Premises-Related Expenditure,Water Services,23-Mar-22,6561718,73.48,SUPPLIER,ADVANCED DEMAND SIDE MANAGEMENT LIMITED,300000020478882
Portsmouth City Council,PCC,Planning Services,Business support,Regeneration,Premises-Related Expenditure,Energy costs,10-Mar-22,6559874,247.25,LIMITED COMPANY,CONTRACT NATURAL GAS LTD,300000020484079
Portsmouth City Council,PCC,Housing Revenue Account,Supervision and Management,"Housing, Neighbourhood and Building Services",Premises-Related Expenditure,Water Services,23-Mar-22,6561718,22.5,SUPPLIER,ADVANCED DEMAND SIDE MANAGEMENT LIMITED,300000020478882
Portsmouth City Council,PCC,Housing Revenue Account,Supervision and Management,"Housing, Neighbourhood and Building Services",Premises-Related Expenditure,Water Services,23-Mar-22,6561718,143.7,SUPPLIER,ADVANCED DEMAND SIDE MANAGEMENT LIMITED,300000020478882
Portsmouth City Council,PCC,Housing Revenue Account,Supervision and Management,"Housing, Neighbourhood and Building Services",Premises-Related Expenditure,Water Services,23-Mar-22,6561718,36.48,SUPPLIER,ADVANCED DEMAND SIDE MANAGEMENT LIMITED,300000020478882
Portsmouth City Council,PCC,Cultural and Related Services,Culture and Heritage,"Culture, Leisure & Regulatory Services",Premises-Related Expenditure,Energy costs,10-Mar-22,6559874,197.95,LIMITED COMPANY,CONTRACT NATURAL GAS LTD,300000020484079
Portsmouth City Council,PCC,Cultural and Related Services,Culture and Heritage,"Culture, Leisure & Regulatory Services",Premises-Related Expenditure,Energy costs,10-Mar-22,6559874,101.25,LIMITED COMPANY,CONTRACT NATURAL GAS LTD,300000020484079
Portsmouth City Council,PCC,Housing Revenue Account,Special Services,"Housing, Neighbourhood and Building Services",Premises-Related Expenditure,Water Services,23-Mar-22,6561718,143.34,SUPPLIER,ADVANCED DEMAND SIDE MANAGEMENT LIMITED,300000020478882
Portsmouth City Council,PCC,Housing Revenue Account,Special Services,"Housing, Neighbourhood and Building Services",Premises-Related Expenditure,Water Services,23-Mar-22,6561718,4.85,SUPPLIER,ADVANCED DEMAND SIDE MANAGEMENT LIMITED,300000020478882
Portsmouth City Council,PCC,Cultural and Related Services,Recreation and Sport,"Culture, Leisure & Regulatory Services",Premises-Related Expenditure,Energy costs,10-Mar-22,6559874,107.57,LIMITED COMPANY,CONTRACT NATURAL GAS LTD,300000020484079
Portsmouth City Council,PCC,Housing Revenue Account,Special Services,"Housing, Neighbourhood and Building Services",Premises-Related Expenditure,Water Services,23-Mar-22,6561718,57.94,SUPPLIER,ADVANCED DEMAND SIDE MANAGEMENT LIMITED,300000020478882
Portsmouth City Council,PCC,Highways and Transport Services,"Airports, Harbours and Toll Facilities",Portsmouth International Port,Premises-Related Expenditure,Energy costs,10-Mar-22,6559874,55.93,LIMITED COMPANY,CONTRACT NATURAL GAS LTD,300000020484079
Portsmouth City Council,PCC,Cultural and Related Services,Open Spaces,"Culture, Leisure & Regulatory Services",Premises-Related Expenditure,Energy costs,10-Mar-22,6559874,130.4,LIMITED COMPANY,CONTRACT NATURAL GAS LTD,300000020484079
Portsmouth City Council,PCC,Housing Revenue Account,Special Services,"Housing, Neighbourhood and Building Services",Premises-Related Expenditure,Water Services,23-Mar-22,6561718,4.7,SUPPLIER,ADVANCED DEMAND SIDE MANAGEMENT LIMITED,300000020478882
Portsmouth City Council,PCC,Children's and Education Services,Children Looked After,Children's Services and Education,Premises-Related Expenditure,Energy costs,10-Mar-22,6559874,121.36,LIMITED COMPANY,CONTRACT NATURAL GAS LTD,300000020484079
Portsmouth City Council,PCC,Housing Revenue Account,Special Services,"Housing, Neighbourhood and Building Services",Premises-Related Expenditure,Water Services,23-Mar-22,6561718,17.39,SUPPLIER,ADVANCED DEMAND SIDE MANAGEMENT LIMITED,300000020478882
Portsmouth City Council,PCC,Highways and Transport Services,"Airports, Harbours and Toll Facilities",Portsmouth International Port,Premises-Related Expenditure,Energy costs,10-Mar-22,6559874,2.48,LIMITED COMPANY,CONTRACT NATURAL GAS LTD,300000020484079
Portsmouth City Council,PCC,Adult Social Care,Social Care Activities,Adult Care,Third Party Payments,Other establishments,30-Mar-22,6563577,11,SUPPLIER,ADMIRAL CARE LTD,300000020477405
Portsmouth City Council,PCC,Adult Social Care,Physical Support Older People (85+),Adult Care,Third Party Payments,Other establishments,30-Mar-22,6563577,19.64,SUPPLIER,ADMIRAL CARE LTD,300000020477405
Portsmouth City Council,PCC,Adult Social Care,Physical Support Older People (85+),Adult Care,Third Party Payments,Other establishments,30-Mar-22,6563577,19.64,SUPPLIER,ADMIRAL CARE LTD,300000020477405
Portsmouth City Council,PCC,Environmental and Regulatory Services,Regulatory Services,"Housing, Neighbourhood and Building Services",Premises-Related Expenditure,Water Services,23-Mar-22,6561718,213.2,SUPPLIER,ADVANCED DEMAND SIDE MANAGEMENT LIMITED,300000020478882
Portsmouth City Council,PCC,Children's and Education Services,Primary Schools,Children's Services and Education,Premises-Related Expenditure,Energy costs,10-Mar-22,6559874,45.78,LIMITED COMPANY,CONTRACT NATURAL GAS LTD,300000020484079
Portsmouth City Council,PCC,Environmental and Regulatory Services,Regulatory Services,"Housing, Neighbourhood and Building Services",Premises-Related Expenditure,Water Services,23-Mar-22,6561718,96.11,SUPPLIER,ADVANCED DEMAND SIDE MANAGEMENT LIMITED,300000020478882
Portsmouth City Council,PCC,Children's and Education Services,Other Education and Community Budget,Children's Services and Education,Premises-Related Expenditure,Energy costs,10-Mar-22,6559874,29.28,LIMITED COMPANY,CONTRACT NATURAL GAS LTD,300000020484079
Portsmouth City Council,PCC,Adult Social Care,Physical Support Older People (85+),Adult Care,Third Party Payments,Other establishments,30-Mar-22,6563577,64.16,SUPPLIER,ADMIRAL CARE LTD,300000020477405
Portsmouth City Council,PCC,Environmental and Regulatory Services,Regulatory Services,"Housing, Neighbourhood and Building Services",Premises-Related Expenditure,Water Services,23-Mar-22,6561718,93.52,SUPPLIER,ADVANCED DEMAND SIDE MANAGEMENT LIMITED,300000020478882
Portsmouth City Council,PCC,Environmental and Regulatory Services,Regulatory Services,"Housing, Neighbourhood and Building Services",Premises-Related Expenditure,Water Services,23-Mar-22,6561718,3.41,SUPPLIER,ADVANCED DEMAND SIDE MANAGEMENT LIMITED,300000020478882
Portsmouth City Council,PCC,Environmental and Regulatory Services,Regulatory Services,"Housing, Neighbourhood and Building Services",Premises-Related Expenditure,Water Services,23-Mar-22,6561718,"3,242.07",SUPPLIER,ADVANCED DEMAND SIDE MANAGEMENT LIMITED,300000020478882
Portsmouth City Council,PCC,Adult Social Care,Mental Health Support Older People (65 - 74),Adult Care,Third Party Payments,Other establishments,30-Mar-22,6563577,74.56,SUPPLIER,ADMIRAL CARE LTD,300000020477405
Portsmouth City Council,PCC,Other,Suspense and Capital Schemes,Portsmouth International Port,Premises-Related Expenditure,Energy costs,10-Mar-22,6559874,247.05,LIMITED COMPANY,CONTRACT NATURAL GAS LTD,300000020484079
Portsmouth City Council,PCC,Environmental and Regulatory Services,Regulatory Services,"Housing, Neighbourhood and Building Services",Premises-Related Expenditure,Water Services,23-Mar-22,6561718,929.87,SUPPLIER,ADVANCED DEMAND SIDE MANAGEMENT LIMITED,300000020478882
Portsmouth City Council,PCC,Environmental and Regulatory Services,Regulatory Services,"Housing, Neighbourhood and Building Services",Premises-Related Expenditure,Water Services,23-Mar-22,6561718,286.6,SUPPLIER,ADVANCED DEMAND SIDE MANAGEMENT LIMITED,300000020478882
Portsmouth City Council,PCC,Children's and Education Services,Primary Schools,Children's Services and Education,Premises-Related Expenditure,Energy costs,10-Mar-22,6559874,78.12,LIMITED COMPANY,CONTRACT NATURAL GAS LTD,300000020484079
Portsmouth City Council,PCC,Environmental and Regulatory Services,Regulatory Services,"Housing, Neighbourhood and Building Services",Premises-Related Expenditure,Water Services,23-Mar-22,6561718,"1,009.96",SUPPLIER,ADVANCED DEMAND SIDE MANAGEMENT LIMITED,300000020478882
Portsmouth City Council,PCC,Children's and Education Services,Primary Schools,Children's Services and Education,Premises-Related Expenditure,Energy costs,10-Mar-22,6559874,73.54,LIMITED COMPANY,CONTRACT NATURAL GAS LTD,300000020484079
Portsmouth City Council,PCC,Children's and Education Services,Other Education and Community Budget,Regeneration,Premises-Related Expenditure,Energy costs,10-Mar-22,6559874,75.57,LIMITED COMPANY,CONTRACT NATURAL GAS LTD,300000020484079
Portsmouth City Council,PCC,Environmental and Regulatory Services,Regulatory Services,"Housing, Neighbourhood and Building Services",Premises-Related Expenditure,Water Services,23-Mar-22,6561718,71.92,SUPPLIER,ADVANCED DEMAND SIDE MANAGEMENT LIMITED,300000020478882
Portsmouth City Council,PCC,Environmental and Regulatory Services,Regulatory Services,"Housing, Neighbourhood and Building Services",Premises-Related Expenditure,Water Services,23-Mar-22,6561718,593.86,SUPPLIER,ADVANCED DEMAND SIDE MANAGEMENT LIMITED,300000020478882
Portsmouth City Council,PCC,Environmental and Regulatory Services,Regulatory Services,"Housing, Neighbourhood and Building Services",Premises-Related Expenditure,Water Services,23-Mar-22,6561718,"1,218.81",SUPPLIER,ADVANCED DEMAND SIDE MANAGEMENT LIMITED,300000020478882
Portsmouth City Council,PCC,Environmental and Regulatory Services,Regulatory Services,"Housing, Neighbourhood and Building Services",Premises-Related Expenditure,Water Services,23-Mar-22,6561718,842.63,SUPPLIER,ADVANCED DEMAND SIDE MANAGEMENT LIMITED,300000020478882
Portsmouth City Council,PCC,Environmental and Regulatory Services,Regulatory Services,"Housing, Neighbourhood and Building Services",Premises-Related Expenditure,Water Services,23-Mar-22,6561718,520.23,SUPPLIER,ADVANCED DEMAND SIDE MANAGEMENT LIMITED,300000020478882
Portsmouth City Council,PCC,Environmental and Regulatory Services,Regulatory Services,"Housing, Neighbourhood and Building Services",Premises-Related Expenditure,Water Services,23-Mar-22,6561718,286.48,SUPPLIER,ADVANCED DEMAND SIDE MANAGEMENT LIMITED,300000020478882
Portsmouth City Council,PCC,Environmental and Regulatory Services,Regulatory Services,"Housing, Neighbourhood and Building Services",Premises-Related Expenditure,Water Services,23-Mar-22,6561718,"1,142.51",SUPPLIER,ADVANCED DEMAND SIDE MANAGEMENT LIMITED,300000020478882
Portsmouth City Council,PCC,Highways and Transport Services,"Airports, Harbours and Toll Facilities",Portsmouth International Port,Premises-Related Expenditure,Energy costs,10-Mar-22,6559874,10.77,LIMITED COMPANY,CONTRACT NATURAL GAS LTD,300000020484079
Portsmouth City Council,PCC,Other,Suspense and Capital Schemes,Portsmouth International Port,Premises-Related Expenditure,Energy costs,10-Mar-22,6559874,63.32,LIMITED COMPANY,CONTRACT NATURAL GAS LTD,300000020484079
Portsmouth City Council,PCC,Housing Revenue Account,"Rents, Rates, Taxes and Other Charges","Housing, Neighbourhood and Building Services",Premises-Related Expenditure,Water Services,23-Mar-22,6561718,52.01,SUPPLIER,ADVANCED DEMAND SIDE MANAGEMENT LIMITED,300000020478882
Portsmouth City Council,PCC,Housing Revenue Account,"Rents, Rates, Taxes and Other Charges","Housing, Neighbourhood and Building Services",Premises-Related Expenditure,Water Services,23-Mar-22,6561718,12.54,SUPPLIER,ADVANCED DEMAND SIDE MANAGEMENT LIMITED,300000020478882
Portsmouth City Council,PCC,Housing Revenue Account,"Rents, Rates, Taxes and Other Charges","Housing, Neighbourhood and Building Services",Premises-Related Expenditure,Water Services,23-Mar-22,6561718,1.63,SUPPLIER,ADVANCED DEMAND SIDE MANAGEMENT LIMITED,300000020478882
Portsmouth City Council,PCC,Housing Revenue Account,"Rents, Rates, Taxes and Other Charges","Housing, Neighbourhood and Building Services",Premises-Related Expenditure,Water Services,23-Mar-22,6561718,15.17,SUPPLIER,ADVANCED DEMAND SIDE MANAGEMENT LIMITED,300000020478882
Portsmouth City Council,PCC,Housing Revenue Account,"Rents, Rates, Taxes and Other Charges","Housing, Neighbourhood and Building Services",Premises-Related Expenditure,Water Services,23-Mar-22,6561718,1.63,SUPPLIER,ADVANCED DEMAND SIDE MANAGEMENT LIMITED,300000020478882
Portsmouth City Council,PCC,Housing Revenue Account,Special Services,"Housing, Neighbourhood and Building Services",Premises-Related Expenditure,Water Services,23-Mar-22,6561718,190.84,SUPPLIER,ADVANCED DEMAND SIDE MANAGEMENT LIMITED,300000020478882
Portsmouth City Council,PCC,Housing Revenue Account,Special Services,"Housing, Neighbourhood and Building Services",Premises-Related Expenditure,Water Services,23-Mar-22,6561718,25.22,SUPPLIER,ADVANCED DEMAND SIDE MANAGEMENT LIMITED,300000020478882
Portsmouth City Council,PCC,Housing Revenue Account,Special Services,"Housing, Neighbourhood and Building Services",Premises-Related Expenditure,Water Services,23-Mar-22,6561718,65.76,SUPPLIER,ADVANCED DEMAND SIDE MANAGEMENT LIMITED,300000020478882
Portsmouth City Council,PCC,Children's and Education Services,Primary Schools,Children's Services and Education,Premises-Related Expenditure,Energy costs,10-Mar-22,6559874,14.9,LIMITED COMPANY,CONTRACT NATURAL GAS LTD,300000020484079
Portsmouth City Council,PCC,Housing Revenue Account,Special Services,"Housing, Neighbourhood and Building Services",Premises-Related Expenditure,Water Services,23-Mar-22,6561718,25.23,SUPPLIER,ADVANCED DEMAND SIDE MANAGEMENT LIMITED,300000020478882
Portsmouth City Council,PCC,Highways and Transport Services,"Airports, Harbours and Toll Facilities",Portsmouth International Port,Premises-Related Expenditure,Energy costs,10-Mar-22,6559874,2.48,LIMITED COMPANY,CONTRACT NATURAL GAS LTD,300000020484079
Portsmouth City Council,PCC,Children's and Education Services,Primary Schools,Children's Services and Education,Premises-Related Expenditure,Energy costs,10-Mar-22,6559874,159.03,LIMITED COMPANY,CONTRACT NATURAL GAS LTD,300000020484079
Portsmouth City Council,PCC,Children's and Education Services,Primary Schools,Children's Services and Education,Premises-Related Expenditure,Energy costs,10-Mar-22,6559874,15.81,LIMITED COMPANY,CONTRACT NATURAL GAS LTD,300000020484079
Portsmouth City Council,PCC,Housing Revenue Account,Special Services,"Housing, Neighbourhood and Building Services",Premises-Related Expenditure,Water Services,23-Mar-22,6561718,2.67,SUPPLIER,ADVANCED DEMAND SIDE MANAGEMENT LIMITED,300000020478882
Portsmouth City Council,PCC,Housing Revenue Account,Special Services,"Housing, Neighbourhood and Building Services",Premises-Related Expenditure,Water Services,23-Mar-22,6561718,14,SUPPLIER,ADVANCED DEMAND SIDE MANAGEMENT LIMITED,300000020478882
Portsmouth City Council,PCC,Housing Revenue Account,Special Services,"Housing, Neighbourhood and Building Services",Premises-Related Expenditure,Water Services,23-Mar-22,6561718,7.23,SUPPLIER,ADVANCED DEMAND SIDE MANAGEMENT LIMITED,300000020478882
Portsmouth City Council,PCC,Housing Revenue Account,Special Services,"Housing, Neighbourhood and Building Services",Premises-Related Expenditure,Water Services,23-Mar-22,6561718,7.23,SUPPLIER,ADVANCED DEMAND SIDE MANAGEMENT LIMITED,300000020478882
Portsmouth City Council,PCC,Housing Revenue Account,Special Services,"Housing, Neighbourhood and Building Services",Premises-Related Expenditure,Water Services,23-Mar-22,6561718,8.19,SUPPLIER,ADVANCED DEMAND SIDE MANAGEMENT LIMITED,300000020478882
Portsmouth City Council,PCC,Housing Revenue Account,Special Services,"Housing, Neighbourhood and Building Services",Premises-Related Expenditure,Water Services,23-Mar-22,6561718,7.23,SUPPLIER,ADVANCED DEMAND SIDE MANAGEMENT LIMITED,300000020478882
Portsmouth City Council,PCC,Children's and Education Services,Primary Schools,Children's Services and Education,Premises-Related Expenditure,Energy costs,10-Mar-22,6559874,13.02,LIMITED COMPANY,CONTRACT NATURAL GAS LTD,300000020484079
Portsmouth City Council,PCC,Housing Revenue Account,Special Services,"Housing, Neighbourhood and Building Services",Premises-Related Expenditure,Water Services,23-Mar-22,6561718,7.98,SUPPLIER,ADVANCED DEMAND SIDE MANAGEMENT LIMITED,300000020478882
Portsmouth City Council,PCC,Housing Revenue Account,Special Services,"Housing, Neighbourhood and Building Services",Premises-Related Expenditure,Water Services,23-Mar-22,6561718,55.33,SUPPLIER,ADVANCED DEMAND SIDE MANAGEMENT LIMITED,300000020478882
Portsmouth City Council,PCC,Housing Revenue Account,Special Services,"Housing, Neighbourhood and Building Services",Premises-Related Expenditure,Water Services,23-Mar-22,6561718,7.23,SUPPLIER,ADVANCED DEMAND SIDE MANAGEMENT LIMITED,300000020478882
Portsmouth City Council,PCC,Children's and Education Services,Primary Schools,Children's Services and Education,Premises-Related Expenditure,Energy costs,10-Mar-22,6559874,161.04,LIMITED COMPANY,CONTRACT NATURAL GAS LTD,300000020484079
Portsmouth City Council,PCC,Children's and Education Services,Children Looked After,Children's Services and Education,Premises-Related Expenditure,Energy costs,10-Mar-22,6559874,40.94,LIMITED COMPANY,CONTRACT NATURAL GAS LTD,300000020484079
Portsmouth City Council,PCC,Children's and Education Services,Children Looked After,Children's Services and Education,Premises-Related Expenditure,Energy costs,10-Mar-22,6559874,41.3,LIMITED COMPANY,CONTRACT NATURAL GAS LTD,300000020484079
Portsmouth City Council,PCC,Children's and Education Services,Other Children and Family Services,Children's Services and Education,Premises-Related Expenditure,Energy costs,10-Mar-22,6559874,27.95,LIMITED COMPANY,CONTRACT NATURAL GAS LTD,300000020484079
Portsmouth City Council,PCC,Housing Revenue Account,Special Services,"Housing, Neighbourhood and Building Services",Premises-Related Expenditure,Water Services,23-Mar-22,6561718,80.74,SUPPLIER,ADVANCED DEMAND SIDE MANAGEMENT LIMITED,300000020478882
Portsmouth City Council,PCC,Housing Revenue Account,Special Services,"Housing, Neighbourhood and Building Services",Premises-Related Expenditure,Water Services,23-Mar-22,6561718,43.49,SUPPLIER,ADVANCED DEMAND SIDE MANAGEMENT LIMITED,300000020478882
Portsmouth City Council,PCC,Housing Revenue Account,Special Services,"Housing, Neighbourhood and Building Services",Premises-Related Expenditure,Water Services,23-Mar-22,6561718,11.25,SUPPLIER,ADVANCED DEMAND SIDE MANAGEMENT LIMITED,300000020478882
Portsmouth City Council,PCC,Adult Social Care,Mental Health Support Older People (65 - 74),Adult Care,Third Party Payments,Other establishments,30-Mar-22,6563577,74.56,SUPPLIER,ADMIRAL CARE LTD,300000020477405
Portsmouth City Council,PCC,Housing Revenue Account,Special Services,"Housing, Neighbourhood and Building Services",Premises-Related Expenditure,Water Services,23-Mar-22,6561718,25.53,SUPPLIER,ADVANCED DEMAND SIDE MANAGEMENT LIMITED,300000020478882
Portsmouth City Council,PCC,Children's and Education Services,Primary Schools,Children's Services and Education,Premises-Related Expenditure,Energy costs,10-Mar-22,6559874,148.19,LIMITED COMPANY,CONTRACT NATURAL GAS LTD,300000020484079
Portsmouth City Council,PCC,Adult Social Care,Physical Support Older People (85+),Adult Care,Third Party Payments,Other establishments,30-Mar-22,6563577,86.7,SUPPLIER,ADMIRAL CARE LTD,300000020477405
Portsmouth City Council,PCC,Children's and Education Services,Children Looked After,Children's Services and Education,Premises-Related Expenditure,Energy costs,10-Mar-22,6559874,49.14,LIMITED COMPANY,CONTRACT NATURAL GAS LTD,300000020484079
Portsmouth City Council,PCC,Housing Revenue Account,Special Services,"Housing, Neighbourhood and Building Services",Premises-Related Expenditure,Water Services,23-Mar-22,6561718,7.23,SUPPLIER,ADVANCED DEMAND SIDE MANAGEMENT LIMITED,300000020478882
Portsmouth City Council,PCC,Environmental and Regulatory Services,"Cemetery, Cremation and Mortuary Services","Culture, Leisure & Regulatory Services",Premises-Related Expenditure,Energy costs,10-Mar-22,6559874,54.4,LIMITED COMPANY,CONTRACT NATURAL GAS LTD,300000020484079
Portsmouth City Council,PCC,Cultural and Related Services,Library Service,"Culture, Leisure & Regulatory Services",Premises-Related Expenditure,Energy costs,10-Mar-22,6559874,30.72,LIMITED COMPANY,CONTRACT NATURAL GAS LTD,300000020484079
Portsmouth City Council,PCC,Cultural and Related Services,Library Service,"Culture, Leisure & Regulatory Services",Premises-Related Expenditure,Energy costs,10-Mar-22,6559874,2.48,LIMITED COMPANY,CONTRACT NATURAL GAS LTD,300000020484079
Portsmouth City Council,PCC,Children's and Education Services,Children Looked After,Children's Services and Education,Premises-Related Expenditure,Energy costs,10-Mar-22,6559874,9.61,LIMITED COMPANY,CONTRACT NATURAL GAS LTD,300000020484079
Portsmouth City Council,PCC,Costs below Net Cost of Services,Trading,Regeneration,Premises-Related Expenditure,Energy costs,10-Mar-22,6559874,2.48,LIMITED COMPANY,CONTRACT NATURAL GAS LTD,300000020484079
Portsmouth City Council,PCC,Cultural and Related Services,Library Service,"Culture, Leisure & Regulatory Services",Premises-Related Expenditure,Energy costs,10-Mar-22,6559874,67.87,LIMITED COMPANY,CONTRACT NATURAL GAS LTD,300000020484079
Portsmouth City Council,PCC,Housing Revenue Account,Special Services,"Housing, Neighbourhood and Building Services",Premises-Related Expenditure,Water Services,23-Mar-22,6561718,31.86,SUPPLIER,ADVANCED DEMAND SIDE MANAGEMENT LIMITED,300000020478882
Portsmouth City Council,PCC,Housing Revenue Account,Special Services,"Housing, Neighbourhood and Building Services",Premises-Related Expenditure,Water Services,23-Mar-22,6561718,14.92,SUPPLIER,ADVANCED DEMAND SIDE MANAGEMENT LIMITED,300000020478882
Portsmouth City Council,PCC,Cultural and Related Services,Recreation and Sport,"Culture, Leisure & Regulatory Services",Premises-Related Expenditure,Energy costs,10-Mar-22,6559874,43.09,LIMITED COMPANY,CONTRACT NATURAL GAS LTD,300000020484079
Portsmouth City Council,PCC,Children's and Education Services,Primary Schools,Children's Services and Education,Premises-Related Expenditure,Energy costs,10-Mar-22,6559874,105.4,LIMITED COMPANY,CONTRACT NATURAL GAS LTD,300000020484079
Portsmouth City Council,PCC,Children's and Education Services,Primary Schools,Children's Services and Education,Premises-Related Expenditure,Energy costs,10-Mar-22,6559874,116.89,LIMITED COMPANY,CONTRACT NATURAL GAS LTD,300000020484079
Portsmouth City Council,PCC,Children's and Education Services,Secondary Schools,Children's Services and Education,Premises-Related Expenditure,Energy costs,10-Mar-22,6559874,35.68,LIMITED COMPANY,CONTRACT NATURAL GAS LTD,300000020484079
Portsmouth City Council,PCC,Children's and Education Services,Secondary Schools,Children's Services and Education,Premises-Related Expenditure,Energy costs,10-Mar-22,6559874,57.42,LIMITED COMPANY,CONTRACT NATURAL GAS LTD,300000020484079
Portsmouth City Council,PCC,Planning Services,Business support,Regeneration,Premises-Related Expenditure,Energy costs,10-Mar-22,6559874,16.43,LIMITED COMPANY,CONTRACT NATURAL GAS LTD,300000020484079
Portsmouth City Council,PCC,Planning Services,Business support,Regeneration,Premises-Related Expenditure,Energy costs,10-Mar-22,6559874,353.82,LIMITED COMPANY,CONTRACT NATURAL GAS LTD,300000020484079
Portsmouth City Council,PCC,Planning Services,Business support,Regeneration,Premises-Related Expenditure,Energy costs,10-Mar-22,6559874,126.17,LIMITED COMPANY,CONTRACT NATURAL GAS LTD,300000020484079
Portsmouth City Council,PCC,Children's and Education Services,Primary Schools,Children's Services and Education,Premises-Related Expenditure,Energy costs,10-Mar-22,6559874,197.83,LIMITED COMPANY,CONTRACT NATURAL GAS LTD,300000020484079
Portsmouth City Council,PCC,Housing Revenue Account,Special Services,"Housing, Neighbourhood and Building Services",Premises-Related Expenditure,Water Services,23-Mar-22,6561718,32.07,SUPPLIER,ADVANCED DEMAND SIDE MANAGEMENT LIMITED,300000020478882
Portsmouth City Council,PCC,Housing Revenue Account,Special Services,"Housing, Neighbourhood and Building Services",Premises-Related Expenditure,Water Services,23-Mar-22,6561718,7.23,SUPPLIER,ADVANCED DEMAND SIDE MANAGEMENT LIMITED,300000020478882
Portsmouth City Council,PCC,Housing Revenue Account,Special Services,"Housing, Neighbourhood and Building Services",Premises-Related Expenditure,Water Services,23-Mar-22,6561718,12.88,SUPPLIER,ADVANCED DEMAND SIDE MANAGEMENT LIMITED,300000020478882
Portsmouth City Council,PCC,Housing Revenue Account,Special Services,"Housing, Neighbourhood and Building Services",Premises-Related Expenditure,Water Services,23-Mar-22,6561718,87.38,SUPPLIER,ADVANCED DEMAND SIDE MANAGEMENT LIMITED,300000020478882
Portsmouth City Council,PCC,Housing Revenue Account,Special Services,"Housing, Neighbourhood and Building Services",Premises-Related Expenditure,Water Services,23-Mar-22,6561718,32.07,SUPPLIER,ADVANCED DEMAND SIDE MANAGEMENT LIMITED,300000020478882
Portsmouth City Council,PCC,Children's and Education Services,Primary Schools,Children's Services and Education,Premises-Related Expenditure,Energy costs,10-Mar-22,6559874,67.92,LIMITED COMPANY,CONTRACT NATURAL GAS LTD,300000020484079
Portsmouth City Council,PCC,Housing Revenue Account,Special Services,"Housing, Neighbourhood and Building Services",Premises-Related Expenditure,Water Services,23-Mar-22,6561718,173.32,SUPPLIER,ADVANCED DEMAND SIDE MANAGEMENT LIMITED,300000020478882
Portsmouth City Council,PCC,Housing Revenue Account,Special Services,"Housing, Neighbourhood and Building Services",Premises-Related Expenditure,Water Services,23-Mar-22,6561718,145.16,SUPPLIER,ADVANCED DEMAND SIDE MANAGEMENT LIMITED,300000020478882
Portsmouth City Council,PCC,Costs below Net Cost of Services,Trading,"Housing, Neighbourhood and Building Services",Premises-Related Expenditure,Water Services,23-Mar-22,6561718,125.28,SUPPLIER,ADVANCED DEMAND SIDE MANAGEMENT LIMITED,300000020478882
Portsmouth City Council,PCC,Children's and Education Services,Primary Schools,Children's Services and Education,Premises-Related Expenditure,Energy costs,10-Mar-22,6559874,215.13,LIMITED COMPANY,CONTRACT NATURAL GAS LTD,300000020484079
Portsmouth City Council,PCC,Adult Social Care,Physical Support Adults (18 - 64),Adult Care,Third Party Payments,Other establishments,30-Mar-22,6563577,97.86,SUPPLIER,ADMIRAL CARE LTD,300000020477405
Portsmouth City Council,PCC,Costs below Net Cost of Services,Trading,"Housing, Neighbourhood and Building Services",Premises-Related Expenditure,Water Services,23-Mar-22,6561718,"11,788.18",SUPPLIER,ADVANCED DEMAND SIDE MANAGEMENT LIMITED,300000020478882
Portsmouth City Council,PCC,Environmental and Regulatory Services,Regulatory Services,"Housing, Neighbourhood and Building Services",Premises-Related Expenditure,Water Services,23-Mar-22,6561718,766.14,SUPPLIER,ADVANCED DEMAND SIDE MANAGEMENT LIMITED,300000020478882
Portsmouth City Council,PCC,Environmental and Regulatory Services,Regulatory Services,"Housing, Neighbourhood and Building Services",Premises-Related Expenditure,Water Services,23-Mar-22,6561718,353.95,SUPPLIER,ADVANCED DEMAND SIDE MANAGEMENT LIMITED,300000020478882
Portsmouth City Council,PCC,Children's and Education Services,Children Looked After,Children's Services and Education,Premises-Related Expenditure,Energy costs,10-Mar-22,6559874,161.58,LIMITED COMPANY,CONTRACT NATURAL GAS LTD,300000020484079
Portsmouth City Council,PCC,Environmental and Regulatory Services,Regulatory Services,"Housing, Neighbourhood and Building Services",Premises-Related Expenditure,Water Services,23-Mar-22,6561718,"2,680.40",SUPPLIER,ADVANCED DEMAND SIDE MANAGEMENT LIMITED,300000020478882
Portsmouth City Council,PCC,Children's and Education Services,Primary Schools,Children's Services and Education,Premises-Related Expenditure,Energy costs,10-Mar-22,6559874,275.1,LIMITED COMPANY,CONTRACT NATURAL GAS LTD,300000020484079
Portsmouth City Council,PCC,Children's and Education Services,Primary Schools,Children's Services and Education,Premises-Related Expenditure,Energy costs,10-Mar-22,6559874,132.06,LIMITED COMPANY,CONTRACT NATURAL GAS LTD,300000020484079
Portsmouth City Council,PCC,Environmental and Regulatory Services,Regulatory Services,"Housing, Neighbourhood and Building Services",Premises-Related Expenditure,Water Services,23-Mar-22,6561718,676.33,SUPPLIER,ADVANCED DEMAND SIDE MANAGEMENT LIMITED,300000020478882
Portsmouth City Council,PCC,Children's and Education Services,Primary Schools,Children's Services and Education,Premises-Related Expenditure,Energy costs,10-Mar-22,6559874,163.72,LIMITED COMPANY,CONTRACT NATURAL GAS LTD,300000020484079
Portsmouth City Council,PCC,Housing Revenue Account,"Rents, Rates, Taxes and Other Charges","Housing, Neighbourhood and Building Services",Premises-Related Expenditure,Water Services,23-Mar-22,6561718,61.86,SUPPLIER,ADVANCED DEMAND SIDE MANAGEMENT LIMITED,300000020478882
Portsmouth City Council,PCC,Housing Revenue Account,"Rents, Rates, Taxes and Other Charges","Housing, Neighbourhood and Building Services",Premises-Related Expenditure,Water Services,23-Mar-22,6561718,55.56,SUPPLIER,ADVANCED DEMAND SIDE MANAGEMENT LIMITED,300000020478882
Portsmouth City Council,PCC,Environmental and Regulatory Services,Regulatory Services,"Housing, Neighbourhood and Building Services",Premises-Related Expenditure,Water Services,23-Mar-22,6561718,93.04,SUPPLIER,ADVANCED DEMAND SIDE MANAGEMENT LIMITED,300000020478882
Portsmouth City Council,PCC,Environmental and Regulatory Services,Regulatory Services,"Housing, Neighbourhood and Building Services",Premises-Related Expenditure,Water Services,23-Mar-22,6561718,14.32,SUPPLIER,ADVANCED DEMAND SIDE MANAGEMENT LIMITED,300000020478882
Portsmouth City Council,PCC,Environmental and Regulatory Services,Regulatory Services,"Housing, Neighbourhood and Building Services",Premises-Related Expenditure,Water Services,23-Mar-22,6561718,368.7,SUPPLIER,ADVANCED DEMAND SIDE MANAGEMENT LIMITED,300000020478882
Portsmouth City Council,PCC,Environmental and Regulatory Services,Regulatory Services,"Housing, Neighbourhood and Building Services",Premises-Related Expenditure,Water Services,23-Mar-22,6561718,330.1,SUPPLIER,ADVANCED DEMAND SIDE MANAGEMENT LIMITED,300000020478882
Portsmouth City Council,PCC,Costs below Net Cost of Services,Trading,"Housing, Neighbourhood and Building Services",Premises-Related Expenditure,Water Services,23-Mar-22,6561718,"3,566.21",SUPPLIER,ADVANCED DEMAND SIDE MANAGEMENT LIMITED,300000020478882
Portsmouth City Council,PCC,Costs below Net Cost of Services,Trading,"Housing, Neighbourhood and Building Services",Premises-Related Expenditure,Water Services,23-Mar-22,6561718,"1,346.25",SUPPLIER,ADVANCED DEMAND SIDE MANAGEMENT LIMITED,300000020478882
Portsmouth City Council,PCC,Housing Revenue Account,Special Services,"Housing, Neighbourhood and Building Services",Premises-Related Expenditure,Water Services,23-Mar-22,6561718,-306.66,SUPPLIER,ADVANCED DEMAND SIDE MANAGEMENT LIMITED,300000020478882
Portsmouth City Council,PCC,Housing Revenue Account,Special Services,"Housing, Neighbourhood and Building Services",Premises-Related Expenditure,Water Services,23-Mar-22,6561718,"-1,740.45",SUPPLIER,ADVANCED DEMAND SIDE MANAGEMENT LIMITED,300000020478882
Portsmouth City Council,PCC,Housing Revenue Account,"Rents, Rates, Taxes and Other Charges","Housing, Neighbourhood and Building Services",Premises-Related Expenditure,Water Services,23-Mar-22,6561718,-1.66,SUPPLIER,ADVANCED DEMAND SIDE MANAGEMENT LIMITED,300000020478882
Portsmouth City Council,PCC,Costs below Net Cost of Services,Trading,"Housing, Neighbourhood and Building Services",Premises-Related Expenditure,Water Services,23-Mar-22,6561718,-37.99,SUPPLIER,ADVANCED DEMAND SIDE MANAGEMENT LIMITED,300000020478882
Portsmouth City Council,PCC,Children's and Education Services,Primary Schools,Children's Services and Education,Premises-Related Expenditure,Energy costs,10-Mar-22,6559874,16.91,LIMITED COMPANY,CONTRACT NATURAL GAS LTD,300000020484079
Portsmouth City Council,PCC,Costs below Net Cost of Services,Trading,"Housing, Neighbourhood and Building Services",Premises-Related Expenditure,Water Services,23-Mar-22,6561718,"-2,028.74",SUPPLIER,ADVANCED DEMAND SIDE MANAGEMENT LIMITED,300000020478882
Portsmouth City Council,PCC,Housing Revenue Account,Special Services,"Housing, Neighbourhood and Building Services",Premises-Related Expenditure,Water Services,23-Mar-22,6561718,-101.1,SUPPLIER,ADVANCED DEMAND SIDE MANAGEMENT LIMITED,300000020478882
Portsmouth City Council,PCC,Children's and Education Services,Primary Schools,Children's Services and Education,Premises-Related Expenditure,Energy costs,10-Mar-22,6559874,26.74,LIMITED COMPANY,CONTRACT NATURAL GAS LTD,300000020484079
Portsmouth City Council,PCC,Central Services,"Registration of Births, Deaths and Marriages","Culture, Leisure & Regulatory Services",Premises-Related Expenditure,Energy costs,10-Mar-22,6559874,55.03,LIMITED COMPANY,CONTRACT NATURAL GAS LTD,300000020484079
Portsmouth City Council,PCC,Housing Revenue Account,Special Services,"Housing, Neighbourhood and Building Services",Premises-Related Expenditure,Water Services,23-Mar-22,6561718,145.79,SUPPLIER,ADVANCED DEMAND SIDE MANAGEMENT LIMITED,300000020478882
Portsmouth City Council,PCC,Children's and Education Services,Primary Schools,Children's Services and Education,Premises-Related Expenditure,Energy costs,10-Mar-22,6559874,172.44,LIMITED COMPANY,CONTRACT NATURAL GAS LTD,300000020484079
Portsmouth City Council,PCC,Children's and Education Services,Primary Schools,Children's Services and Education,Premises-Related Expenditure,Energy costs,10-Mar-22,6559874,8.99,LIMITED COMPANY,CONTRACT NATURAL GAS LTD,300000020484079
Portsmouth City Council,PCC,Housing Revenue Account,Special Services,"Housing, Neighbourhood and Building Services",Premises-Related Expenditure,Water Services,23-Mar-22,6561718,109.27,SUPPLIER,ADVANCED DEMAND SIDE MANAGEMENT LIMITED,300000020478882
Portsmouth City Council,PCC,Housing Revenue Account,Special Services,"Housing, Neighbourhood and Building Services",Premises-Related Expenditure,Water Services,23-Mar-22,6561718,-436.63,SUPPLIER,ADVANCED DEMAND SIDE MANAGEMENT LIMITED,300000020478882
Portsmouth City Council,PCC,Environmental and Regulatory Services,Regulatory Services,"Housing, Neighbourhood and Building Services",Premises-Related Expenditure,Water Services,23-Mar-22,6561718,-76.64,SUPPLIER,ADVANCED DEMAND SIDE MANAGEMENT LIMITED,300000020478882
Portsmouth City Council,PCC,Environmental and Regulatory Services,Regulatory Services,"Housing, Neighbourhood and Building Services",Premises-Related Expenditure,Water Services,23-Mar-22,6561718,-615.25,SUPPLIER,ADVANCED DEMAND SIDE MANAGEMENT LIMITED,300000020478882
Portsmouth City Council,PCC,Housing Revenue Account,"Rents, Rates, Taxes and Other Charges","Housing, Neighbourhood and Building Services",Premises-Related Expenditure,Water Services,23-Mar-22,6561718,-4.51,SUPPLIER,ADVANCED DEMAND SIDE MANAGEMENT LIMITED,300000020478882
Portsmouth City Council,PCC,Housing Revenue Account,Supervision and Management,"Housing, Neighbourhood and Building Services",Premises-Related Expenditure,Water Services,23-Mar-22,6561718,286.48,SUPPLIER,ADVANCED DEMAND SIDE MANAGEMENT LIMITED,300000020478882
Portsmouth City Council,PCC,Housing Revenue Account,Supervision and Management,"Housing, Neighbourhood and Building Services",Premises-Related Expenditure,Water Services,23-Mar-22,6561718,117.89,SUPPLIER,ADVANCED DEMAND SIDE MANAGEMENT LIMITED,300000020478882
Portsmouth City Council,PCC,Costs below Net Cost of Services,Trading,"Housing, Neighbourhood and Building Services",Premises-Related Expenditure,Water Services,23-Mar-22,6561718,-40.08,SUPPLIER,ADVANCED DEMAND SIDE MANAGEMENT LIMITED,300000020478882
Portsmouth City Council,PCC,Costs below Net Cost of Services,Trading,"Housing, Neighbourhood and Building Services",Premises-Related Expenditure,Water Services,23-Mar-22,6561718,"-2,095.23",SUPPLIER,ADVANCED DEMAND SIDE MANAGEMENT LIMITED,300000020478882
Portsmouth City Council,PCC,Housing Revenue Account,Special Services,"Housing, Neighbourhood and Building Services",Premises-Related Expenditure,Water Services,23-Mar-22,6561718,-104.02,SUPPLIER,ADVANCED DEMAND SIDE MANAGEMENT LIMITED,300000020478882
Portsmouth City Council,PCC,Children's and Education Services,Primary Schools,Children's Services and Education,Premises-Related Expenditure,Energy costs,10-Mar-22,6559874,14.44,LIMITED COMPANY,CONTRACT NATURAL GAS LTD,300000020484079
Portsmouth City Council,PCC,Housing Revenue Account,Special Services,"Housing, Neighbourhood and Building Services",Premises-Related Expenditure,Water Services,23-Mar-22,6561718,-104.85,SUPPLIER,ADVANCED DEMAND SIDE MANAGEMENT LIMITED,300000020478882
Portsmouth City Council,PCC,Highways and Transport Services,"Airports, Harbours and Toll Facilities",Portsmouth International Port,Premises-Related Expenditure,Energy costs,10-Mar-22,6559874,2.4,LIMITED COMPANY,CONTRACT NATURAL GAS LTD,300000020484079
Portsmouth City Council,PCC,Children's and Education Services,Primary Schools,Children's Services and Education,Premises-Related Expenditure,Energy costs,10-Mar-22,6559874,153.9,LIMITED COMPANY,CONTRACT NATURAL GAS LTD,300000020484079
Portsmouth City Council,PCC,Children's and Education Services,Primary Schools,Children's Services and Education,Premises-Related Expenditure,Energy costs,10-Mar-22,6559874,15.64,LIMITED COMPANY,CONTRACT NATURAL GAS LTD,300000020484079
Portsmouth City Council,PCC,Housing Revenue Account,Special Services,"Housing, Neighbourhood and Building Services",Premises-Related Expenditure,Water Services,23-Mar-22,6561718,-453.51,SUPPLIER,ADVANCED DEMAND SIDE MANAGEMENT LIMITED,300000020478882
Portsmouth City Council,PCC,Housing Revenue Account,Special Services,"Housing, Neighbourhood and Building Services",Premises-Related Expenditure,Water Services,23-Mar-22,6561718,-139.9,SUPPLIER,ADVANCED DEMAND SIDE MANAGEMENT LIMITED,300000020478882
Portsmouth City Council,PCC,Housing Revenue Account,Special Services,"Housing, Neighbourhood and Building Services",Premises-Related Expenditure,Water Services,23-Mar-22,6561718,-31.37,SUPPLIER,ADVANCED DEMAND SIDE MANAGEMENT LIMITED,300000020478882
Portsmouth City Council,PCC,Environmental and Regulatory Services,Regulatory Services,"Housing, Neighbourhood and Building Services",Premises-Related Expenditure,Water Services,23-Mar-22,6561718,-76.64,SUPPLIER,ADVANCED DEMAND SIDE MANAGEMENT LIMITED,300000020478882
Portsmouth City Council,PCC,Environmental and Regulatory Services,Regulatory Services,"Housing, Neighbourhood and Building Services",Premises-Related Expenditure,Water Services,23-Mar-22,6561718,-615.25,SUPPLIER,ADVANCED DEMAND SIDE MANAGEMENT LIMITED,300000020478882
Portsmouth City Council,PCC,Environmental and Regulatory Services,Regulatory Services,"Housing, Neighbourhood and Building Services",Premises-Related Expenditure,Water Services,23-Mar-22,6561718,"-1,045.71",SUPPLIER,ADVANCED DEMAND SIDE MANAGEMENT LIMITED,300000020478882
Portsmouth City Council,PCC,Children's and Education Services,Primary Schools,Children's Services and Education,Premises-Related Expenditure,Energy costs,10-Mar-22,6559874,264.04,LIMITED COMPANY,CONTRACT NATURAL GAS LTD,300000020484079
Portsmouth City Council,PCC,Environmental and Regulatory Services,Regulatory Services,"Housing, Neighbourhood and Building Services",Premises-Related Expenditure,Water Services,23-Mar-22,6561718,-344.33,SUPPLIER,ADVANCED DEMAND SIDE MANAGEMENT LIMITED,300000020478882
Portsmouth City Council,PCC,Housing Revenue Account,"Rents, Rates, Taxes and Other Charges","Housing, Neighbourhood and Building Services",Premises-Related Expenditure,Water Services,23-Mar-22,6561718,-1.72,SUPPLIER,ADVANCED DEMAND SIDE MANAGEMENT LIMITED,300000020478882
Portsmouth City Council,PCC,Costs below Net Cost of Services,Trading,"Housing, Neighbourhood and Building Services",Premises-Related Expenditure,Water Services,23-Mar-22,6561718,-39.3,SUPPLIER,ADVANCED DEMAND SIDE MANAGEMENT LIMITED,300000020478882
Portsmouth City Council,PCC,Children's and Education Services,Primary Schools,Children's Services and Education,Premises-Related Expenditure,Energy costs,10-Mar-22,6559874,9.66,LIMITED COMPANY,CONTRACT NATURAL GAS LTD,300000020484079
Portsmouth City Council,PCC,Children's and Education Services,Children Looked After,Children's Services and Education,Premises-Related Expenditure,Energy costs,10-Mar-22,6559874,43.14,LIMITED COMPANY,CONTRACT NATURAL GAS LTD,300000020484079
Portsmouth City Council,PCC,Children's and Education Services,Children Looked After,Children's Services and Education,Premises-Related Expenditure,Energy costs,10-Mar-22,6559874,45.57,LIMITED COMPANY,CONTRACT NATURAL GAS LTD,300000020484079
Portsmouth City Council,PCC,Children's and Education Services,Other Children and Family Services,Children's Services and Education,Premises-Related Expenditure,Energy costs,10-Mar-22,6559874,29.56,LIMITED COMPANY,CONTRACT NATURAL GAS LTD,300000020484079
Portsmouth City Council,PCC,Costs below Net Cost of Services,Trading,"Housing, Neighbourhood and Building Services",Premises-Related Expenditure,Water Services,23-Mar-22,6561718,"-2,096.78",SUPPLIER,ADVANCED DEMAND SIDE MANAGEMENT LIMITED,300000020478882
Portsmouth City Council,PCC,Housing Revenue Account,"Rents, Rates, Taxes and Other Charges","Housing, Neighbourhood and Building Services",Premises-Related Expenditure,Water Services,23-Mar-22,6561718,-65.46,SUPPLIER,ADVANCED DEMAND SIDE MANAGEMENT LIMITED,300000020478882
Portsmouth City Council,PCC,Costs below Net Cost of Services,Trading,"Housing, Neighbourhood and Building Services",Premises-Related Expenditure,Water Services,23-Mar-22,6561718,"-1,450.82",SUPPLIER,ADVANCED DEMAND SIDE MANAGEMENT LIMITED,300000020478882
Portsmouth City Council,PCC,Adult Social Care,Social Care Activities,Adult Care,Third Party Payments,Other establishments,30-Mar-22,6563577,100.1,SUPPLIER,ADMIRAL CARE LTD,300000020477405
Portsmouth City Council,PCC,Housing Revenue Account,Special Services,"Housing, Neighbourhood and Building Services",Premises-Related Expenditure,Water Services,23-Mar-22,6561718,-101.23,SUPPLIER,ADVANCED DEMAND SIDE MANAGEMENT LIMITED,300000020478882
Portsmouth City Council,PCC,Children's and Education Services,Primary Schools,Children's Services and Education,Premises-Related Expenditure,Energy costs,10-Mar-22,6559874,186.46,LIMITED COMPANY,CONTRACT NATURAL GAS LTD,300000020484079
Portsmouth City Council,PCC,Adult Social Care,Mental Health Support Older People (65 - 74),Adult Care,Third Party Payments,Other establishments,30-Mar-22,6563577,103.11,SUPPLIER,ADMIRAL CARE LTD,300000020477405
Portsmouth City Council,PCC,Children's and Education Services,Children Looked After,Children's Services and Education,Premises-Related Expenditure,Energy costs,10-Mar-22,6559874,51.86,LIMITED COMPANY,CONTRACT NATURAL GAS LTD,300000020484079
Portsmouth City Council,PCC,Housing Revenue Account,Special Services,"Housing, Neighbourhood and Building Services",Premises-Related Expenditure,Water Services,23-Mar-22,6561718,-104.85,SUPPLIER,ADVANCED DEMAND SIDE MANAGEMENT LIMITED,300000020478882
Portsmouth City Council,PCC,Environmental and Regulatory Services,"Cemetery, Cremation and Mortuary Services","Culture, Leisure & Regulatory Services",Premises-Related Expenditure,Energy costs,10-Mar-22,6559874,51.35,LIMITED COMPANY,CONTRACT NATURAL GAS LTD,300000020484079
Portsmouth City Council,PCC,Cultural and Related Services,Library Service,"Culture, Leisure & Regulatory Services",Premises-Related Expenditure,Energy costs,10-Mar-22,6559874,29.78,LIMITED COMPANY,CONTRACT NATURAL GAS LTD,300000020484079
Portsmouth City Council,PCC,Cultural and Related Services,Library Service,"Culture, Leisure & Regulatory Services",Premises-Related Expenditure,Energy costs,10-Mar-22,6559874,2.4,LIMITED COMPANY,CONTRACT NATURAL GAS LTD,300000020484079
Portsmouth City Council,PCC,Costs below Net Cost of Services,Trading,Regeneration,Premises-Related Expenditure,Energy costs,10-Mar-22,6559874,2.4,LIMITED COMPANY,CONTRACT NATURAL GAS LTD,300000020484079
Portsmouth City Council,PCC,Cultural and Related Services,Library Service,"Culture, Leisure & Regulatory Services",Premises-Related Expenditure,Energy costs,10-Mar-22,6559874,71.05,LIMITED COMPANY,CONTRACT NATURAL GAS LTD,300000020484079
Portsmouth City Council,PCC,Housing Revenue Account,Special Services,"Housing, Neighbourhood and Building Services",Premises-Related Expenditure,Water Services,23-Mar-22,6561718,-450.72,SUPPLIER,ADVANCED DEMAND SIDE MANAGEMENT LIMITED,300000020478882
Portsmouth City Council,PCC,Housing Revenue Account,Special Services,"Housing, Neighbourhood and Building Services",Premises-Related Expenditure,Water Services,23-Mar-22,6561718,-139.9,SUPPLIER,ADVANCED DEMAND SIDE MANAGEMENT LIMITED,300000020478882
Portsmouth City Council,PCC,Children's and Education Services,Primary Schools,Children's Services and Education,Premises-Related Expenditure,Energy costs,10-Mar-22,6559874,116.21,LIMITED COMPANY,CONTRACT NATURAL GAS LTD,300000020484079
Portsmouth City Council,PCC,Children's and Education Services,Primary Schools,Children's Services and Education,Premises-Related Expenditure,Energy costs,10-Mar-22,6559874,124.25,LIMITED COMPANY,CONTRACT NATURAL GAS LTD,300000020484079
Portsmouth City Council,PCC,Children's and Education Services,Secondary Schools,Children's Services and Education,Premises-Related Expenditure,Energy costs,10-Mar-22,6559874,34.4,LIMITED COMPANY,CONTRACT NATURAL GAS LTD,300000020484079
Portsmouth City Council,PCC,Children's and Education Services,Secondary Schools,Children's Services and Education,Premises-Related Expenditure,Energy costs,10-Mar-22,6559874,58.1,LIMITED COMPANY,CONTRACT NATURAL GAS LTD,300000020484079
Portsmouth City Council,PCC,Planning Services,Business support,Regeneration,Premises-Related Expenditure,Energy costs,10-Mar-22,6559874,15.9,LIMITED COMPANY,CONTRACT NATURAL GAS LTD,300000020484079
Portsmouth City Council,PCC,Planning Services,Business support,Regeneration,Premises-Related Expenditure,Energy costs,10-Mar-22,6559874,393.81,LIMITED COMPANY,CONTRACT NATURAL GAS LTD,300000020484079
Portsmouth City Council,PCC,Planning Services,Business support,Regeneration,Premises-Related Expenditure,Energy costs,10-Mar-22,6559874,122.1,LIMITED COMPANY,CONTRACT NATURAL GAS LTD,300000020484079
Portsmouth City Council,PCC,Children's and Education Services,Primary Schools,Children's Services and Education,Premises-Related Expenditure,Energy costs,10-Mar-22,6559874,228.79,LIMITED COMPANY,CONTRACT NATURAL GAS LTD,300000020484079
Portsmouth City Council,PCC,Children's and Education Services,Primary Schools,Children's Services and Education,Premises-Related Expenditure,Energy costs,10-Mar-22,6559874,38.79,LIMITED COMPANY,CONTRACT NATURAL GAS LTD,300000020484079
Portsmouth City Council,PCC,Children's and Education Services,Primary Schools,Children's Services and Education,Premises-Related Expenditure,Energy costs,10-Mar-22,6559874,164.42,LIMITED COMPANY,CONTRACT NATURAL GAS LTD,300000020484079
Portsmouth City Council,PCC,Children's and Education Services,Primary Schools,Children's Services and Education,Premises-Related Expenditure,Energy costs,10-Mar-22,6559874,152.22,LIMITED COMPANY,CONTRACT NATURAL GAS LTD,300000020484079
Portsmouth City Council,PCC,Cultural and Related Services,Library Service,"Culture, Leisure & Regulatory Services",Premises-Related Expenditure,Energy costs,10-Mar-22,6559874,110.55,LIMITED COMPANY,CONTRACT NATURAL GAS LTD,300000020484079
Portsmouth City Council,PCC,Children's and Education Services,Family Support Services,Children's Services and Education,Premises-Related Expenditure,Energy costs,10-Mar-22,6559874,94.07,LIMITED COMPANY,CONTRACT NATURAL GAS LTD,300000020484079
Portsmouth City Council,PCC,Housing Revenue Account,Special Services,"Housing, Neighbourhood and Building Services",Premises-Related Expenditure,Water Services,23-Mar-22,6561718,-88.34,SUPPLIER,ADVANCED DEMAND SIDE MANAGEMENT LIMITED,300000020478882
Portsmouth City Council,PCC,Housing Revenue Account,"Rents, Rates, Taxes and Other Charges","Housing, Neighbourhood and Building Services",Premises-Related Expenditure,Water Services,23-Mar-22,6561718,-1.54,SUPPLIER,ADVANCED DEMAND SIDE MANAGEMENT LIMITED,300000020478882
Portsmouth City Council,PCC,Adult Social Care,Mental Health Support Older People (65 - 74),Adult Care,Third Party Payments,Other establishments,30-Mar-22,6563577,130.48,SUPPLIER,ADMIRAL CARE LTD,300000020477405
Portsmouth City Council,PCC,Cultural and Related Services,Culture and Heritage,"Culture, Leisure & Regulatory Services",Premises-Related Expenditure,Energy costs,10-Mar-22,6559874,2.4,LIMITED COMPANY,CONTRACT NATURAL GAS LTD,300000020484079
Portsmouth City Council,PCC,Central Services,"Registration of Births, Deaths and Marriages","Culture, Leisure & Regulatory Services",Premises-Related Expenditure,Energy costs,10-Mar-22,6559874,52.8,LIMITED COMPANY,CONTRACT NATURAL GAS LTD,300000020484079
Portsmouth City Council,PCC,Children's and Education Services,Primary Schools,Children's Services and Education,Premises-Related Expenditure,Energy costs,10-Mar-22,6559874,251.64,LIMITED COMPANY,CONTRACT NATURAL GAS LTD,300000020484079
Portsmouth City Council,PCC,Housing Revenue Account,Special Services,"Housing, Neighbourhood and Building Services",Premises-Related Expenditure,Water Services,23-Mar-22,6561718,-31.37,SUPPLIER,ADVANCED DEMAND SIDE MANAGEMENT LIMITED,300000020478882
Portsmouth City Council,PCC,Housing Revenue Account,Special Services,"Housing, Neighbourhood and Building Services",Premises-Related Expenditure,Water Services,23-Mar-22,6561718,-101.23,SUPPLIER,ADVANCED DEMAND SIDE MANAGEMENT LIMITED,300000020478882
Portsmouth City Council,PCC,Children's and Education Services,Primary Schools,Children's Services and Education,Premises-Related Expenditure,Energy costs,10-Mar-22,6559874,122.52,LIMITED COMPANY,CONTRACT NATURAL GAS LTD,300000020484079
Portsmouth City Council,PCC,Costs below Net Cost of Services,Trading,Regeneration,Premises-Related Expenditure,Energy costs,10-Mar-22,6559874,42.34,LIMITED COMPANY,CONTRACT NATURAL GAS LTD,300000020484079
Portsmouth City Council,PCC,Environmental and Regulatory Services,Regulatory Services,"Housing, Neighbourhood and Building Services",Premises-Related Expenditure,Water Services,23-Mar-22,6561718,-179.32,SUPPLIER,ADVANCED DEMAND SIDE MANAGEMENT LIMITED,300000020478882
Portsmouth City Council,PCC,Children's and Education Services,Family Support Services,Children's Services and Education,Premises-Related Expenditure,Energy costs,10-Mar-22,6559874,239.62,LIMITED COMPANY,CONTRACT NATURAL GAS LTD,300000020484079
Portsmouth City Council,PCC,Children's and Education Services,Primary Schools,Children's Services and Education,Premises-Related Expenditure,Energy costs,10-Mar-22,6559874,196.92,LIMITED COMPANY,CONTRACT NATURAL GAS LTD,300000020484079
Portsmouth City Council,PCC,Children's and Education Services,Primary Schools,Children's Services and Education,Premises-Related Expenditure,Energy costs,10-Mar-22,6559874,21.6,LIMITED COMPANY,CONTRACT NATURAL GAS LTD,300000020484079
Portsmouth City Council,PCC,Children's and Education Services,Primary Schools,Children's Services and Education,Premises-Related Expenditure,Energy costs,10-Mar-22,6559874,158.55,LIMITED COMPANY,CONTRACT NATURAL GAS LTD,300000020484079
Portsmouth City Council,PCC,Children's and Education Services,Primary Schools,Children's Services and Education,Premises-Related Expenditure,Energy costs,10-Mar-22,6559874,114.3,LIMITED COMPANY,CONTRACT NATURAL GAS LTD,300000020484079
Portsmouth City Council,PCC,Children's and Education Services,Primary Schools,Children's Services and Education,Premises-Related Expenditure,Energy costs,10-Mar-22,6559874,9,LIMITED COMPANY,CONTRACT NATURAL GAS LTD,300000020484079
Portsmouth City Council,PCC,Children's and Education Services,Primary Schools,Children's Services and Education,Premises-Related Expenditure,Energy costs,10-Mar-22,6559874,22.05,LIMITED COMPANY,CONTRACT NATURAL GAS LTD,300000020484079
Portsmouth City Council,PCC,Children's and Education Services,Secondary Schools,Children's Services and Education,Premises-Related Expenditure,Energy costs,10-Mar-22,6559874,18.14,LIMITED COMPANY,CONTRACT NATURAL GAS LTD,300000020484079
Portsmouth City Council,PCC,Children's and Education Services,Secondary Schools,Children's Services and Education,Premises-Related Expenditure,Energy costs,10-Mar-22,6559874,312.2,LIMITED COMPANY,CONTRACT NATURAL GAS LTD,300000020484079
Portsmouth City Council,PCC,Planning Services,Business support,Regeneration,Premises-Related Expenditure,Energy costs,10-Mar-22,6559874,700.1,LIMITED COMPANY,CONTRACT NATURAL GAS LTD,300000020484079
Portsmouth City Council,PCC,Children's and Education Services,Children Looked After,Children's Services and Education,Premises-Related Expenditure,Energy costs,10-Mar-22,6559874,143.79,LIMITED COMPANY,CONTRACT NATURAL GAS LTD,300000020484079
Portsmouth City Council,PCC,Cultural and Related Services,Library Service,"Culture, Leisure & Regulatory Services",Premises-Related Expenditure,Energy costs,10-Mar-22,6559874,137.1,LIMITED COMPANY,CONTRACT NATURAL GAS LTD,300000020484079
Portsmouth City Council,PCC,Adult Social Care,Mental Health Support Older People (65 - 74),Adult Care,Third Party Payments,Other establishments,30-Mar-22,6563577,149.12,SUPPLIER,ADMIRAL CARE LTD,300000020477405
Portsmouth City Council,PCC,Environmental and Regulatory Services,Regulatory Services,"Housing, Neighbourhood and Building Services",Premises-Related Expenditure,Water Services,23-Mar-22,6561718,-70.66,SUPPLIER,ADVANCED DEMAND SIDE MANAGEMENT LIMITED,300000020478882
Portsmouth City Council,PCC,Environmental and Regulatory Services,Regulatory Services,"Housing, Neighbourhood and Building Services",Premises-Related Expenditure,Water Services,23-Mar-22,6561718,-558.59,SUPPLIER,ADVANCED DEMAND SIDE MANAGEMENT LIMITED,300000020478882
Portsmouth City Council,PCC,Environmental and Regulatory Services,Regulatory Services,"Housing, Neighbourhood and Building Services",Premises-Related Expenditure,Water Services,23-Mar-22,6561718,-946.5,SUPPLIER,ADVANCED DEMAND SIDE MANAGEMENT LIMITED,300000020478882
Portsmouth City Council,PCC,Environmental and Regulatory Services,Regulatory Services,"Housing, Neighbourhood and Building Services",Premises-Related Expenditure,Water Services,23-Mar-22,6561718,-314.98,SUPPLIER,ADVANCED DEMAND SIDE MANAGEMENT LIMITED,300000020478882
Portsmouth City Council,PCC,Housing Revenue Account,"Rents, Rates, Taxes and Other Charges","Housing, Neighbourhood and Building Services",Premises-Related Expenditure,Water Services,23-Mar-22,6561718,-4.34,SUPPLIER,ADVANCED DEMAND SIDE MANAGEMENT LIMITED,300000020478882
Portsmouth City Council,PCC,Housing Revenue Account,Special Services,"Housing, Neighbourhood and Building Services",Premises-Related Expenditure,Water Services,23-Mar-22,6561718,-155.09,SUPPLIER,ADVANCED DEMAND SIDE MANAGEMENT LIMITED,300000020478882
Portsmouth City Council,PCC,Costs below Net Cost of Services,Trading,"Housing, Neighbourhood and Building Services",Premises-Related Expenditure,Water Services,23-Mar-22,6561718,-36.13,SUPPLIER,ADVANCED DEMAND SIDE MANAGEMENT LIMITED,300000020478882
Portsmouth City Council,PCC,Costs below Net Cost of Services,Trading,"Housing, Neighbourhood and Building Services",Premises-Related Expenditure,Water Services,23-Mar-22,6561718,"-1,892.66",SUPPLIER,ADVANCED DEMAND SIDE MANAGEMENT LIMITED,300000020478882
Portsmouth City Council,PCC,Housing Revenue Account,"Rents, Rates, Taxes and Other Charges","Housing, Neighbourhood and Building Services",Premises-Related Expenditure,Water Services,23-Mar-22,6561718,-56.69,SUPPLIER,ADVANCED DEMAND SIDE MANAGEMENT LIMITED,300000020478882
Portsmouth City Council,PCC,Environmental and Regulatory Services,Regulatory Services,"Housing, Neighbourhood and Building Services",Premises-Related Expenditure,Water Services,23-Mar-22,6561718,-292.62,SUPPLIER,ADVANCED DEMAND SIDE MANAGEMENT LIMITED,300000020478882
Portsmouth City Council,PCC,Costs below Net Cost of Services,Trading,"Housing, Neighbourhood and Building Services",Premises-Related Expenditure,Water Services,23-Mar-22,6561718,"-1,310.06",SUPPLIER,ADVANCED DEMAND SIDE MANAGEMENT LIMITED,300000020478882
Portsmouth City Council,PCC,Housing Revenue Account,Special Services,"Housing, Neighbourhood and Building Services",Premises-Related Expenditure,Water Services,23-Mar-22,6561718,19.65,SUPPLIER,ADVANCED DEMAND SIDE MANAGEMENT LIMITED,300000020478882
Portsmouth City Council,PCC,Highways and Transport Services,"Airports, Harbours and Toll Facilities",Portsmouth International Port,Premises-Related Expenditure,Energy costs,10-Mar-22,6559874,12.9,LIMITED COMPANY,CONTRACT NATURAL GAS LTD,300000020484079
Portsmouth City Council,PCC,Other,Suspense and Capital Schemes,Portsmouth International Port,Premises-Related Expenditure,Energy costs,10-Mar-22,6559874,61.81,LIMITED COMPANY,CONTRACT NATURAL GAS LTD,300000020484079
Portsmouth City Council,PCC,Housing Revenue Account,Special Services,"Housing, Neighbourhood and Building Services",Premises-Related Expenditure,Water Services,23-Mar-22,6561718,0.74,SUPPLIER,ADVANCED DEMAND SIDE MANAGEMENT LIMITED,300000020478882
Portsmouth City Council,PCC,Other,Suspense and Capital Schemes,"Housing, Neighbourhood and Building Services",Premises-Related Expenditure,Water Services,23-Mar-22,6561718,649.74,SUPPLIER,ADVANCED DEMAND SIDE MANAGEMENT LIMITED,300000020478882
Portsmouth City Council,PCC,Other,Suspense and Capital Schemes,"Housing, Neighbourhood and Building Services",Premises-Related Expenditure,Water Services,23-Mar-22,6561718,202.41,SUPPLIER,ADVANCED DEMAND SIDE MANAGEMENT LIMITED,300000020478882
Portsmouth City Council,PCC,Housing Revenue Account,Special Services,"Housing, Neighbourhood and Building Services",Premises-Related Expenditure,Water Services,23-Mar-22,6561718,42.64,SUPPLIER,ADVANCED DEMAND SIDE MANAGEMENT LIMITED,300000020478882
Portsmouth City Council,PCC,Housing Revenue Account,Special Services,"Housing, Neighbourhood and Building Services",Premises-Related Expenditure,Water Services,23-Mar-22,6561718,141.86,SUPPLIER,ADVANCED DEMAND SIDE MANAGEMENT LIMITED,300000020478882
Portsmouth City Council,PCC,Children's and Education Services,Other Education and Community Budget,Regeneration,Premises-Related Expenditure,Energy costs,10-Mar-22,6559874,73.85,LIMITED COMPANY,CONTRACT NATURAL GAS LTD,300000020484079
Portsmouth City Council,PCC,Housing Revenue Account,Special Services,"Housing, Neighbourhood and Building Services",Premises-Related Expenditure,Water Services,23-Mar-22,6561718,76.37,SUPPLIER,ADVANCED DEMAND SIDE MANAGEMENT LIMITED,300000020478882
Portsmouth City Council,PCC,Other,Suspense and Capital Schemes,Capital - Housing General Fund,Capital Charges,Capital Expenditure (WIP),23-Mar-22,6561718,89.27,SUPPLIER,ADVANCED DEMAND SIDE MANAGEMENT LIMITED,300000020478882
Portsmouth City Council,PCC,Costs below Net Cost of Services,Trading,Regeneration,Premises-Related Expenditure,Energy costs,10-Mar-22,6559874,"7,298.64",LIMITED COMPANY,CONTRACT NATURAL GAS LTD,300000020484079
Portsmouth City Council,PCC,Other,Suspense and Capital Schemes,Capital - Housing General Fund,Capital Charges,Capital Expenditure (WIP),23-Mar-22,6561718,84.74,SUPPLIER,ADVANCED DEMAND SIDE MANAGEMENT LIMITED,300000020478882
Portsmouth City Council,PCC,Housing Revenue Account,Special Services,"Housing, Neighbourhood and Building Services",Premises-Related Expenditure,Water Services,23-Mar-22,6561718,168.49,SUPPLIER,ADVANCED DEMAND SIDE MANAGEMENT LIMITED,300000020478882
Portsmouth City Council,PCC,Cultural and Related Services,Recreation and Sport,"Culture, Leisure & Regulatory Services",Premises-Related Expenditure,Energy costs,10-Mar-22,6559874,"5,632.35",LIMITED COMPANY,CONTRACT NATURAL GAS LTD,300000020484079
Portsmouth City Council,PCC,Housing Revenue Account,Special Services,"Housing, Neighbourhood and Building Services",Premises-Related Expenditure,Water Services,23-Mar-22,6561718,57.94,SUPPLIER,ADVANCED DEMAND SIDE MANAGEMENT LIMITED,300000020478882
Portsmouth City Council,PCC,Housing Revenue Account,Special Services,"Housing, Neighbourhood and Building Services",Premises-Related Expenditure,Water Services,23-Mar-22,6561718,53.02,SUPPLIER,ADVANCED DEMAND SIDE MANAGEMENT LIMITED,300000020478882
Portsmouth City Council,PCC,Housing Revenue Account,Special Services,"Housing, Neighbourhood and Building Services",Premises-Related Expenditure,Water Services,23-Mar-22,6561718,102.78,SUPPLIER,ADVANCED DEMAND SIDE MANAGEMENT LIMITED,300000020478882
Portsmouth City Council,PCC,Housing Revenue Account,Special Services,"Housing, Neighbourhood and Building Services",Premises-Related Expenditure,Water Services,23-Mar-22,6561718,72.51,SUPPLIER,ADVANCED DEMAND SIDE MANAGEMENT LIMITED,300000020478882
Portsmouth City Council,PCC,Cultural and Related Services,Culture and Heritage,"Culture, Leisure & Regulatory Services",Premises-Related Expenditure,Energy costs,10-Mar-22,6559874,186.27,LIMITED COMPANY,CONTRACT NATURAL GAS LTD,300000020484079
Portsmouth City Council,PCC,Cultural and Related Services,Culture and Heritage,"Culture, Leisure & Regulatory Services",Premises-Related Expenditure,Energy costs,10-Mar-22,6559874,103.22,LIMITED COMPANY,CONTRACT NATURAL GAS LTD,300000020484079
Portsmouth City Council,PCC,Housing Revenue Account,Special Services,"Housing, Neighbourhood and Building Services",Premises-Related Expenditure,Water Services,23-Mar-22,6561718,44.26,SUPPLIER,ADVANCED DEMAND SIDE MANAGEMENT LIMITED,300000020478882
Portsmouth City Council,PCC,Housing Revenue Account,Supervision and Management,"Housing, Neighbourhood and Building Services",Premises-Related Expenditure,Water Services,23-Mar-22,6561718,42.64,SUPPLIER,ADVANCED DEMAND SIDE MANAGEMENT LIMITED,300000020478882
Portsmouth City Council,PCC,Cultural and Related Services,Recreation and Sport,"Culture, Leisure & Regulatory Services",Premises-Related Expenditure,Energy costs,10-Mar-22,6559874,104.1,LIMITED COMPANY,CONTRACT NATURAL GAS LTD,300000020484079
Portsmouth City Council,PCC,Housing Revenue Account,"Rents, Rates, Taxes and Other Charges","Housing, Neighbourhood and Building Services",Premises-Related Expenditure,Water Services,23-Mar-22,6561718,2.22,SUPPLIER,ADVANCED DEMAND SIDE MANAGEMENT LIMITED,300000020478882
Portsmouth City Council,PCC,Highways and Transport Services,"Airports, Harbours and Toll Facilities",Portsmouth International Port,Premises-Related Expenditure,Energy costs,10-Mar-22,6559874,31.71,LIMITED COMPANY,CONTRACT NATURAL GAS LTD,300000020484079
Portsmouth City Council,PCC,Housing Revenue Account,"Rents, Rates, Taxes and Other Charges","Housing, Neighbourhood and Building Services",Premises-Related Expenditure,Water Services,23-Mar-22,6561718,0.74,SUPPLIER,ADVANCED DEMAND SIDE MANAGEMENT LIMITED,300000020478882
Portsmouth City Council,PCC,Children's and Education Services,Children Looked After,Children's Services and Education,Premises-Related Expenditure,Energy costs,10-Mar-22,6559874,117.46,LIMITED COMPANY,CONTRACT NATURAL GAS LTD,300000020484079
Portsmouth City Council,PCC,Housing Revenue Account,Special Services,"Housing, Neighbourhood and Building Services",Premises-Related Expenditure,Water Services,23-Mar-22,6561718,9.21,SUPPLIER,ADVANCED DEMAND SIDE MANAGEMENT LIMITED,300000020478882
Portsmouth City Council,PCC,Housing Revenue Account,Special Services,"Housing, Neighbourhood and Building Services",Premises-Related Expenditure,Water Services,23-Mar-22,6561718,6.14,SUPPLIER,ADVANCED DEMAND SIDE MANAGEMENT LIMITED,300000020478882
Portsmouth City Council,PCC,Highways and Transport Services,"Airports, Harbours and Toll Facilities",Portsmouth International Port,Premises-Related Expenditure,Energy costs,10-Mar-22,6559874,2.4,LIMITED COMPANY,CONTRACT NATURAL GAS LTD,300000020484079
Portsmouth City Council,PCC,Adult Social Care,Mental Health Support Older People (65 - 74),Adult Care,Third Party Payments,Other establishments,30-Mar-22,6563577,149.12,SUPPLIER,ADMIRAL CARE LTD,300000020477405
Portsmouth City Council,PCC,Adult Social Care,Mental Health Support Older People (65 - 74),Adult Care,Third Party Payments,Other establishments,30-Mar-22,6563577,173.4,SUPPLIER,ADMIRAL CARE LTD,300000020477405
Portsmouth City Council,PCC,Adult Social Care,Physical Support Older People (85+),Adult Care,Third Party Payments,Other establishments,30-Mar-22,6563577,214.36,SUPPLIER,ADMIRAL CARE LTD,300000020477405
Portsmouth City Council,PCC,Housing Revenue Account,Special Services,"Housing, Neighbourhood and Building Services",Premises-Related Expenditure,Water Services,23-Mar-22,6561718,9.62,SUPPLIER,ADVANCED DEMAND SIDE MANAGEMENT LIMITED,300000020478882
Portsmouth City Council,PCC,Children's and Education Services,Primary Schools,Children's Services and Education,Premises-Related Expenditure,Energy costs,10-Mar-22,6559874,42,LIMITED COMPANY,CONTRACT NATURAL GAS LTD,300000020484079
Portsmouth City Council,PCC,Housing Revenue Account,Special Services,"Housing, Neighbourhood and Building Services",Premises-Related Expenditure,Water Services,23-Mar-22,6561718,20.37,SUPPLIER,ADVANCED DEMAND SIDE MANAGEMENT LIMITED,300000020478882
Portsmouth City Council,PCC,Children's and Education Services,Other Education and Community Budget,Children's Services and Education,Premises-Related Expenditure,Energy costs,10-Mar-22,6559874,29.41,LIMITED COMPANY,CONTRACT NATURAL GAS LTD,300000020484079
Portsmouth City Council,PCC,Adult Social Care,Physical Support Older People (85+),Adult Care,Third Party Payments,Other establishments,30-Mar-22,6563577,251.64,SUPPLIER,ADMIRAL CARE LTD,300000020477405
Portsmouth City Council,PCC,Housing Revenue Account,Special Services,"Housing, Neighbourhood and Building Services",Premises-Related Expenditure,Water Services,23-Mar-22,6561718,44.26,SUPPLIER,ADVANCED DEMAND SIDE MANAGEMENT LIMITED,300000020478882
Portsmouth City Council,PCC,Housing Revenue Account,Supervision and Management,"Housing, Neighbourhood and Building Services",Premises-Related Expenditure,Water Services,23-Mar-22,6561718,30.22,SUPPLIER,ADVANCED DEMAND SIDE MANAGEMENT LIMITED,300000020478882
Portsmouth City Council,PCC,Housing Revenue Account,Special Services,"Housing, Neighbourhood and Building Services",Premises-Related Expenditure,Water Services,23-Mar-22,6561718,62.59,SUPPLIER,ADVANCED DEMAND SIDE MANAGEMENT LIMITED,300000020478882
Portsmouth City Council,PCC,Adult Social Care,Physical Support Older People (85+),Adult Care,Third Party Payments,Other establishments,30-Mar-22,6563577,251.64,SUPPLIER,ADMIRAL CARE LTD,300000020477405
Portsmouth City Council,PCC,Other,Suspense and Capital Schemes,Portsmouth International Port,Premises-Related Expenditure,Energy costs,10-Mar-22,6559874,269.76,LIMITED COMPANY,CONTRACT NATURAL GAS LTD,300000020484079
Portsmouth City Council,PCC,Housing Revenue Account,Special Services,"Housing, Neighbourhood and Building Services",Premises-Related Expenditure,Water Services,23-Mar-22,6561718,22.03,SUPPLIER,ADVANCED DEMAND SIDE MANAGEMENT LIMITED,300000020478882
Portsmouth City Council,PCC,Housing Revenue Account,"Rents, Rates, Taxes and Other Charges","Housing, Neighbourhood and Building Services",Premises-Related Expenditure,Water Services,23-Mar-22,6561718,30.22,SUPPLIER,ADVANCED DEMAND SIDE MANAGEMENT LIMITED,300000020478882
Portsmouth City Council,PCC,Children's and Education Services,Primary Schools,Children's Services and Education,Premises-Related Expenditure,Energy costs,10-Mar-22,6559874,75.6,LIMITED COMPANY,CONTRACT NATURAL GAS LTD,300000020484079
Portsmouth City Council,PCC,Housing Revenue Account,Non-dwelling Rents (Gross),"Housing, Neighbourhood and Building Services",Premises-Related Expenditure,Water Services,23-Mar-22,6561718,13.42,SUPPLIER,ADVANCED DEMAND SIDE MANAGEMENT LIMITED,300000020478882
Portsmouth City Council,PCC,Housing Revenue Account,"Rents, Rates, Taxes and Other Charges","Housing, Neighbourhood and Building Services",Premises-Related Expenditure,Water Services,23-Mar-22,6561718,109.21,SUPPLIER,ADVANCED DEMAND SIDE MANAGEMENT LIMITED,300000020478882
Portsmouth City Council,PCC,Housing Revenue Account,"Rents, Rates, Taxes and Other Charges","Housing, Neighbourhood and Building Services",Premises-Related Expenditure,Water Services,23-Mar-22,6561718,30.22,SUPPLIER,ADVANCED DEMAND SIDE MANAGEMENT LIMITED,300000020478882
Portsmouth City Council,PCC,Housing Revenue Account,"Rents, Rates, Taxes and Other Charges","Housing, Neighbourhood and Building Services",Premises-Related Expenditure,Water Services,23-Mar-22,6561718,28.58,SUPPLIER,ADVANCED DEMAND SIDE MANAGEMENT LIMITED,300000020478882
Portsmouth City Council,PCC,Children's and Education Services,Primary Schools,Children's Services and Education,Premises-Related Expenditure,Energy costs,10-Mar-22,6559874,65.61,LIMITED COMPANY,CONTRACT NATURAL GAS LTD,300000020484079
Portsmouth City Council,PCC,Housing Revenue Account,"Rents, Rates, Taxes and Other Charges","Housing, Neighbourhood and Building Services",Premises-Related Expenditure,Water Services,23-Mar-22,6561718,0.74,SUPPLIER,ADVANCED DEMAND SIDE MANAGEMENT LIMITED,300000020478882
Portsmouth City Council,PCC,Housing Revenue Account,"Rents, Rates, Taxes and Other Charges","Housing, Neighbourhood and Building Services",Premises-Related Expenditure,Water Services,23-Mar-22,6561718,78.35,SUPPLIER,ADVANCED DEMAND SIDE MANAGEMENT LIMITED,300000020478882
Portsmouth City Council,PCC,Housing Revenue Account,"Rents, Rates, Taxes and Other Charges","Housing, Neighbourhood and Building Services",Premises-Related Expenditure,Water Services,23-Mar-22,6561718,30.22,SUPPLIER,ADVANCED DEMAND SIDE MANAGEMENT LIMITED,300000020478882
Portsmouth City Council,PCC,Adult Social Care,Social Support - Support for Carer,Adult Care,Third Party Payments,Other establishments,30-Mar-22,6563577,256.64,SUPPLIER,ADMIRAL CARE LTD,300000020477405
Portsmouth City Council,PCC,Housing Revenue Account,"Rents, Rates, Taxes and Other Charges","Housing, Neighbourhood and Building Services",Premises-Related Expenditure,Water Services,23-Mar-22,6561718,30.22,SUPPLIER,ADVANCED DEMAND SIDE MANAGEMENT LIMITED,300000020478882
Portsmouth City Council,PCC,Housing Revenue Account,Special Services,"Housing, Neighbourhood and Building Services",Premises-Related Expenditure,Water Services,23-Mar-22,6561718,6.18,SUPPLIER,ADVANCED DEMAND SIDE MANAGEMENT LIMITED,300000020478882
Portsmouth City Council,PCC,Housing Revenue Account,"Rents, Rates, Taxes and Other Charges","Housing, Neighbourhood and Building Services",Premises-Related Expenditure,Water Services,23-Mar-22,6561718,86.7,SUPPLIER,ADVANCED DEMAND SIDE MANAGEMENT LIMITED,300000020478882
Portsmouth City Council,PCC,Children's and Education Services,Children Looked After,Children's Services and Education,Premises-Related Expenditure,Energy costs,10-Mar-22,6559874,154.13,LIMITED COMPANY,CONTRACT NATURAL GAS LTD,300000020484079
Portsmouth City Council,PCC,Children's and Education Services,Primary Schools,Children's Services and Education,Premises-Related Expenditure,Energy costs,10-Mar-22,6559874,369.38,LIMITED COMPANY,CONTRACT NATURAL GAS LTD,300000020484079
Portsmouth City Council,PCC,Children's and Education Services,Primary Schools,Children's Services and Education,Premises-Related Expenditure,Energy costs,10-Mar-22,6559874,157.66,LIMITED COMPANY,CONTRACT NATURAL GAS LTD,300000020484079
Portsmouth City Council,PCC,Housing Revenue Account,Supervision and Management,"Housing, Neighbourhood and Building Services",Premises-Related Expenditure,Water Services,23-Mar-22,6561718,0.74,SUPPLIER,ADVANCED DEMAND SIDE MANAGEMENT LIMITED,300000020478882
Portsmouth City Council,PCC,Children's and Education Services,Primary Schools,Children's Services and Education,Premises-Related Expenditure,Energy costs,10-Mar-22,6559874,75.02,LIMITED COMPANY,CONTRACT NATURAL GAS LTD,300000020484079
Portsmouth City Council,PCC,Housing Revenue Account,"Rents, Rates, Taxes and Other Charges","Housing, Neighbourhood and Building Services",Premises-Related Expenditure,Water Services,23-Mar-22,6561718,1.86,SUPPLIER,ADVANCED DEMAND SIDE MANAGEMENT LIMITED,300000020478882
Portsmouth City Council,PCC,Housing Revenue Account,"Rents, Rates, Taxes and Other Charges","Housing, Neighbourhood and Building Services",Premises-Related Expenditure,Water Services,23-Mar-22,6561718,78.35,SUPPLIER,ADVANCED DEMAND SIDE MANAGEMENT LIMITED,300000020478882
Portsmouth City Council,PCC,Housing Revenue Account,"Rents, Rates, Taxes and Other Charges","Housing, Neighbourhood and Building Services",Premises-Related Expenditure,Water Services,23-Mar-22,6561718,6.18,SUPPLIER,ADVANCED DEMAND SIDE MANAGEMENT LIMITED,300000020478882
Portsmouth City Council,PCC,Housing Revenue Account,Supervision and Management,"Housing, Neighbourhood and Building Services",Premises-Related Expenditure,Water Services,23-Mar-22,6561718,0.74,SUPPLIER,ADVANCED DEMAND SIDE MANAGEMENT LIMITED,300000020478882
Portsmouth City Council,PCC,Housing Revenue Account,Special Services,"Housing, Neighbourhood and Building Services",Premises-Related Expenditure,Water Services,23-Mar-22,6561718,9.69,SUPPLIER,ADVANCED DEMAND SIDE MANAGEMENT LIMITED,300000020478882
Portsmouth City Council,PCC,Housing Revenue Account,Special Services,"Housing, Neighbourhood and Building Services",Premises-Related Expenditure,Water Services,23-Mar-22,6561718,6.14,SUPPLIER,ADVANCED DEMAND SIDE MANAGEMENT LIMITED,300000020478882
Portsmouth City Council,PCC,Housing Revenue Account,Special Services,"Housing, Neighbourhood and Building Services",Premises-Related Expenditure,Water Services,23-Mar-22,6561718,6.18,SUPPLIER,ADVANCED DEMAND SIDE MANAGEMENT LIMITED,300000020478882
Portsmouth City Council,PCC,Housing Revenue Account,Special Services,"Housing, Neighbourhood and Building Services",Premises-Related Expenditure,Water Services,23-Mar-22,6561718,30.22,SUPPLIER,ADVANCED DEMAND SIDE MANAGEMENT LIMITED,300000020478882
Portsmouth City Council,PCC,Housing Revenue Account,"Rents, Rates, Taxes and Other Charges","Housing, Neighbourhood and Building Services",Premises-Related Expenditure,Water Services,23-Mar-22,6561718,28.09,SUPPLIER,ADVANCED DEMAND SIDE MANAGEMENT LIMITED,300000020478882
Portsmouth City Council,PCC,Housing Revenue Account,Special Services,"Housing, Neighbourhood and Building Services",Premises-Related Expenditure,Water Services,23-Mar-22,6561718,3.76,SUPPLIER,ADVANCED DEMAND SIDE MANAGEMENT LIMITED,300000020478882
Portsmouth City Council,PCC,Other,Suspense and Capital Schemes,"Housing, Neighbourhood and Building Services",Premises-Related Expenditure,Water Services,23-Mar-22,6561718,3.41,SUPPLIER,ADVANCED DEMAND SIDE MANAGEMENT LIMITED,300000020478882
Portsmouth City Council,PCC,Housing Revenue Account,Special Services,"Housing, Neighbourhood and Building Services",Premises-Related Expenditure,Water Services,23-Mar-22,6561718,-94.23,SUPPLIER,ADVANCED DEMAND SIDE MANAGEMENT LIMITED,300000020478882
Portsmouth City Council,PCC,Housing Revenue Account,Special Services,"Housing, Neighbourhood and Building Services",Premises-Related Expenditure,Water Services,23-Mar-22,6561718,-93.62,SUPPLIER,ADVANCED DEMAND SIDE MANAGEMENT LIMITED,300000020478882
Portsmouth City Council,PCC,Housing Revenue Account,Special Services,"Housing, Neighbourhood and Building Services",Premises-Related Expenditure,Water Services,23-Mar-22,6561718,-408.45,SUPPLIER,ADVANCED DEMAND SIDE MANAGEMENT LIMITED,300000020478882
Portsmouth City Council,PCC,Children's and Education Services,Primary Schools,Children's Services and Education,Premises-Related Expenditure,Energy costs,10-Mar-22,6559874,19.65,LIMITED COMPANY,CONTRACT NATURAL GAS LTD,300000020484079
Portsmouth City Council,PCC,Housing Revenue Account,Special Services,"Housing, Neighbourhood and Building Services",Premises-Related Expenditure,Water Services,23-Mar-22,6561718,-124.56,SUPPLIER,ADVANCED DEMAND SIDE MANAGEMENT LIMITED,300000020478882
Portsmouth City Council,PCC,Children's and Education Services,Primary Schools,Children's Services and Education,Premises-Related Expenditure,Energy costs,10-Mar-22,6559874,12.76,LIMITED COMPANY,CONTRACT NATURAL GAS LTD,300000020484079
Portsmouth City Council,PCC,Children's and Education Services,Primary Schools,Children's Services and Education,Premises-Related Expenditure,Energy costs,10-Mar-22,6559874,174.77,LIMITED COMPANY,CONTRACT NATURAL GAS LTD,300000020484079
Portsmouth City Council,PCC,Children's and Education Services,Children Looked After,Children's Services and Education,Premises-Related Expenditure,Energy costs,10-Mar-22,6559874,9.3,LIMITED COMPANY,CONTRACT NATURAL GAS LTD,300000020484079
Portsmouth City Council,PCC,Other,Suspense and Capital Schemes,Capital - Housing General Fund,Capital Charges,Capital Expenditure (WIP),23-Mar-22,6561718,-85.84,SUPPLIER,ADVANCED DEMAND SIDE MANAGEMENT LIMITED,300000020478882
Portsmouth City Council,PCC,Cultural and Related Services,Recreation and Sport,"Culture, Leisure & Regulatory Services",Premises-Related Expenditure,Energy costs,10-Mar-22,6559874,41.7,LIMITED COMPANY,CONTRACT NATURAL GAS LTD,300000020484079
Portsmouth City Council,PCC,Housing Revenue Account,Special Services,"Housing, Neighbourhood and Building Services",Premises-Related Expenditure,Water Services,23-Mar-22,6561718,-82.59,SUPPLIER,ADVANCED DEMAND SIDE MANAGEMENT LIMITED,300000020478882
Portsmouth City Council,PCC,Planning Services,Business support,Regeneration,Premises-Related Expenditure,Energy costs,10-Mar-22,6559874,238.81,LIMITED COMPANY,CONTRACT NATURAL GAS LTD,300000020484079
Portsmouth City Council,PCC,Children's and Education Services,Primary Schools,Children's Services and Education,Premises-Related Expenditure,Energy costs,10-Mar-22,6559874,44.21,LIMITED COMPANY,CONTRACT NATURAL GAS LTD,300000020484079
Portsmouth City Council,PCC,Children's and Education Services,Primary Schools,Children's Services and Education,Premises-Related Expenditure,Energy costs,10-Mar-22,6559874,72.85,LIMITED COMPANY,CONTRACT NATURAL GAS LTD,300000020484079
Portsmouth City Council,PCC,Children's and Education Services,Primary Schools,Children's Services and Education,Premises-Related Expenditure,Energy costs,10-Mar-22,6559874,237.47,LIMITED COMPANY,CONTRACT NATURAL GAS LTD,300000020484079
Portsmouth City Council,PCC,Housing Revenue Account,"Rents, Rates, Taxes and Other Charges","Housing, Neighbourhood and Building Services",Premises-Related Expenditure,Water Services,23-Mar-22,6561718,-0.69,SUPPLIER,ADVANCED DEMAND SIDE MANAGEMENT LIMITED,300000020478882
Portsmouth City Council,PCC,Children's and Education Services,Primary Schools,Children's Services and Education,Premises-Related Expenditure,Energy costs,10-Mar-22,6559874,"1,184.50",LIMITED COMPANY,CONTRACT NATURAL GAS LTD,300000020484079
Portsmouth City Council,PCC,Adult Social Care,Physical Support Older People (85+),Adult Care,Third Party Payments,Other establishments,30-Mar-22,6563577,260.96,SUPPLIER,ADMIRAL CARE LTD,300000020477405
Portsmouth City Council,PCC,Children's and Education Services,Children Looked After,Children's Services and Education,Premises-Related Expenditure,Energy costs,10-Mar-22,6559874,-20.68,LIMITED COMPANY,CONTRACT NATURAL GAS LTD,300000020484079
Portsmouth City Council,PCC,Housing Revenue Account,Special Services,"Housing, Neighbourhood and Building Services",Premises-Related Expenditure,Water Services,23-Mar-22,6561718,-27.16,SUPPLIER,ADVANCED DEMAND SIDE MANAGEMENT LIMITED,300000020478882
Portsmouth City Council,PCC,Cultural and Related Services,Library Service,"Culture, Leisure & Regulatory Services",Premises-Related Expenditure,Energy costs,10-Mar-22,6559874,2.39,LIMITED COMPANY,CONTRACT NATURAL GAS LTD,300000020484079
Portsmouth City Council,PCC,Cultural and Related Services,Library Service,"Culture, Leisure & Regulatory Services",Premises-Related Expenditure,Energy costs,10-Mar-22,6559874,2.48,LIMITED COMPANY,CONTRACT NATURAL GAS LTD,300000020484079
Portsmouth City Council,PCC,Housing Revenue Account,Special Services,"Housing, Neighbourhood and Building Services",Premises-Related Expenditure,Water Services,23-Mar-22,6561718,-8.86,SUPPLIER,ADVANCED DEMAND SIDE MANAGEMENT LIMITED,300000020478882
Portsmouth City Council,PCC,Housing Revenue Account,Special Services,"Housing, Neighbourhood and Building Services",Premises-Related Expenditure,Water Services,23-Mar-22,6561718,-91.43,SUPPLIER,ADVANCED DEMAND SIDE MANAGEMENT LIMITED,300000020478882
Portsmouth City Council,PCC,Housing Revenue Account,Special Services,"Housing, Neighbourhood and Building Services",Premises-Related Expenditure,Water Services,23-Mar-22,6561718,-107.37,SUPPLIER,ADVANCED DEMAND SIDE MANAGEMENT LIMITED,300000020478882
Portsmouth City Council,PCC,Children's and Education Services,Primary Schools,Children's Services and Education,Premises-Related Expenditure,Energy costs,10-Mar-22,6559874,172.79,LIMITED COMPANY,CONTRACT NATURAL GAS LTD,300000020484079
Portsmouth City Council,PCC,Children's and Education Services,Primary Schools,Children's Services and Education,Premises-Related Expenditure,Energy costs,10-Mar-22,6559874,-130.72,LIMITED COMPANY,CONTRACT NATURAL GAS LTD,300000020484079
Portsmouth City Council,PCC,Planning Services,Business support,Regeneration,Premises-Related Expenditure,Energy costs,10-Mar-22,6559874,126.17,LIMITED COMPANY,CONTRACT NATURAL GAS LTD,300000020484079
Portsmouth City Council,PCC,Children's and Education Services,Primary Schools,Children's Services and Education,Premises-Related Expenditure,Energy costs,10-Mar-22,6559874,91.44,LIMITED COMPANY,CONTRACT NATURAL GAS LTD,300000020484079
Portsmouth City Council,PCC,Children's and Education Services,Primary Schools,Children's Services and Education,Premises-Related Expenditure,Energy costs,10-Mar-22,6559874,17.88,LIMITED COMPANY,CONTRACT NATURAL GAS LTD,300000020484079
Portsmouth City Council,PCC,Housing Revenue Account,Special Services,"Housing, Neighbourhood and Building Services",Premises-Related Expenditure,Water Services,23-Mar-22,6561718,-39.95,SUPPLIER,ADVANCED DEMAND SIDE MANAGEMENT LIMITED,300000020478882
Portsmouth City Council,PCC,Adult Social Care,Mental Health Support Older People (65 - 74),Adult Care,Third Party Payments,Other establishments,30-Mar-22,6563577,293.58,SUPPLIER,ADMIRAL CARE LTD,300000020477405
Portsmouth City Council,PCC,Central Services,"Registration of Births, Deaths and Marriages","Culture, Leisure & Regulatory Services",Premises-Related Expenditure,Energy costs,10-Mar-22,6559874,54.72,LIMITED COMPANY,CONTRACT NATURAL GAS LTD,300000020484079
Portsmouth City Council,PCC,Housing Revenue Account,Special Services,"Housing, Neighbourhood and Building Services",Premises-Related Expenditure,Water Services,23-Mar-22,6561718,-54.55,SUPPLIER,ADVANCED DEMAND SIDE MANAGEMENT LIMITED,300000020478882
Portsmouth City Council,PCC,Costs below Net Cost of Services,Trading,Regeneration,Premises-Related Expenditure,Energy costs,10-Mar-22,6559874,12.32,LIMITED COMPANY,CONTRACT NATURAL GAS LTD,300000020484079
Portsmouth City Council,PCC,Children's and Education Services,Family Support Services,Children's Services and Education,Premises-Related Expenditure,Energy costs,10-Mar-22,6559874,156.78,LIMITED COMPANY,CONTRACT NATURAL GAS LTD,300000020484079
Portsmouth City Council,PCC,Children's and Education Services,Primary Schools,Children's Services and Education,Premises-Related Expenditure,Energy costs,10-Mar-22,6559874,-203.64,LIMITED COMPANY,CONTRACT NATURAL GAS LTD,300000020484079
Portsmouth City Council,PCC,Children's and Education Services,Primary Schools,Children's Services and Education,Premises-Related Expenditure,Energy costs,10-Mar-22,6559874,2.96,LIMITED COMPANY,CONTRACT NATURAL GAS LTD,300000020484079
Portsmouth City Council,PCC,Children's and Education Services,Children Looked After,Children's Services and Education,Premises-Related Expenditure,Energy costs,10-Mar-22,6559874,106.99,LIMITED COMPANY,CONTRACT NATURAL GAS LTD,300000020484079
Portsmouth City Council,PCC,Adult Social Care,Mental Health Support Older People (65 - 74),Adult Care,Third Party Payments,Other establishments,30-Mar-22,6563577,298.24,SUPPLIER,ADMIRAL CARE LTD,300000020477405
Portsmouth City Council,PCC,Housing Revenue Account,Supervision and Management,"Housing, Neighbourhood and Building Services",Premises-Related Expenditure,Water Services,23-Mar-22,6561718,-394.18,SUPPLIER,ADVANCED DEMAND SIDE MANAGEMENT LIMITED,300000020478882
Portsmouth City Council,PCC,Housing Revenue Account,Supervision and Management,"Housing, Neighbourhood and Building Services",Premises-Related Expenditure,Water Services,23-Mar-22,6561718,-9.21,SUPPLIER,ADVANCED DEMAND SIDE MANAGEMENT LIMITED,300000020478882
Portsmouth City Council,PCC,Housing Revenue Account,Supervision and Management,"Housing, Neighbourhood and Building Services",Premises-Related Expenditure,Water Services,23-Mar-22,6561718,-48.96,SUPPLIER,ADVANCED DEMAND SIDE MANAGEMENT LIMITED,300000020478882
Portsmouth City Council,PCC,Housing Revenue Account,Supervision and Management,"Housing, Neighbourhood and Building Services",Premises-Related Expenditure,Water Services,23-Mar-22,6561718,-4.85,SUPPLIER,ADVANCED DEMAND SIDE MANAGEMENT LIMITED,300000020478882
Portsmouth City Council,PCC,Housing Revenue Account,Supervision and Management,"Housing, Neighbourhood and Building Services",Premises-Related Expenditure,Water Services,23-Mar-22,6561718,-23.18,SUPPLIER,ADVANCED DEMAND SIDE MANAGEMENT LIMITED,300000020478882
Portsmouth City Council,PCC,Housing Revenue Account,Supervision and Management,"Housing, Neighbourhood and Building Services",Premises-Related Expenditure,Water Services,23-Mar-22,6561718,-31.93,SUPPLIER,ADVANCED DEMAND SIDE MANAGEMENT LIMITED,300000020478882
Portsmouth City Council,PCC,Housing Revenue Account,Special Services,"Housing, Neighbourhood and Building Services",Premises-Related Expenditure,Water Services,23-Mar-22,6561718,-62.3,SUPPLIER,ADVANCED DEMAND SIDE MANAGEMENT LIMITED,300000020478882
Portsmouth City Council,PCC,Housing Revenue Account,Special Services,"Housing, Neighbourhood and Building Services",Premises-Related Expenditure,Water Services,23-Mar-22,6561718,-4.85,SUPPLIER,ADVANCED DEMAND SIDE MANAGEMENT LIMITED,300000020478882
Portsmouth City Council,PCC,Environmental and Regulatory Services,Regulatory Services,"Housing, Neighbourhood and Building Services",Premises-Related Expenditure,Water Services,23-Mar-22,6561718,-95.84,SUPPLIER,ADVANCED DEMAND SIDE MANAGEMENT LIMITED,300000020478882
Portsmouth City Council,PCC,Environmental and Regulatory Services,Regulatory Services,"Housing, Neighbourhood and Building Services",Premises-Related Expenditure,Water Services,23-Mar-22,6561718,-199.23,SUPPLIER,ADVANCED DEMAND SIDE MANAGEMENT LIMITED,300000020478882
Portsmouth City Council,PCC,Cultural and Related Services,Recreation and Sport,"Culture, Leisure & Regulatory Services",Premises-Related Expenditure,Energy costs,10-Mar-22,6559874,613.41,LIMITED COMPANY,CONTRACT NATURAL GAS LTD,300000020484079
Portsmouth City Council,PCC,Planning Services,Business support,Regeneration,Premises-Related Expenditure,Energy costs,10-Mar-22,6559874,21.4,LIMITED COMPANY,CONTRACT NATURAL GAS LTD,300000020484079
Portsmouth City Council,PCC,Environmental and Regulatory Services,Regulatory Services,"Housing, Neighbourhood and Building Services",Premises-Related Expenditure,Water Services,23-Mar-22,6561718,-651.71,SUPPLIER,ADVANCED DEMAND SIDE MANAGEMENT LIMITED,300000020478882
Portsmouth City Council,PCC,Environmental and Regulatory Services,Regulatory Services,"Housing, Neighbourhood and Building Services",Premises-Related Expenditure,Water Services,23-Mar-22,6561718,-76.64,SUPPLIER,ADVANCED DEMAND SIDE MANAGEMENT LIMITED,300000020478882
Portsmouth City Council,PCC,Cultural and Related Services,Recreation and Sport,"Culture, Leisure & Regulatory Services",Premises-Related Expenditure,Energy costs,10-Mar-22,6559874,6.64,LIMITED COMPANY,CONTRACT NATURAL GAS LTD,300000020484079
Portsmouth City Council,PCC,Cultural and Related Services,Open Spaces,"Culture, Leisure & Regulatory Services",Premises-Related Expenditure,Energy costs,10-Mar-22,6559874,35.96,LIMITED COMPANY,CONTRACT NATURAL GAS LTD,300000020484079
Portsmouth City Council,PCC,Environmental and Regulatory Services,Regulatory Services,"Housing, Neighbourhood and Building Services",Premises-Related Expenditure,Water Services,23-Mar-22,6561718,-615.25,SUPPLIER,ADVANCED DEMAND SIDE MANAGEMENT LIMITED,300000020478882
Portsmouth City Council,PCC,Adult Social Care,Social Support - Support for Carer,Adult Care,Third Party Payments,Other establishments,30-Mar-22,6563577,384.96,SUPPLIER,ADMIRAL CARE LTD,300000020477405
Portsmouth City Council,PCC,Adult Social Care,Social Support - Support for Carer,Adult Care,Third Party Payments,Other establishments,30-Mar-22,6563577,384.96,SUPPLIER,ADMIRAL CARE LTD,300000020477405
Portsmouth City Council,PCC,Children's and Education Services,Primary Schools,Children's Services and Education,Premises-Related Expenditure,Energy costs,10-Mar-22,6559874,2.05,LIMITED COMPANY,CONTRACT NATURAL GAS LTD,300000020484079
Portsmouth City Council,PCC,Environmental and Regulatory Services,Regulatory Services,"Housing, Neighbourhood and Building Services",Premises-Related Expenditure,Water Services,23-Mar-22,6561718,"-1,048.51",SUPPLIER,ADVANCED DEMAND SIDE MANAGEMENT LIMITED,300000020478882
Portsmouth City Council,PCC,Children's and Education Services,Other Education and Community Budget,Children's Services and Education,Premises-Related Expenditure,Energy costs,10-Mar-22,6559874,32.82,LIMITED COMPANY,CONTRACT NATURAL GAS LTD,300000020484079
Portsmouth City Council,PCC,Adult Social Care,Social Support - Support for Carer,Adult Care,Third Party Payments,Other establishments,30-Mar-22,6563577,417.04,SUPPLIER,ADMIRAL CARE LTD,300000020477405
Portsmouth City Council,PCC,Environmental and Regulatory Services,Regulatory Services,"Housing, Neighbourhood and Building Services",Premises-Related Expenditure,Water Services,23-Mar-22,6561718,-347.13,SUPPLIER,ADVANCED DEMAND SIDE MANAGEMENT LIMITED,300000020478882
Portsmouth City Council,PCC,Housing Revenue Account,"Rents, Rates, Taxes and Other Charges","Housing, Neighbourhood and Building Services",Premises-Related Expenditure,Water Services,23-Mar-22,6561718,-12.89,SUPPLIER,ADVANCED DEMAND SIDE MANAGEMENT LIMITED,300000020478882
Portsmouth City Council,PCC,Adult Social Care,Physical Support Older People (85+),Adult Care,Third Party Payments,Other establishments,30-Mar-22,6563577,520.2,SUPPLIER,ADMIRAL CARE LTD,300000020477405
Portsmouth City Council,PCC,Other,Suspense and Capital Schemes,Portsmouth International Port,Premises-Related Expenditure,Energy costs,10-Mar-22,6559874,-243.03,LIMITED COMPANY,CONTRACT NATURAL GAS LTD,300000020484079
Portsmouth City Council,PCC,Housing Revenue Account,"Rents, Rates, Taxes and Other Charges","Housing, Neighbourhood and Building Services",Premises-Related Expenditure,Water Services,23-Mar-22,6561718,-1.72,SUPPLIER,ADVANCED DEMAND SIDE MANAGEMENT LIMITED,300000020478882
Portsmouth City Council,PCC,Housing Revenue Account,Special Services,"Housing, Neighbourhood and Building Services",Premises-Related Expenditure,Water Services,23-Mar-22,6561718,-12.01,SUPPLIER,ADVANCED DEMAND SIDE MANAGEMENT LIMITED,300000020478882
Portsmouth City Council,PCC,Children's and Education Services,Primary Schools,Children's Services and Education,Premises-Related Expenditure,Energy costs,10-Mar-22,6559874,241.16,LIMITED COMPANY,CONTRACT NATURAL GAS LTD,300000020484079
Portsmouth City Council,PCC,Housing Revenue Account,Special Services,"Housing, Neighbourhood and Building Services",Premises-Related Expenditure,Water Services,23-Mar-22,6561718,-16.11,SUPPLIER,ADVANCED DEMAND SIDE MANAGEMENT LIMITED,300000020478882
Portsmouth City Council,PCC,Housing Revenue Account,Special Services,"Housing, Neighbourhood and Building Services",Premises-Related Expenditure,Water Services,23-Mar-22,6561718,-169.12,SUPPLIER,ADVANCED DEMAND SIDE MANAGEMENT LIMITED,300000020478882
Portsmouth City Council,PCC,Costs below Net Cost of Services,Trading,"Housing, Neighbourhood and Building Services",Premises-Related Expenditure,Water Services,23-Mar-22,6561718,-40.08,SUPPLIER,ADVANCED DEMAND SIDE MANAGEMENT LIMITED,300000020478882
Portsmouth City Council,PCC,Children's and Education Services,Primary Schools,Children's Services and Education,Premises-Related Expenditure,Energy costs,10-Mar-22,6559874,123.44,LIMITED COMPANY,CONTRACT NATURAL GAS LTD,300000020484079
Portsmouth City Council,PCC,Costs below Net Cost of Services,Trading,"Housing, Neighbourhood and Building Services",Premises-Related Expenditure,Water Services,23-Mar-22,6561718,"-2,096.00",SUPPLIER,ADVANCED DEMAND SIDE MANAGEMENT LIMITED,300000020478882
Portsmouth City Council,PCC,Adult Social Care,Physical Support Older People (85+),Adult Care,Third Party Payments,Other establishments,30-Mar-22,6563577,520.2,SUPPLIER,ADMIRAL CARE LTD,300000020477405
Portsmouth City Council,PCC,Housing Revenue Account,Special Services,"Housing, Neighbourhood and Building Services",Premises-Related Expenditure,Water Services,23-Mar-22,6561718,284.76,SUPPLIER,ADVANCED DEMAND SIDE MANAGEMENT LIMITED,300000020478882
Portsmouth City Council,PCC,Housing Revenue Account,Special Services,"Housing, Neighbourhood and Building Services",Premises-Related Expenditure,Water Services,23-Mar-22,6561718,63.3,SUPPLIER,ADVANCED DEMAND SIDE MANAGEMENT LIMITED,300000020478882
Portsmouth City Council,PCC,Housing Revenue Account,Special Services,"Housing, Neighbourhood and Building Services",Premises-Related Expenditure,Water Services,23-Mar-22,6561718,356.07,SUPPLIER,ADVANCED DEMAND SIDE MANAGEMENT LIMITED,300000020478882
Portsmouth City Council,PCC,Children's and Education Services,Children Looked After,Children's Services and Education,Premises-Related Expenditure,Energy costs,10-Mar-22,6559874,8.85,LIMITED COMPANY,CONTRACT NATURAL GAS LTD,300000020484079
Portsmouth City Council,PCC,Housing Revenue Account,Special Services,"Housing, Neighbourhood and Building Services",Premises-Related Expenditure,Water Services,23-Mar-22,6561718,44.66,SUPPLIER,ADVANCED DEMAND SIDE MANAGEMENT LIMITED,300000020478882
Portsmouth City Council,PCC,Children's and Education Services,Primary Schools,Children's Services and Education,Premises-Related Expenditure,Energy costs,10-Mar-22,6559874,15.24,LIMITED COMPANY,CONTRACT NATURAL GAS LTD,300000020484079
Portsmouth City Council,PCC,Housing Revenue Account,Special Services,"Housing, Neighbourhood and Building Services",Premises-Related Expenditure,Water Services,23-Mar-22,6561718,88.28,SUPPLIER,ADVANCED DEMAND SIDE MANAGEMENT LIMITED,300000020478882
Portsmouth City Council,PCC,Housing Revenue Account,Special Services,"Housing, Neighbourhood and Building Services",Premises-Related Expenditure,Water Services,23-Mar-22,6561718,152,SUPPLIER,ADVANCED DEMAND SIDE MANAGEMENT LIMITED,300000020478882
Portsmouth City Council,PCC,Housing Revenue Account,Special Services,"Housing, Neighbourhood and Building Services",Premises-Related Expenditure,Water Services,23-Mar-22,6561718,62.93,SUPPLIER,ADVANCED DEMAND SIDE MANAGEMENT LIMITED,300000020478882
Portsmouth City Council,PCC,Housing Revenue Account,Special Services,"Housing, Neighbourhood and Building Services",Premises-Related Expenditure,Water Services,23-Mar-22,6561718,472.22,SUPPLIER,ADVANCED DEMAND SIDE MANAGEMENT LIMITED,300000020478882
Portsmouth City Council,PCC,Housing Revenue Account,Special Services,"Housing, Neighbourhood and Building Services",Premises-Related Expenditure,Water Services,23-Mar-22,6561718,63.37,SUPPLIER,ADVANCED DEMAND SIDE MANAGEMENT LIMITED,300000020478882
Portsmouth City Council,PCC,Housing Revenue Account,Special Services,"Housing, Neighbourhood and Building Services",Premises-Related Expenditure,Water Services,23-Mar-22,6561718,509.2,SUPPLIER,ADVANCED DEMAND SIDE MANAGEMENT LIMITED,300000020478882
Portsmouth City Council,PCC,Housing Revenue Account,Special Services,"Housing, Neighbourhood and Building Services",Premises-Related Expenditure,Water Services,23-Mar-22,6561718,242.86,SUPPLIER,ADVANCED DEMAND SIDE MANAGEMENT LIMITED,300000020478882
Portsmouth City Council,PCC,Housing Revenue Account,Special Services,"Housing, Neighbourhood and Building Services",Premises-Related Expenditure,Water Services,23-Mar-22,6561718,28.57,SUPPLIER,ADVANCED DEMAND SIDE MANAGEMENT LIMITED,300000020478882
Portsmouth City Council,PCC,Housing Revenue Account,Special Services,"Housing, Neighbourhood and Building Services",Premises-Related Expenditure,Water Services,23-Mar-22,6561718,22.03,SUPPLIER,ADVANCED DEMAND SIDE MANAGEMENT LIMITED,300000020478882
Portsmouth City Council,PCC,Housing Revenue Account,Special Services,"Housing, Neighbourhood and Building Services",Premises-Related Expenditure,Water Services,23-Mar-22,6561718,475.6,SUPPLIER,ADVANCED DEMAND SIDE MANAGEMENT LIMITED,300000020478882
Portsmouth City Council,PCC,Housing Revenue Account,Special Services,"Housing, Neighbourhood and Building Services",Premises-Related Expenditure,Water Services,23-Mar-22,6561718,193.06,SUPPLIER,ADVANCED DEMAND SIDE MANAGEMENT LIMITED,300000020478882
Portsmouth City Council,PCC,Housing Revenue Account,Special Services,"Housing, Neighbourhood and Building Services",Premises-Related Expenditure,Water Services,23-Mar-22,6561718,"1,808.39",SUPPLIER,ADVANCED DEMAND SIDE MANAGEMENT LIMITED,300000020478882
Portsmouth City Council,PCC,Housing Revenue Account,Special Services,"Housing, Neighbourhood and Building Services",Premises-Related Expenditure,Water Services,23-Mar-22,6561718,265.13,SUPPLIER,ADVANCED DEMAND SIDE MANAGEMENT LIMITED,300000020478882
Portsmouth City Council,PCC,Children's and Education Services,Primary Schools,Children's Services and Education,Premises-Related Expenditure,Energy costs,10-Mar-22,6559874,1.39,LIMITED COMPANY,CONTRACT NATURAL GAS LTD,300000020484079
Portsmouth City Council,PCC,Children's and Education Services,Secondary Schools,Children's Services and Education,Premises-Related Expenditure,Energy costs,10-Mar-22,6559874,65.99,LIMITED COMPANY,CONTRACT NATURAL GAS LTD,300000020484079
Portsmouth City Council,PCC,Environmental and Regulatory Services,Regulatory Services,"Housing, Neighbourhood and Building Services",Premises-Related Expenditure,Water Services,23-Mar-22,6561718,-296.69,SUPPLIER,ADVANCED DEMAND SIDE MANAGEMENT LIMITED,300000020478882
Portsmouth City Council,PCC,Environmental and Regulatory Services,Regulatory Services,"Housing, Neighbourhood and Building Services",Premises-Related Expenditure,Water Services,23-Mar-22,6561718,-584.65,SUPPLIER,ADVANCED DEMAND SIDE MANAGEMENT LIMITED,300000020478882
Portsmouth City Council,PCC,Costs below Net Cost of Services,Trading,Regeneration,Premises-Related Expenditure,Energy costs,10-Mar-22,6559874,"3,687.22",LIMITED COMPANY,CONTRACT NATURAL GAS LTD,300000020484079
Portsmouth City Council,PCC,Housing Revenue Account,"Rents, Rates, Taxes and Other Charges","Housing, Neighbourhood and Building Services",Premises-Related Expenditure,Water Services,23-Mar-22,6561718,-62.66,SUPPLIER,ADVANCED DEMAND SIDE MANAGEMENT LIMITED,300000020478882
Portsmouth City Council,PCC,Environmental and Regulatory Services,Regulatory Services,"Housing, Neighbourhood and Building Services",Premises-Related Expenditure,Water Services,23-Mar-22,6561718,-6.42,SUPPLIER,ADVANCED DEMAND SIDE MANAGEMENT LIMITED,300000020478882
Portsmouth City Council,PCC,Environmental and Regulatory Services,Regulatory Services,"Housing, Neighbourhood and Building Services",Premises-Related Expenditure,Water Services,23-Mar-22,6561718,-321.98,SUPPLIER,ADVANCED DEMAND SIDE MANAGEMENT LIMITED,300000020478882
Portsmouth City Council,PCC,Costs below Net Cost of Services,Trading,"Housing, Neighbourhood and Building Services",Premises-Related Expenditure,Water Services,23-Mar-22,6561718,"-1,450.82",SUPPLIER,ADVANCED DEMAND SIDE MANAGEMENT LIMITED,300000020478882
Portsmouth City Council,PCC,Housing Revenue Account,Special Services,"Housing, Neighbourhood and Building Services",Premises-Related Expenditure,Water Services,23-Mar-22,6561718,-631.26,SUPPLIER,ADVANCED DEMAND SIDE MANAGEMENT LIMITED,300000020478882
Portsmouth City Council,PCC,Housing Revenue Account,Special Services,"Housing, Neighbourhood and Building Services",Premises-Related Expenditure,Water Services,23-Mar-22,6561718,-48.69,SUPPLIER,ADVANCED DEMAND SIDE MANAGEMENT LIMITED,300000020478882
Portsmouth City Council,PCC,Housing Revenue Account,Special Services,"Housing, Neighbourhood and Building Services",Premises-Related Expenditure,Water Services,23-Mar-22,6561718,-101.23,SUPPLIER,ADVANCED DEMAND SIDE MANAGEMENT LIMITED,300000020478882
Portsmouth City Council,PCC,Housing Revenue Account,Special Services,"Housing, Neighbourhood and Building Services",Premises-Related Expenditure,Water Services,23-Mar-22,6561718,-104.85,SUPPLIER,ADVANCED DEMAND SIDE MANAGEMENT LIMITED,300000020478882
Portsmouth City Council,PCC,Highways and Transport Services,"Airports, Harbours and Toll Facilities",Portsmouth International Port,Premises-Related Expenditure,Energy costs,10-Mar-22,6559874,0.57,LIMITED COMPANY,CONTRACT NATURAL GAS LTD,300000020484079
Portsmouth City Council,PCC,Other,Suspense and Capital Schemes,Portsmouth International Port,Premises-Related Expenditure,Energy costs,10-Mar-22,6559874,5.14,LIMITED COMPANY,CONTRACT NATURAL GAS LTD,300000020484079
Portsmouth City Council,PCC,Housing Revenue Account,Special Services,"Housing, Neighbourhood and Building Services",Premises-Related Expenditure,Water Services,23-Mar-22,6561718,-173.88,SUPPLIER,ADVANCED DEMAND SIDE MANAGEMENT LIMITED,300000020478882
Portsmouth City Council,PCC,Housing Revenue Account,Special Services,"Housing, Neighbourhood and Building Services",Premises-Related Expenditure,Water Services,23-Mar-22,6561718,-20.19,SUPPLIER,ADVANCED DEMAND SIDE MANAGEMENT LIMITED,300000020478882
Portsmouth City Council,PCC,Housing Revenue Account,Special Services,"Housing, Neighbourhood and Building Services",Premises-Related Expenditure,Water Services,23-Mar-22,6561718,-143.07,SUPPLIER,ADVANCED DEMAND SIDE MANAGEMENT LIMITED,300000020478882
Portsmouth City Council,PCC,Children's and Education Services,Primary Schools,Children's Services and Education,Premises-Related Expenditure,Energy costs,10-Mar-22,6559874,1.1,LIMITED COMPANY,CONTRACT NATURAL GAS LTD,300000020484079
Portsmouth City Council,PCC,Housing Revenue Account,Special Services,"Housing, Neighbourhood and Building Services",Premises-Related Expenditure,Water Services,23-Mar-22,6561718,-453.51,SUPPLIER,ADVANCED DEMAND SIDE MANAGEMENT LIMITED,300000020478882
Portsmouth City Council,PCC,Children's and Education Services,Primary Schools,Children's Services and Education,Premises-Related Expenditure,Energy costs,10-Mar-22,6559874,13.29,LIMITED COMPANY,CONTRACT NATURAL GAS LTD,300000020484079
Portsmouth City Council,PCC,Other,Suspense and Capital Schemes,"Housing, Neighbourhood and Building Services",Premises-Related Expenditure,Water Services,23-Mar-22,6561718,-216.62,SUPPLIER,ADVANCED DEMAND SIDE MANAGEMENT LIMITED,300000020478882
Portsmouth City Council,PCC,Children's and Education Services,Primary Schools,Children's Services and Education,Premises-Related Expenditure,Energy costs,10-Mar-22,6559874,44.58,LIMITED COMPANY,CONTRACT NATURAL GAS LTD,300000020484079
Portsmouth City Council,PCC,Children's and Education Services,Primary Schools,Children's Services and Education,Premises-Related Expenditure,Energy costs,10-Mar-22,6559874,850.71,LIMITED COMPANY,CONTRACT NATURAL GAS LTD,300000020484079
Portsmouth City Council,PCC,Housing Revenue Account,Special Services,"Housing, Neighbourhood and Building Services",Premises-Related Expenditure,Water Services,23-Mar-22,6561718,-139.9,SUPPLIER,ADVANCED DEMAND SIDE MANAGEMENT LIMITED,300000020478882
Portsmouth City Council,PCC,Other,Suspense and Capital Schemes,Capital - Housing General Fund,Capital Charges,Capital Expenditure (WIP),23-Mar-22,6561718,-95.64,SUPPLIER,ADVANCED DEMAND SIDE MANAGEMENT LIMITED,300000020478882
Portsmouth City Council,PCC,Housing Revenue Account,Special Services,"Housing, Neighbourhood and Building Services",Premises-Related Expenditure,Water Services,23-Mar-22,6561718,-56.71,SUPPLIER,ADVANCED DEMAND SIDE MANAGEMENT LIMITED,300000020478882
Portsmouth City Council,PCC,Children's and Education Services,Children Looked After,Children's Services and Education,Premises-Related Expenditure,Energy costs,10-Mar-22,6559874,15.52,LIMITED COMPANY,CONTRACT NATURAL GAS LTD,300000020484079
Portsmouth City Council,PCC,Children's and Education Services,Children Looked After,Children's Services and Education,Premises-Related Expenditure,Energy costs,10-Mar-22,6559874,344.83,LIMITED COMPANY,CONTRACT NATURAL GAS LTD,300000020484079
Portsmouth City Council,PCC,Children's and Education Services,Other Children and Family Services,Children's Services and Education,Premises-Related Expenditure,Energy costs,10-Mar-22,6559874,237.3,LIMITED COMPANY,CONTRACT NATURAL GAS LTD,300000020484079
Portsmouth City Council,PCC,Housing Revenue Account,Special Services,"Housing, Neighbourhood and Building Services",Premises-Related Expenditure,Water Services,23-Mar-22,6561718,-88.34,SUPPLIER,ADVANCED DEMAND SIDE MANAGEMENT LIMITED,300000020478882
Portsmouth City Council,PCC,Housing Revenue Account,"Rents, Rates, Taxes and Other Charges","Housing, Neighbourhood and Building Services",Premises-Related Expenditure,Water Services,23-Mar-22,6561718,-0.76,SUPPLIER,ADVANCED DEMAND SIDE MANAGEMENT LIMITED,300000020478882
Portsmouth City Council,PCC,Housing Revenue Account,Special Services,"Housing, Neighbourhood and Building Services",Premises-Related Expenditure,Water Services,23-Mar-22,6561718,-3.62,SUPPLIER,ADVANCED DEMAND SIDE MANAGEMENT LIMITED,300000020478882
Portsmouth City Council,PCC,Adult Social Care,Physical Support Older People (85+),Adult Care,Third Party Payments,Other establishments,30-Mar-22,6563577,521.92,SUPPLIER,ADMIRAL CARE LTD,300000020477405
Portsmouth City Council,PCC,Housing Revenue Account,Special Services,"Housing, Neighbourhood and Building Services",Premises-Related Expenditure,Water Services,23-Mar-22,6561718,-31.37,SUPPLIER,ADVANCED DEMAND SIDE MANAGEMENT LIMITED,300000020478882
Portsmouth City Council,PCC,Children's and Education Services,Other Education and Community Budget,Regeneration,Premises-Related Expenditure,Energy costs,10-Mar-22,6559874,2.74,LIMITED COMPANY,CONTRACT NATURAL GAS LTD,300000020484079
Portsmouth City Council,PCC,Children's and Education Services,Children Looked After,Children's Services and Education,Premises-Related Expenditure,Energy costs,10-Mar-22,6559874,2.71,LIMITED COMPANY,CONTRACT NATURAL GAS LTD,300000020484079
Portsmouth City Council,PCC,Children's and Education Services,Primary Schools,Children's Services and Education,Premises-Related Expenditure,Energy costs,10-Mar-22,6559874,166.25,LIMITED COMPANY,CONTRACT NATURAL GAS LTD,300000020484079
Portsmouth City Council,PCC,Children's and Education Services,Family Support Services,Children's Services and Education,Premises-Related Expenditure,Energy costs,10-Mar-22,6559874,94.24,LIMITED COMPANY,CONTRACT NATURAL GAS LTD,300000020484079
Portsmouth City Council,PCC,Children's and Education Services,Primary Schools,Children's Services and Education,Premises-Related Expenditure,Energy costs,10-Mar-22,6559874,173.3,LIMITED COMPANY,CONTRACT NATURAL GAS LTD,300000020484079
Portsmouth City Council,PCC,Children's and Education Services,Primary Schools,Children's Services and Education,Premises-Related Expenditure,Energy costs,10-Mar-22,6559874,46.88,LIMITED COMPANY,CONTRACT NATURAL GAS LTD,300000020484079
Portsmouth City Council,PCC,Children's and Education Services,Primary Schools,Children's Services and Education,Premises-Related Expenditure,Energy costs,10-Mar-22,6559874,"1,225.59",LIMITED COMPANY,CONTRACT NATURAL GAS LTD,300000020484079
Portsmouth City Council,PCC,Housing Revenue Account,"Rents, Rates, Taxes and Other Charges","Housing, Neighbourhood and Building Services",Premises-Related Expenditure,Water Services,23-Mar-22,6561718,-9.6,SUPPLIER,ADVANCED DEMAND SIDE MANAGEMENT LIMITED,300000020478882
Portsmouth City Council,PCC,Housing Revenue Account,Special Services,"Housing, Neighbourhood and Building Services",Premises-Related Expenditure,Water Services,23-Mar-22,6561718,-6.42,SUPPLIER,ADVANCED DEMAND SIDE MANAGEMENT LIMITED,300000020478882
Portsmouth City Council,PCC,Other,Suspense and Capital Schemes,Capital - Housing General Fund,Capital Charges,REFCUS,04-Mar-22,6558840,"458,346.00",SUPPLIER,AGILITY ECO SERVICES LTD,300000020481121
Portsmouth City Council,PCC,Cultural and Related Services,Culture and Heritage,"Culture, Leisure & Regulatory Services",Premises-Related Expenditure,Energy costs,10-Mar-22,6559874,9.34,LIMITED COMPANY,CONTRACT NATURAL GAS LTD,300000020484079
Portsmouth City Council,PCC,Cultural and Related Services,Culture and Heritage,"Culture, Leisure & Regulatory Services",Premises-Related Expenditure,Energy costs,10-Mar-22,6559874,23.72,LIMITED COMPANY,CONTRACT NATURAL GAS LTD,300000020484079
Portsmouth City Council,PCC,Other,Suspense and Capital Schemes,Capital - Housing General Fund,Capital Charges,REFCUS,04-Mar-22,6558840,"164,629.47",SUPPLIER,AGILITY ECO SERVICES LTD,300000020481121
Portsmouth City Council,PCC,Other,Suspense and Capital Schemes,Capital - Housing General Fund,Capital Charges,REFCUS,09-Mar-22,6559649,"801,925.58",SUPPLIER,AGILITY ECO SERVICES LTD,300000020481121
Portsmouth City Council,PCC,Children's and Education Services,Children Looked After,Children's Services and Education,Premises-Related Expenditure,Energy costs,10-Mar-22,6559874,15.4,LIMITED COMPANY,CONTRACT NATURAL GAS LTD,300000020484079
Portsmouth City Council,PCC,Other,Suspense and Capital Schemes,Capital - Housing General Fund,Capital Charges,REFCUS,09-Mar-22,6559649,"208,531.13",SUPPLIER,AGILITY ECO SERVICES LTD,300000020481121
Portsmouth City Council,PCC,Children's and Education Services,Primary Schools,Children's Services and Education,Premises-Related Expenditure,Energy costs,10-Mar-22,6559874,53.38,LIMITED COMPANY,CONTRACT NATURAL GAS LTD,300000020484079
Portsmouth City Council,PCC,Other,Suspense and Capital Schemes,Capital - Housing General Fund,Capital Charges,REFCUS,15-Mar-22,6560315,"471,373.73",SUPPLIER,AGILITY ECO SERVICES LTD,300000020481121
Portsmouth City Council,PCC,Children's and Education Services,Primary Schools,Children's Services and Education,Premises-Related Expenditure,Energy costs,10-Mar-22,6559874,2.68,LIMITED COMPANY,CONTRACT NATURAL GAS LTD,300000020484079
Portsmouth City Council,PCC,Other,Suspense and Capital Schemes,Capital - Housing General Fund,Capital Charges,REFCUS,23-Mar-22,6561855,"279,364.49",SUPPLIER,AGILITY ECO SERVICES LTD,300000020481121
Portsmouth City Council,PCC,Other,Suspense and Capital Schemes,Capital - Housing General Fund,Capital Charges,REFCUS,29-Mar-22,6563012,"513,493.47",SUPPLIER,AGILITY ECO SERVICES LTD,300000020481121
Portsmouth City Council,PCC,Children's and Education Services,Primary Schools,Children's Services and Education,Premises-Related Expenditure,Energy costs,10-Mar-22,6559874,556.99,LIMITED COMPANY,CONTRACT NATURAL GAS LTD,300000020484079
Portsmouth City Council,PCC,Children's and Education Services,Primary Schools,Children's Services and Education,Premises-Related Expenditure,Energy costs,10-Mar-22,6559874,40.38,LIMITED COMPANY,CONTRACT NATURAL GAS LTD,300000020484079
Portsmouth City Council,PCC,Children's and Education Services,Primary Schools,Children's Services and Education,Premises-Related Expenditure,Energy costs,10-Mar-22,6559874,70.63,LIMITED COMPANY,CONTRACT NATURAL GAS LTD,300000020484079
Portsmouth City Council,PCC,Other,Suspense and Capital Schemes,Capital - Housing RA,Capital Charges,Capital Expenditure (WIP),24-Mar-22,6562313,"1,370.80",LIMITED COMPANY,AHMARRA DOOR INSTALLATIONS LTD,300000360377251
Portsmouth City Council,PCC,Housing Revenue Account,Special Services,"Housing, Neighbourhood and Building Services",Premises-Related Expenditure,"Repairs, alterations and maintenance of buildings",02-Mar-22,6558413,10.32,SUPPLIER,AMAZON BUSINESS EU SARL,300000020473393
Portsmouth City Council,PCC,Housing Revenue Account,Special Services,"Housing, Neighbourhood and Building Services",Supplies and Services,"Printing, stationery and general office expenses",02-Mar-22,6558413,10.82,SUPPLIER,AMAZON BUSINESS EU SARL,300000020473393
Portsmouth City Council,PCC,Children's and Education Services,Primary Schools,Children's Services and Education,Premises-Related Expenditure,Energy costs,10-Mar-22,6559874,19.17,LIMITED COMPANY,CONTRACT NATURAL GAS LTD,300000020484079
Portsmouth City Council,PCC,Housing Revenue Account,Special Services,"Housing, Neighbourhood and Building Services",Supplies and Services,"Equipment, furniture and materials",04-Mar-22,6558914,39.02,SUPPLIER,AMAZON BUSINESS EU SARL,300000020473393
Portsmouth City Council,PCC,Housing Revenue Account,Special Services,"Housing, Neighbourhood and Building Services",Supplies and Services,"Printing, stationery and general office expenses",07-Mar-22,6558974,5.71,SUPPLIER,AMAZON BUSINESS EU SARL,300000020473393
Portsmouth City Council,PCC,Housing Revenue Account,Special Services,"Housing, Neighbourhood and Building Services",Supplies and Services,"Printing, stationery and general office expenses",07-Mar-22,6558974,5.71,SUPPLIER,AMAZON BUSINESS EU SARL,300000020473393
Portsmouth City Council,PCC,Children's and Education Services,Primary Schools,Children's Services and Education,Premises-Related Expenditure,Energy costs,10-Mar-22,6559874,192.61,LIMITED COMPANY,CONTRACT NATURAL GAS LTD,300000020484079
Portsmouth City Council,PCC,Costs below Net Cost of Services,Trading,Regeneration,Premises-Related Expenditure,Energy costs,10-Mar-22,6559874,"16,134.59",LIMITED COMPANY,CONTRACT NATURAL GAS LTD,300000020484079
Portsmouth City Council,PCC,Costs below Net Cost of Services,Trading,Regeneration,Premises-Related Expenditure,Energy costs,10-Mar-22,6559874,"-24,496.41",LIMITED COMPANY,CONTRACT NATURAL GAS LTD,300000020484079
Portsmouth City Council,PCC,Cultural and Related Services,Culture and Heritage,"Culture, Leisure & Regulatory Services",Third Party Payments,Other agencies,22-Mar-22,6561467,"2,000.00",SUPPLIER,Classified as 'personal data' (under the Data Protection Act 2018),300000020471056
Portsmouth City Council,PCC,Adult Social Care,Social Care Activities,Adult Care,Third Party Payments,Other establishments,15-Mar-22,6560381,"5,000.00",SUPPLIER,AGINCARE UK,300000020481869
Portsmouth City Council,PCC,Adult Social Care,Physical Support Older People (85+),Adult Care,Third Party Payments,Other establishments,11-Mar-22,6560068,"2,954.61",SUPPLIER,AGINCARE UK,300000020481869
Portsmouth City Council,PCC,Adult Social Care,Learning Disability Support Adults (18 - 64),Adult Care,Third Party Payments,Other establishments,11-Mar-22,6559958,"4,586.76",SUPPLIER,ALLIED CARE ASHSTEAD HOUSE,300000020473831
Portsmouth City Council,PCC,Adult Social Care,Physical Support Older People (85+),Adult Care,Third Party Payments,Other establishments,16-Mar-22,6560892,34.92,SUPPLIER,ALTOGETHER CARE LLP,300000120931464
Portsmouth City Council,PCC,Adult Social Care,Physical Support Adults (18 - 64),Adult Care,Third Party Payments,Other establishments,16-Mar-22,6560892,60.08,SUPPLIER,ALTOGETHER CARE LLP,300000120931464
Portsmouth City Council,PCC,Adult Social Care,Physical Support Older People (85+),Adult Care,Third Party Payments,Other establishments,16-Mar-22,6560892,90.12,SUPPLIER,ALTOGETHER CARE LLP,300000120931464
Portsmouth City Council,PCC,Adult Social Care,Physical Support Older People (85+),Adult Care,Third Party Payments,Other establishments,16-Mar-22,6560892,93.12,SUPPLIER,ALTOGETHER CARE LLP,300000120931464
Portsmouth City Council,PCC,Adult Social Care,Physical Support Older People (85+),Adult Care,Third Party Payments,Other establishments,16-Mar-22,6560892,186.24,SUPPLIER,ALTOGETHER CARE LLP,300000120931464
Portsmouth City Council,PCC,Children's and Education Services,Special Schools,Children's Services and Education,Third Party Payments,Other establishments,25-Mar-22,6562318,"-2,527.20",SUPPLIER,THE CORNER PRE-SCHOOL,300000020459342
Portsmouth City Council,PCC,Adult Social Care,Physical Support Older People (85+),Adult Care,Third Party Payments,Other establishments,16-Mar-22,6560892,210.28,SUPPLIER,ALTOGETHER CARE LLP,300000120931464
Portsmouth City Council,PCC,Adult Social Care,Physical Support Older People (85+),Adult Care,Third Party Payments,Other establishments,16-Mar-22,6560892,221.16,SUPPLIER,ALTOGETHER CARE LLP,300000120931464
Portsmouth City Council,PCC,Children's and Education Services,Children Looked After,Children's Services and Education,Third Party Payments,Other establishments,01-Mar-22,6558002,"2,912.86",SUPPLIER,FAIR WAYS COMMUNITY BENEFIT SOCEITY T/A FAIRWAYS CARE (UK) LTD,300000020459125
Portsmouth City Council,PCC,Children's and Education Services,Children Looked After,Children's Services and Education,Third Party Payments,Other establishments,01-Mar-22,6558002,"3,495.43",SUPPLIER,FAIR WAYS COMMUNITY BENEFIT SOCEITY T/A FAIRWAYS CARE (UK) LTD,300000020459125
Portsmouth City Council,PCC,Housing Revenue Account,Special Services,"Housing, Neighbourhood and Building Services",Supplies and Services,Catering,11-Mar-22,6560064,11.62,SUPPLIER,AMAZON BUSINESS EU SARL,300000020473393
Portsmouth City Council,PCC,Housing Revenue Account,Special Services,"Housing, Neighbourhood and Building Services",Supplies and Services,"Equipment, furniture and materials",09-Mar-22,6559304,22.47,SUPPLIER,AMAZON BUSINESS EU SARL,300000020473393
Portsmouth City Council,PCC,Housing Revenue Account,Supervision and Management,"Housing, Neighbourhood and Building Services",Supplies and Services,"Printing, stationery and general office expenses",08-Mar-22,6559212,5.22,SUPPLIER,AMAZON BUSINESS EU SARL,300000020473393
Portsmouth City Council,PCC,Cultural and Related Services,Library Service,"Culture, Leisure & Regulatory Services",Supplies and Services,"Equipment, furniture and materials",04-Mar-22,6558950,900,SELF EMPLOYED,Classified as 'personal data' (under the Data Protection Act 2018),300000280069115
Portsmouth City Council,PCC,Children's and Education Services,Asylum seekers,Children's Services and Education,Third Party Payments,Other establishments,01-Mar-22,6558067,-13.82,SUPPLIER,ACORN CARE AND EDUCATION LTD,300000020481370
Portsmouth City Council,PCC,Children's and Education Services,Asylum seekers,Children's Services and Education,Third Party Payments,Other establishments,01-Mar-22,6558067,118.16,SUPPLIER,ACORN CARE AND EDUCATION LTD,300000020481370
Portsmouth City Council,PCC,Children's and Education Services,Asylum seekers,Children's Services and Education,Third Party Payments,Other establishments,01-Mar-22,6558067,236.31,SUPPLIER,ACORN CARE AND EDUCATION LTD,300000020481370
Portsmouth City Council,PCC,Children's and Education Services,Asylum seekers,Children's Services and Education,Third Party Payments,Other establishments,01-Mar-22,6558067,827.09,SUPPLIER,ACORN CARE AND EDUCATION LTD,300000020481370
Portsmouth City Council,PCC,Children's and Education Services,Asylum seekers,Children's Services and Education,Third Party Payments,Other establishments,01-Mar-22,6558067,827.09,SUPPLIER,ACORN CARE AND EDUCATION LTD,300000020481370
Portsmouth City Council,PCC,Children's and Education Services,Asylum seekers,Children's Services and Education,Third Party Payments,Other establishments,01-Mar-22,6558067,827.09,SUPPLIER,ACORN CARE AND EDUCATION LTD,300000020481370
Portsmouth City Council,PCC,Children's and Education Services,Asylum seekers,Children's Services and Education,Third Party Payments,Other establishments,01-Mar-22,6558067,827.09,SUPPLIER,ACORN CARE AND EDUCATION LTD,300000020481370
Portsmouth City Council,PCC,Children's and Education Services,Children Looked After,Children's Services and Education,Third Party Payments,Other establishments,02-Mar-22,6558471,892.86,SUPPLIER,LIBRE LIVING LIMITED,300000020474688
Portsmouth City Council,PCC,Children's and Education Services,Children Looked After,Children's Services and Education,Third Party Payments,Other establishments,02-Mar-22,6558471,"2,232.14",SUPPLIER,LIBRE LIVING LIMITED,300000020474688
Portsmouth City Council,PCC,Children's and Education Services,Children Looked After,Children's Services and Education,Third Party Payments,Other establishments,02-Mar-22,6558471,"3,125.00",SUPPLIER,LIBRE LIVING LIMITED,300000020474688
Portsmouth City Council,PCC,Children's and Education Services,Children Looked After,Children's Services and Education,Third Party Payments,Other establishments,02-Mar-22,6558471,"3,125.00",SUPPLIER,LIBRE LIVING LIMITED,300000020474688
Portsmouth City Council,PCC,Children's and Education Services,Children Looked After,Children's Services and Education,Third Party Payments,Other establishments,02-Mar-22,6558471,"3,125.00",SUPPLIER,LIBRE LIVING LIMITED,300000020474688
Portsmouth City Council,PCC,Children's and Education Services,Children Looked After,Children's Services and Education,Third Party Payments,Other establishments,01-Mar-22,6558036,105.93,SUPPLIER,RAINBOW FOSTERING,300000020482345
Portsmouth City Council,PCC,Children's and Education Services,Children Looked After,Children's Services and Education,Third Party Payments,Other establishments,01-Mar-22,6558036,211.86,SUPPLIER,RAINBOW FOSTERING,300000020482345
Portsmouth City Council,PCC,Children's and Education Services,Children Looked After,Children's Services and Education,Third Party Payments,Other establishments,01-Mar-22,6558036,741.51,SUPPLIER,RAINBOW FOSTERING,300000020482345
Portsmouth City Council,PCC,Children's and Education Services,Children Looked After,Children's Services and Education,Third Party Payments,Other establishments,01-Mar-22,6558036,741.51,SUPPLIER,RAINBOW FOSTERING,300000020482345
Portsmouth City Council,PCC,Children's and Education Services,Children Looked After,Children's Services and Education,Third Party Payments,Other establishments,01-Mar-22,6558036,741.51,SUPPLIER,RAINBOW FOSTERING,300000020482345
Portsmouth City Council,PCC,Children's and Education Services,Children Looked After,Children's Services and Education,Third Party Payments,Other establishments,01-Mar-22,6558036,741.51,SUPPLIER,RAINBOW FOSTERING,300000020482345
Portsmouth City Council,PCC,Children's and Education Services,Children Looked After,Children's Services and Education,Third Party Payments,Other establishments,01-Mar-22,6558036,117.86,SUPPLIER,RAINBOW FOSTERING,300000020482345
Portsmouth City Council,PCC,Children's and Education Services,Children Looked After,Children's Services and Education,Third Party Payments,Other establishments,01-Mar-22,6558036,235.71,SUPPLIER,RAINBOW FOSTERING,300000020482345
Portsmouth City Council,PCC,Children's and Education Services,Children Looked After,Children's Services and Education,Third Party Payments,Other establishments,01-Mar-22,6558036,825,SUPPLIER,RAINBOW FOSTERING,300000020482345
Portsmouth City Council,PCC,Children's and Education Services,Children Looked After,Children's Services and Education,Third Party Payments,Other establishments,01-Mar-22,6558036,825,SUPPLIER,RAINBOW FOSTERING,300000020482345
Portsmouth City Council,PCC,Children's and Education Services,Children Looked After,Children's Services and Education,Third Party Payments,Other establishments,01-Mar-22,6558036,825,SUPPLIER,RAINBOW FOSTERING,300000020482345
Portsmouth City Council,PCC,Children's and Education Services,Children Looked After,Children's Services and Education,Third Party Payments,Other establishments,01-Mar-22,6558036,825,SUPPLIER,RAINBOW FOSTERING,300000020482345
Portsmouth City Council,PCC,Children's and Education Services,Children Looked After,Children's Services and Education,Third Party Payments,Other establishments,01-Mar-22,6558036,126.43,SUPPLIER,RAINBOW FOSTERING,300000020482345
Portsmouth City Council,PCC,Children's and Education Services,Children Looked After,Children's Services and Education,Third Party Payments,Other establishments,01-Mar-22,6558036,252.86,SUPPLIER,RAINBOW FOSTERING,300000020482345
Portsmouth City Council,PCC,Children's and Education Services,Children Looked After,Children's Services and Education,Third Party Payments,Other establishments,01-Mar-22,6558036,885,SUPPLIER,RAINBOW FOSTERING,300000020482345
Portsmouth City Council,PCC,Children's and Education Services,Children Looked After,Children's Services and Education,Third Party Payments,Other establishments,01-Mar-22,6558036,885,SUPPLIER,RAINBOW FOSTERING,300000020482345
Portsmouth City Council,PCC,Children's and Education Services,Children Looked After,Children's Services and Education,Third Party Payments,Other establishments,01-Mar-22,6558036,885,SUPPLIER,RAINBOW FOSTERING,300000020482345
Portsmouth City Council,PCC,Children's and Education Services,Children Looked After,Children's Services and Education,Third Party Payments,Other establishments,01-Mar-22,6558036,885,SUPPLIER,RAINBOW FOSTERING,300000020482345
Portsmouth City Council,PCC,Children's and Education Services,Children Looked After,Children's Services and Education,Third Party Payments,Other establishments,01-Mar-22,6558036,211.86,SUPPLIER,RAINBOW FOSTERING,300000020482345
Portsmouth City Council,PCC,Children's and Education Services,Children Looked After,Children's Services and Education,Third Party Payments,Other establishments,01-Mar-22,6558036,529.65,SUPPLIER,RAINBOW FOSTERING,300000020482345
Portsmouth City Council,PCC,Children's and Education Services,Children Looked After,Children's Services and Education,Third Party Payments,Other establishments,01-Mar-22,6558036,741.51,SUPPLIER,RAINBOW FOSTERING,300000020482345
Portsmouth City Council,PCC,Children's and Education Services,Children Looked After,Children's Services and Education,Third Party Payments,Other establishments,01-Mar-22,6558036,741.51,SUPPLIER,RAINBOW FOSTERING,300000020482345
Portsmouth City Council,PCC,Children's and Education Services,Children Looked After,Children's Services and Education,Third Party Payments,Other establishments,01-Mar-22,6558036,741.51,SUPPLIER,RAINBOW FOSTERING,300000020482345
Portsmouth City Council,PCC,Children's and Education Services,Children Looked After,Children's Services and Education,Third Party Payments,Other establishments,01-Mar-22,6558036,235.71,SUPPLIER,RAINBOW FOSTERING,300000020482345
Portsmouth City Council,PCC,Children's and Education Services,Children Looked After,Children's Services and Education,Third Party Payments,Other establishments,01-Mar-22,6558036,589.29,SUPPLIER,RAINBOW FOSTERING,300000020482345
Portsmouth City Council,PCC,Children's and Education Services,Children Looked After,Children's Services and Education,Third Party Payments,Other establishments,01-Mar-22,6558036,825,SUPPLIER,RAINBOW FOSTERING,300000020482345
Portsmouth City Council,PCC,Children's and Education Services,Children Looked After,Children's Services and Education,Third Party Payments,Other establishments,01-Mar-22,6558036,825,SUPPLIER,RAINBOW FOSTERING,300000020482345
Portsmouth City Council,PCC,Children's and Education Services,Children Looked After,Children's Services and Education,Third Party Payments,Other establishments,01-Mar-22,6558036,825,SUPPLIER,RAINBOW FOSTERING,300000020482345
Portsmouth City Council,PCC,Children's and Education Services,Children Looked After,Children's Services and Education,Third Party Payments,Other establishments,01-Mar-22,6558036,252.86,SUPPLIER,RAINBOW FOSTERING,300000020482345
Portsmouth City Council,PCC,Children's and Education Services,Children Looked After,Children's Services and Education,Third Party Payments,Other establishments,01-Mar-22,6558036,632.14,SUPPLIER,RAINBOW FOSTERING,300000020482345
Portsmouth City Council,PCC,Children's and Education Services,Children Looked After,Children's Services and Education,Third Party Payments,Other establishments,01-Mar-22,6558036,885,SUPPLIER,RAINBOW FOSTERING,300000020482345
Portsmouth City Council,PCC,Children's and Education Services,Children Looked After,Children's Services and Education,Third Party Payments,Other establishments,01-Mar-22,6558036,885,SUPPLIER,RAINBOW FOSTERING,300000020482345
Portsmouth City Council,PCC,Children's and Education Services,Children Looked After,Children's Services and Education,Third Party Payments,Other establishments,01-Mar-22,6558036,885,SUPPLIER,RAINBOW FOSTERING,300000020482345
Portsmouth City Council,PCC,Children's and Education Services,Safeguarding Children and Young Peoples Services,Children's Services and Education,Third Party Payments,Other establishments,01-Mar-22,6558043,-10,SUPPLIER,SAKURA CARE LIMITED,300000020469343
Portsmouth City Council,PCC,Children's and Education Services,Safeguarding Children and Young Peoples Services,Children's Services and Education,Third Party Payments,Other establishments,01-Mar-22,6558043,-10,SUPPLIER,SAKURA CARE LIMITED,300000020469343
Portsmouth City Council,PCC,Children's and Education Services,Safeguarding Children and Young Peoples Services,Children's Services and Education,Third Party Payments,Other establishments,01-Mar-22,6558043,-10,SUPPLIER,SAKURA CARE LIMITED,300000020469343
Portsmouth City Council,PCC,Children's and Education Services,Safeguarding Children and Young Peoples Services,Children's Services and Education,Third Party Payments,Other establishments,01-Mar-22,6558043,-7.14,SUPPLIER,SAKURA CARE LIMITED,300000020469343
Portsmouth City Council,PCC,Children's and Education Services,Safeguarding Children and Young Peoples Services,Children's Services and Education,Third Party Payments,Other establishments,01-Mar-22,6558043,-2.86,SUPPLIER,SAKURA CARE LIMITED,300000020469343
Portsmouth City Council,PCC,Children's and Education Services,Safeguarding Children and Young Peoples Services,Children's Services and Education,Third Party Payments,Other establishments,01-Mar-22,6558043,-0.08,SUPPLIER,SAKURA CARE LIMITED,300000020469343
Portsmouth City Council,PCC,Children's and Education Services,Safeguarding Children and Young Peoples Services,Children's Services and Education,Third Party Payments,Other establishments,01-Mar-22,6558043,247.14,SUPPLIER,SAKURA CARE LIMITED,300000020469343
Portsmouth City Council,PCC,Children's and Education Services,Safeguarding Children and Young Peoples Services,Children's Services and Education,Third Party Payments,Other establishments,01-Mar-22,6558043,617.86,SUPPLIER,SAKURA CARE LIMITED,300000020469343
Portsmouth City Council,PCC,Children's and Education Services,Safeguarding Children and Young Peoples Services,Children's Services and Education,Third Party Payments,Other establishments,01-Mar-22,6558043,865,SUPPLIER,SAKURA CARE LIMITED,300000020469343
Portsmouth City Council,PCC,Children's and Education Services,Safeguarding Children and Young Peoples Services,Children's Services and Education,Third Party Payments,Other establishments,01-Mar-22,6558043,865,SUPPLIER,SAKURA CARE LIMITED,300000020469343
Portsmouth City Council,PCC,Children's and Education Services,Safeguarding Children and Young Peoples Services,Children's Services and Education,Third Party Payments,Other establishments,01-Mar-22,6558043,865,SUPPLIER,SAKURA CARE LIMITED,300000020469343
Portsmouth City Council,PCC,Children's and Education Services,Safeguarding Children and Young Peoples Services,Children's Services and Education,Third Party Payments,Other establishments,01-Mar-22,6558043,-10,SUPPLIER,SAKURA CARE LIMITED,300000020469343
Portsmouth City Council,PCC,Children's and Education Services,Safeguarding Children and Young Peoples Services,Children's Services and Education,Third Party Payments,Other establishments,01-Mar-22,6558043,-10,SUPPLIER,SAKURA CARE LIMITED,300000020469343
Portsmouth City Council,PCC,Children's and Education Services,Safeguarding Children and Young Peoples Services,Children's Services and Education,Third Party Payments,Other establishments,01-Mar-22,6558043,-10,SUPPLIER,SAKURA CARE LIMITED,300000020469343
Portsmouth City Council,PCC,Children's and Education Services,Safeguarding Children and Young Peoples Services,Children's Services and Education,Third Party Payments,Other establishments,01-Mar-22,6558043,-7.14,SUPPLIER,SAKURA CARE LIMITED,300000020469343
Portsmouth City Council,PCC,Children's and Education Services,Safeguarding Children and Young Peoples Services,Children's Services and Education,Third Party Payments,Other establishments,01-Mar-22,6558043,-2.86,SUPPLIER,SAKURA CARE LIMITED,300000020469343
Portsmouth City Council,PCC,Children's and Education Services,Safeguarding Children and Young Peoples Services,Children's Services and Education,Third Party Payments,Other establishments,01-Mar-22,6558043,-0.08,SUPPLIER,SAKURA CARE LIMITED,300000020469343
Portsmouth City Council,PCC,Children's and Education Services,Safeguarding Children and Young Peoples Services,Children's Services and Education,Third Party Payments,Other establishments,01-Mar-22,6558043,247.14,SUPPLIER,SAKURA CARE LIMITED,300000020469343
Portsmouth City Council,PCC,Children's and Education Services,Safeguarding Children and Young Peoples Services,Children's Services and Education,Third Party Payments,Other establishments,01-Mar-22,6558043,617.86,SUPPLIER,SAKURA CARE LIMITED,300000020469343
Portsmouth City Council,PCC,Children's and Education Services,Safeguarding Children and Young Peoples Services,Children's Services and Education,Third Party Payments,Other establishments,01-Mar-22,6558043,865,SUPPLIER,SAKURA CARE LIMITED,300000020469343
Portsmouth City Council,PCC,Children's and Education Services,Safeguarding Children and Young Peoples Services,Children's Services and Education,Third Party Payments,Other establishments,01-Mar-22,6558043,865,SUPPLIER,SAKURA CARE LIMITED,300000020469343
Portsmouth City Council,PCC,Children's and Education Services,Safeguarding Children and Young Peoples Services,Children's Services and Education,Third Party Payments,Other establishments,01-Mar-22,6558043,865,SUPPLIER,SAKURA CARE LIMITED,300000020469343
Portsmouth City Council,PCC,Children's and Education Services,Safeguarding Children and Young Peoples Services,Children's Services and Education,Third Party Payments,Other establishments,01-Mar-22,6558043,-10,SUPPLIER,SAKURA CARE LIMITED,300000020469343
Portsmouth City Council,PCC,Children's and Education Services,Safeguarding Children and Young Peoples Services,Children's Services and Education,Third Party Payments,Other establishments,01-Mar-22,6558043,-10,SUPPLIER,SAKURA CARE LIMITED,300000020469343
Portsmouth City Council,PCC,Children's and Education Services,Safeguarding Children and Young Peoples Services,Children's Services and Education,Third Party Payments,Other establishments,01-Mar-22,6558043,-10,SUPPLIER,SAKURA CARE LIMITED,300000020469343
Portsmouth City Council,PCC,Children's and Education Services,Safeguarding Children and Young Peoples Services,Children's Services and Education,Third Party Payments,Other establishments,01-Mar-22,6558043,-7.14,SUPPLIER,SAKURA CARE LIMITED,300000020469343
Portsmouth City Council,PCC,Children's and Education Services,Safeguarding Children and Young Peoples Services,Children's Services and Education,Third Party Payments,Other establishments,01-Mar-22,6558043,-2.86,SUPPLIER,SAKURA CARE LIMITED,300000020469343
Portsmouth City Council,PCC,Children's and Education Services,Safeguarding Children and Young Peoples Services,Children's Services and Education,Third Party Payments,Other establishments,01-Mar-22,6558043,-0.2,SUPPLIER,SAKURA CARE LIMITED,300000020469343
Portsmouth City Council,PCC,Children's and Education Services,Safeguarding Children and Young Peoples Services,Children's Services and Education,Third Party Payments,Other establishments,01-Mar-22,6558043,31.43,SUPPLIER,SAKURA CARE LIMITED,300000020469343
Portsmouth City Council,PCC,Children's and Education Services,Safeguarding Children and Young Peoples Services,Children's Services and Education,Third Party Payments,Other establishments,01-Mar-22,6558043,78.57,SUPPLIER,SAKURA CARE LIMITED,300000020469343
Portsmouth City Council,PCC,Children's and Education Services,Safeguarding Children and Young Peoples Services,Children's Services and Education,Third Party Payments,Other establishments,01-Mar-22,6558043,110,SUPPLIER,SAKURA CARE LIMITED,300000020469343
Portsmouth City Council,PCC,Children's and Education Services,Safeguarding Children and Young Peoples Services,Children's Services and Education,Third Party Payments,Other establishments,01-Mar-22,6558043,110,SUPPLIER,SAKURA CARE LIMITED,300000020469343
Portsmouth City Council,PCC,Children's and Education Services,Safeguarding Children and Young Peoples Services,Children's Services and Education,Third Party Payments,Other establishments,01-Mar-22,6558043,110,SUPPLIER,SAKURA CARE LIMITED,300000020469343
Portsmouth City Council,PCC,Children's and Education Services,Safeguarding Children and Young Peoples Services,Children's Services and Education,Third Party Payments,Other establishments,01-Mar-22,6558043,247.14,SUPPLIER,SAKURA CARE LIMITED,300000020469343
Portsmouth City Council,PCC,Children's and Education Services,Safeguarding Children and Young Peoples Services,Children's Services and Education,Third Party Payments,Other establishments,01-Mar-22,6558043,617.86,SUPPLIER,SAKURA CARE LIMITED,300000020469343
Portsmouth City Council,PCC,Children's and Education Services,Safeguarding Children and Young Peoples Services,Children's Services and Education,Third Party Payments,Other establishments,01-Mar-22,6558043,865,SUPPLIER,SAKURA CARE LIMITED,300000020469343
Portsmouth City Council,PCC,Children's and Education Services,Safeguarding Children and Young Peoples Services,Children's Services and Education,Third Party Payments,Other establishments,01-Mar-22,6558043,865,SUPPLIER,SAKURA CARE LIMITED,300000020469343
Portsmouth City Council,PCC,Children's and Education Services,Safeguarding Children and Young Peoples Services,Children's Services and Education,Third Party Payments,Other establishments,01-Mar-22,6558043,865,SUPPLIER,SAKURA CARE LIMITED,300000020469343
Portsmouth City Council,PCC,Children's and Education Services,Safeguarding Children and Young Peoples Services,Children's Services and Education,Third Party Payments,Other establishments,01-Mar-22,6558043,-10,SUPPLIER,SAKURA CARE LIMITED,300000020469343
Portsmouth City Council,PCC,Children's and Education Services,Safeguarding Children and Young Peoples Services,Children's Services and Education,Third Party Payments,Other establishments,01-Mar-22,6558043,-10,SUPPLIER,SAKURA CARE LIMITED,300000020469343
Portsmouth City Council,PCC,Children's and Education Services,Safeguarding Children and Young Peoples Services,Children's Services and Education,Third Party Payments,Other establishments,01-Mar-22,6558043,-10,SUPPLIER,SAKURA CARE LIMITED,300000020469343
Portsmouth City Council,PCC,Children's and Education Services,Safeguarding Children and Young Peoples Services,Children's Services and Education,Third Party Payments,Other establishments,01-Mar-22,6558043,-7.14,SUPPLIER,SAKURA CARE LIMITED,300000020469343
Portsmouth City Council,PCC,Children's and Education Services,Safeguarding Children and Young Peoples Services,Children's Services and Education,Third Party Payments,Other establishments,01-Mar-22,6558043,-2.86,SUPPLIER,SAKURA CARE LIMITED,300000020469343
Portsmouth City Council,PCC,Children's and Education Services,Safeguarding Children and Young Peoples Services,Children's Services and Education,Third Party Payments,Other establishments,01-Mar-22,6558043,-0.2,SUPPLIER,SAKURA CARE LIMITED,300000020469343
Portsmouth City Council,PCC,Children's and Education Services,Safeguarding Children and Young Peoples Services,Children's Services and Education,Third Party Payments,Other establishments,01-Mar-22,6558043,31.43,SUPPLIER,SAKURA CARE LIMITED,300000020469343
Portsmouth City Council,PCC,Children's and Education Services,Safeguarding Children and Young Peoples Services,Children's Services and Education,Third Party Payments,Other establishments,01-Mar-22,6558043,78.57,SUPPLIER,SAKURA CARE LIMITED,300000020469343
Portsmouth City Council,PCC,Children's and Education Services,Safeguarding Children and Young Peoples Services,Children's Services and Education,Third Party Payments,Other establishments,01-Mar-22,6558043,110,SUPPLIER,SAKURA CARE LIMITED,300000020469343
Portsmouth City Council,PCC,Children's and Education Services,Safeguarding Children and Young Peoples Services,Children's Services and Education,Third Party Payments,Other establishments,01-Mar-22,6558043,110,SUPPLIER,SAKURA CARE LIMITED,300000020469343
Portsmouth City Council,PCC,Children's and Education Services,Safeguarding Children and Young Peoples Services,Children's Services and Education,Third Party Payments,Other establishments,01-Mar-22,6558043,110,SUPPLIER,SAKURA CARE LIMITED,300000020469343
Portsmouth City Council,PCC,Children's and Education Services,Safeguarding Children and Young Peoples Services,Children's Services and Education,Third Party Payments,Other establishments,01-Mar-22,6558043,247.14,SUPPLIER,SAKURA CARE LIMITED,300000020469343
Portsmouth City Council,PCC,Children's and Education Services,Safeguarding Children and Young Peoples Services,Children's Services and Education,Third Party Payments,Other establishments,01-Mar-22,6558043,617.86,SUPPLIER,SAKURA CARE LIMITED,300000020469343
Portsmouth City Council,PCC,Children's and Education Services,Safeguarding Children and Young Peoples Services,Children's Services and Education,Third Party Payments,Other establishments,01-Mar-22,6558043,865,SUPPLIER,SAKURA CARE LIMITED,300000020469343
Portsmouth City Council,PCC,Children's and Education Services,Safeguarding Children and Young Peoples Services,Children's Services and Education,Third Party Payments,Other establishments,01-Mar-22,6558043,865,SUPPLIER,SAKURA CARE LIMITED,300000020469343
Portsmouth City Council,PCC,Children's and Education Services,Safeguarding Children and Young Peoples Services,Children's Services and Education,Third Party Payments,Other establishments,01-Mar-22,6558043,865,SUPPLIER,SAKURA CARE LIMITED,300000020469343
Portsmouth City Council,PCC,Children's and Education Services,Safeguarding Children and Young Peoples Services,Children's Services and Education,Third Party Payments,Other establishments,01-Mar-22,6558043,-10,SUPPLIER,SAKURA CARE LIMITED,300000020469343
Portsmouth City Council,PCC,Children's and Education Services,Safeguarding Children and Young Peoples Services,Children's Services and Education,Third Party Payments,Other establishments,01-Mar-22,6558043,-10,SUPPLIER,SAKURA CARE LIMITED,300000020469343
Portsmouth City Council,PCC,Children's and Education Services,Safeguarding Children and Young Peoples Services,Children's Services and Education,Third Party Payments,Other establishments,01-Mar-22,6558043,-10,SUPPLIER,SAKURA CARE LIMITED,300000020469343
Portsmouth City Council,PCC,Children's and Education Services,Safeguarding Children and Young Peoples Services,Children's Services and Education,Third Party Payments,Other establishments,01-Mar-22,6558043,-7.14,SUPPLIER,SAKURA CARE LIMITED,300000020469343
Portsmouth City Council,PCC,Children's and Education Services,Safeguarding Children and Young Peoples Services,Children's Services and Education,Third Party Payments,Other establishments,01-Mar-22,6558043,-2.86,SUPPLIER,SAKURA CARE LIMITED,300000020469343
Portsmouth City Council,PCC,Children's and Education Services,Safeguarding Children and Young Peoples Services,Children's Services and Education,Third Party Payments,Other establishments,01-Mar-22,6558043,-0.2,SUPPLIER,SAKURA CARE LIMITED,300000020469343
Portsmouth City Council,PCC,Children's and Education Services,Safeguarding Children and Young Peoples Services,Children's Services and Education,Third Party Payments,Other establishments,01-Mar-22,6558043,16.54,SUPPLIER,SAKURA CARE LIMITED,300000020469343
Portsmouth City Council,PCC,Children's and Education Services,Safeguarding Children and Young Peoples Services,Children's Services and Education,Third Party Payments,Other establishments,01-Mar-22,6558043,31.43,SUPPLIER,SAKURA CARE LIMITED,300000020469343
Portsmouth City Council,PCC,Children's and Education Services,Safeguarding Children and Young Peoples Services,Children's Services and Education,Third Party Payments,Other establishments,01-Mar-22,6558043,41.36,SUPPLIER,SAKURA CARE LIMITED,300000020469343
Portsmouth City Council,PCC,Children's and Education Services,Safeguarding Children and Young Peoples Services,Children's Services and Education,Third Party Payments,Other establishments,01-Mar-22,6558043,57.9,SUPPLIER,SAKURA CARE LIMITED,300000020469343
Portsmouth City Council,PCC,Children's and Education Services,Safeguarding Children and Young Peoples Services,Children's Services and Education,Third Party Payments,Other establishments,01-Mar-22,6558043,57.9,SUPPLIER,SAKURA CARE LIMITED,300000020469343
Portsmouth City Council,PCC,Children's and Education Services,Safeguarding Children and Young Peoples Services,Children's Services and Education,Third Party Payments,Other establishments,01-Mar-22,6558043,57.9,SUPPLIER,SAKURA CARE LIMITED,300000020469343
Portsmouth City Council,PCC,Children's and Education Services,Safeguarding Children and Young Peoples Services,Children's Services and Education,Third Party Payments,Other establishments,01-Mar-22,6558043,78.57,SUPPLIER,SAKURA CARE LIMITED,300000020469343
Portsmouth City Council,PCC,Children's and Education Services,Safeguarding Children and Young Peoples Services,Children's Services and Education,Third Party Payments,Other establishments,01-Mar-22,6558043,110,SUPPLIER,SAKURA CARE LIMITED,300000020469343
Portsmouth City Council,PCC,Children's and Education Services,Safeguarding Children and Young Peoples Services,Children's Services and Education,Third Party Payments,Other establishments,01-Mar-22,6558043,110,SUPPLIER,SAKURA CARE LIMITED,300000020469343
Portsmouth City Council,PCC,Children's and Education Services,Safeguarding Children and Young Peoples Services,Children's Services and Education,Third Party Payments,Other establishments,01-Mar-22,6558043,110,SUPPLIER,SAKURA CARE LIMITED,300000020469343
Portsmouth City Council,PCC,Children's and Education Services,Safeguarding Children and Young Peoples Services,Children's Services and Education,Third Party Payments,Other establishments,01-Mar-22,6558043,247.14,SUPPLIER,SAKURA CARE LIMITED,300000020469343
Portsmouth City Council,PCC,Children's and Education Services,Safeguarding Children and Young Peoples Services,Children's Services and Education,Third Party Payments,Other establishments,01-Mar-22,6558043,617.86,SUPPLIER,SAKURA CARE LIMITED,300000020469343
Portsmouth City Council,PCC,Children's and Education Services,Safeguarding Children and Young Peoples Services,Children's Services and Education,Third Party Payments,Other establishments,01-Mar-22,6558043,865,SUPPLIER,SAKURA CARE LIMITED,300000020469343
Portsmouth City Council,PCC,Children's and Education Services,Safeguarding Children and Young Peoples Services,Children's Services and Education,Third Party Payments,Other establishments,01-Mar-22,6558043,865,SUPPLIER,SAKURA CARE LIMITED,300000020469343
Portsmouth City Council,PCC,Children's and Education Services,Safeguarding Children and Young Peoples Services,Children's Services and Education,Third Party Payments,Other establishments,01-Mar-22,6558043,865,SUPPLIER,SAKURA CARE LIMITED,300000020469343
Portsmouth City Council,PCC,Children's and Education Services,Safeguarding Children and Young Peoples Services,Children's Services and Education,Third Party Payments,Other establishments,01-Mar-22,6558043,-10,SUPPLIER,SAKURA CARE LIMITED,300000020469343
Portsmouth City Council,PCC,Children's and Education Services,Safeguarding Children and Young Peoples Services,Children's Services and Education,Third Party Payments,Other establishments,01-Mar-22,6558043,-10,SUPPLIER,SAKURA CARE LIMITED,300000020469343
Portsmouth City Council,PCC,Children's and Education Services,Safeguarding Children and Young Peoples Services,Children's Services and Education,Third Party Payments,Other establishments,01-Mar-22,6558043,-10,SUPPLIER,SAKURA CARE LIMITED,300000020469343
Portsmouth City Council,PCC,Children's and Education Services,Safeguarding Children and Young Peoples Services,Children's Services and Education,Third Party Payments,Other establishments,01-Mar-22,6558043,-7.14,SUPPLIER,SAKURA CARE LIMITED,300000020469343
Portsmouth City Council,PCC,Children's and Education Services,Safeguarding Children and Young Peoples Services,Children's Services and Education,Third Party Payments,Other establishments,01-Mar-22,6558043,-2.86,SUPPLIER,SAKURA CARE LIMITED,300000020469343
Portsmouth City Council,PCC,Children's and Education Services,Safeguarding Children and Young Peoples Services,Children's Services and Education,Third Party Payments,Other establishments,01-Mar-22,6558043,-0.2,SUPPLIER,SAKURA CARE LIMITED,300000020469343
Portsmouth City Council,PCC,Children's and Education Services,Safeguarding Children and Young Peoples Services,Children's Services and Education,Third Party Payments,Other establishments,01-Mar-22,6558043,31.43,SUPPLIER,SAKURA CARE LIMITED,300000020469343
Portsmouth City Council,PCC,Children's and Education Services,Safeguarding Children and Young Peoples Services,Children's Services and Education,Third Party Payments,Other establishments,01-Mar-22,6558043,78.57,SUPPLIER,SAKURA CARE LIMITED,300000020469343
Portsmouth City Council,PCC,Children's and Education Services,Safeguarding Children and Young Peoples Services,Children's Services and Education,Third Party Payments,Other establishments,01-Mar-22,6558043,110,SUPPLIER,SAKURA CARE LIMITED,300000020469343
Portsmouth City Council,PCC,Children's and Education Services,Safeguarding Children and Young Peoples Services,Children's Services and Education,Third Party Payments,Other establishments,01-Mar-22,6558043,110,SUPPLIER,SAKURA CARE LIMITED,300000020469343
Portsmouth City Council,PCC,Children's and Education Services,Safeguarding Children and Young Peoples Services,Children's Services and Education,Third Party Payments,Other establishments,01-Mar-22,6558043,110,SUPPLIER,SAKURA CARE LIMITED,300000020469343
Portsmouth City Council,PCC,Children's and Education Services,Safeguarding Children and Young Peoples Services,Children's Services and Education,Third Party Payments,Other establishments,01-Mar-22,6558043,247.14,SUPPLIER,SAKURA CARE LIMITED,300000020469343
Portsmouth City Council,PCC,Children's and Education Services,Safeguarding Children and Young Peoples Services,Children's Services and Education,Third Party Payments,Other establishments,01-Mar-22,6558043,617.86,SUPPLIER,SAKURA CARE LIMITED,300000020469343
Portsmouth City Council,PCC,Children's and Education Services,Safeguarding Children and Young Peoples Services,Children's Services and Education,Third Party Payments,Other establishments,01-Mar-22,6558043,865,SUPPLIER,SAKURA CARE LIMITED,300000020469343
Portsmouth City Council,PCC,Children's and Education Services,Safeguarding Children and Young Peoples Services,Children's Services and Education,Third Party Payments,Other establishments,01-Mar-22,6558043,865,SUPPLIER,SAKURA CARE LIMITED,300000020469343
Portsmouth City Council,PCC,Children's and Education Services,Safeguarding Children and Young Peoples Services,Children's Services and Education,Third Party Payments,Other establishments,01-Mar-22,6558043,865,SUPPLIER,SAKURA CARE LIMITED,300000020469343
Portsmouth City Council,PCC,Children's and Education Services,Safeguarding Children and Young Peoples Services,Children's Services and Education,Third Party Payments,Other establishments,01-Mar-22,6558043,-10,SUPPLIER,SAKURA CARE LIMITED,300000020469343
Portsmouth City Council,PCC,Children's and Education Services,Safeguarding Children and Young Peoples Services,Children's Services and Education,Third Party Payments,Other establishments,01-Mar-22,6558043,-10,SUPPLIER,SAKURA CARE LIMITED,300000020469343
Portsmouth City Council,PCC,Children's and Education Services,Safeguarding Children and Young Peoples Services,Children's Services and Education,Third Party Payments,Other establishments,01-Mar-22,6558043,-10,SUPPLIER,SAKURA CARE LIMITED,300000020469343
Portsmouth City Council,PCC,Children's and Education Services,Safeguarding Children and Young Peoples Services,Children's Services and Education,Third Party Payments,Other establishments,01-Mar-22,6558043,-7.14,SUPPLIER,SAKURA CARE LIMITED,300000020469343
Portsmouth City Council,PCC,Children's and Education Services,Safeguarding Children and Young Peoples Services,Children's Services and Education,Third Party Payments,Other establishments,01-Mar-22,6558043,-2.86,SUPPLIER,SAKURA CARE LIMITED,300000020469343
Portsmouth City Council,PCC,Children's and Education Services,Safeguarding Children and Young Peoples Services,Children's Services and Education,Third Party Payments,Other establishments,01-Mar-22,6558043,-0.2,SUPPLIER,SAKURA CARE LIMITED,300000020469343
Portsmouth City Council,PCC,Children's and Education Services,Safeguarding Children and Young Peoples Services,Children's Services and Education,Third Party Payments,Other establishments,01-Mar-22,6558043,31.43,SUPPLIER,SAKURA CARE LIMITED,300000020469343
Portsmouth City Council,PCC,Children's and Education Services,Safeguarding Children and Young Peoples Services,Children's Services and Education,Third Party Payments,Other establishments,01-Mar-22,6558043,78.57,SUPPLIER,SAKURA CARE LIMITED,300000020469343
Portsmouth City Council,PCC,Children's and Education Services,Safeguarding Children and Young Peoples Services,Children's Services and Education,Third Party Payments,Other establishments,01-Mar-22,6558043,110,SUPPLIER,SAKURA CARE LIMITED,300000020469343
Portsmouth City Council,PCC,Children's and Education Services,Safeguarding Children and Young Peoples Services,Children's Services and Education,Third Party Payments,Other establishments,01-Mar-22,6558043,110,SUPPLIER,SAKURA CARE LIMITED,300000020469343
Portsmouth City Council,PCC,Children's and Education Services,Safeguarding Children and Young Peoples Services,Children's Services and Education,Third Party Payments,Other establishments,01-Mar-22,6558043,110,SUPPLIER,SAKURA CARE LIMITED,300000020469343
Portsmouth City Council,PCC,Children's and Education Services,Safeguarding Children and Young Peoples Services,Children's Services and Education,Third Party Payments,Other establishments,01-Mar-22,6558043,247.14,SUPPLIER,SAKURA CARE LIMITED,300000020469343
Portsmouth City Council,PCC,Children's and Education Services,Safeguarding Children and Young Peoples Services,Children's Services and Education,Third Party Payments,Other establishments,01-Mar-22,6558043,617.86,SUPPLIER,SAKURA CARE LIMITED,300000020469343
Portsmouth City Council,PCC,Children's and Education Services,Safeguarding Children and Young Peoples Services,Children's Services and Education,Third Party Payments,Other establishments,01-Mar-22,6558043,865,SUPPLIER,SAKURA CARE LIMITED,300000020469343
Portsmouth City Council,PCC,Children's and Education Services,Safeguarding Children and Young Peoples Services,Children's Services and Education,Third Party Payments,Other establishments,01-Mar-22,6558043,865,SUPPLIER,SAKURA CARE LIMITED,300000020469343
Portsmouth City Council,PCC,Children's and Education Services,Safeguarding Children and Young Peoples Services,Children's Services and Education,Third Party Payments,Other establishments,01-Mar-22,6558043,865,SUPPLIER,SAKURA CARE LIMITED,300000020469343
Portsmouth City Council,PCC,Children's and Education Services,Safeguarding Children and Young Peoples Services,Children's Services and Education,Third Party Payments,Other establishments,01-Mar-22,6558043,-10,SUPPLIER,SAKURA CARE LIMITED,300000020469343
Portsmouth City Council,PCC,Children's and Education Services,Safeguarding Children and Young Peoples Services,Children's Services and Education,Third Party Payments,Other establishments,01-Mar-22,6558043,-10,SUPPLIER,SAKURA CARE LIMITED,300000020469343
Portsmouth City Council,PCC,Children's and Education Services,Safeguarding Children and Young Peoples Services,Children's Services and Education,Third Party Payments,Other establishments,01-Mar-22,6558043,-10,SUPPLIER,SAKURA CARE LIMITED,300000020469343
Portsmouth City Council,PCC,Children's and Education Services,Safeguarding Children and Young Peoples Services,Children's Services and Education,Third Party Payments,Other establishments,01-Mar-22,6558043,-7.14,SUPPLIER,SAKURA CARE LIMITED,300000020469343
Portsmouth City Council,PCC,Children's and Education Services,Safeguarding Children and Young Peoples Services,Children's Services and Education,Third Party Payments,Other establishments,01-Mar-22,6558043,-2.86,SUPPLIER,SAKURA CARE LIMITED,300000020469343
Portsmouth City Council,PCC,Children's and Education Services,Safeguarding Children and Young Peoples Services,Children's Services and Education,Third Party Payments,Other establishments,01-Mar-22,6558043,-0.2,SUPPLIER,SAKURA CARE LIMITED,300000020469343
Portsmouth City Council,PCC,Children's and Education Services,Safeguarding Children and Young Peoples Services,Children's Services and Education,Third Party Payments,Other establishments,01-Mar-22,6558043,31.43,SUPPLIER,SAKURA CARE LIMITED,300000020469343
Portsmouth City Council,PCC,Children's and Education Services,Safeguarding Children and Young Peoples Services,Children's Services and Education,Third Party Payments,Other establishments,01-Mar-22,6558043,78.57,SUPPLIER,SAKURA CARE LIMITED,300000020469343
Portsmouth City Council,PCC,Children's and Education Services,Safeguarding Children and Young Peoples Services,Children's Services and Education,Third Party Payments,Other establishments,01-Mar-22,6558043,110,SUPPLIER,SAKURA CARE LIMITED,300000020469343
Portsmouth City Council,PCC,Children's and Education Services,Safeguarding Children and Young Peoples Services,Children's Services and Education,Third Party Payments,Other establishments,01-Mar-22,6558043,110,SUPPLIER,SAKURA CARE LIMITED,300000020469343
Portsmouth City Council,PCC,Children's and Education Services,Safeguarding Children and Young Peoples Services,Children's Services and Education,Third Party Payments,Other establishments,01-Mar-22,6558043,110,SUPPLIER,SAKURA CARE LIMITED,300000020469343
Portsmouth City Council,PCC,Children's and Education Services,Safeguarding Children and Young Peoples Services,Children's Services and Education,Third Party Payments,Other establishments,01-Mar-22,6558043,247.14,SUPPLIER,SAKURA CARE LIMITED,300000020469343
Portsmouth City Council,PCC,Children's and Education Services,Safeguarding Children and Young Peoples Services,Children's Services and Education,Third Party Payments,Other establishments,01-Mar-22,6558043,617.86,SUPPLIER,SAKURA CARE LIMITED,300000020469343
Portsmouth City Council,PCC,Children's and Education Services,Safeguarding Children and Young Peoples Services,Children's Services and Education,Third Party Payments,Other establishments,01-Mar-22,6558043,865,SUPPLIER,SAKURA CARE LIMITED,300000020469343
Portsmouth City Council,PCC,Children's and Education Services,Safeguarding Children and Young Peoples Services,Children's Services and Education,Third Party Payments,Other establishments,01-Mar-22,6558043,865,SUPPLIER,SAKURA CARE LIMITED,300000020469343
Portsmouth City Council,PCC,Children's and Education Services,Safeguarding Children and Young Peoples Services,Children's Services and Education,Third Party Payments,Other establishments,01-Mar-22,6558043,865,SUPPLIER,SAKURA CARE LIMITED,300000020469343
Portsmouth City Council,PCC,Children's and Education Services,Management and Support Services,Children's Services and Education,Third Party Payments,Other establishments,08-Mar-22,6559241,"15,649.83",TRUST,Academy Trust - University of Portsmouth ,300000316357634
Portsmouth City Council,PCC,Children's and Education Services,Management and Support Services,Children's Services and Education,Third Party Payments,Other establishments,08-Mar-22,6559241,"6,446.83",TRUST,Academy Trust - University of Portsmouth ,300000316357634
Portsmouth City Council,PCC,Children's and Education Services,Early Years,Children's Services and Education,Third Party Payments,Other establishments,04-Mar-22,6558934,163.24,SUPPLIER,ANDERSON AND BRETT LIMITED T/A ALPHABET CORNER,300000020459864
Portsmouth City Council,PCC,Children's and Education Services,Early Years,Children's Services and Education,Third Party Payments,Other establishments,04-Mar-22,6558934,"1,645.28",SUPPLIER,ANDERSON AND BRETT LIMITED T/A ALPHABET CORNER,300000020459864
Portsmouth City Council,PCC,Children's and Education Services,Early Years,Children's Services and Education,Third Party Payments,Other establishments,04-Mar-22,6558934,"2,886.00",SUPPLIER,ANDERSON AND BRETT LIMITED T/A ALPHABET CORNER,300000020459864
Portsmouth City Council,PCC,Children's and Education Services,Early Years,Children's Services and Education,Third Party Payments,Other establishments,04-Mar-22,6558934,"4,018.28",SUPPLIER,ANDERSON AND BRETT LIMITED T/A ALPHABET CORNER,300000020459864
Portsmouth City Council,PCC,Children's and Education Services,Early Years,Children's Services and Education,Third Party Payments,Other establishments,08-Mar-22,6559210,513.71,SUPPLIER,ARK SCHOOLS,300000020457866
Portsmouth City Council,PCC,Children's and Education Services,Early Years,Children's Services and Education,Third Party Payments,Other establishments,08-Mar-22,6559210,765.6,SUPPLIER,ARK SCHOOLS,300000020457866
Portsmouth City Council,PCC,Children's and Education Services,Early Years,Children's Services and Education,Third Party Payments,Other establishments,08-Mar-22,6559210,"3,453.36",SUPPLIER,ARK SCHOOLS,300000020457866
Portsmouth City Council,PCC,Children's and Education Services,Early Years,Children's Services and Education,Third Party Payments,Other establishments,08-Mar-22,6559210,"6,552.00",SUPPLIER,ARK SCHOOLS,300000020457866
Portsmouth City Council,PCC,Children's and Education Services,Early Years,Children's Services and Education,Third Party Payments,Other establishments,09-Mar-22,6559324,262.35,SUPPLIER,BRUNEL-MEREDITH PRESCHOOL,300000020459959
Portsmouth City Council,PCC,Children's and Education Services,Early Years,Children's Services and Education,Third Party Payments,Other establishments,09-Mar-22,6559324,745.8,SUPPLIER,BRUNEL-MEREDITH PRESCHOOL,300000020459959
Portsmouth City Council,PCC,Children's and Education Services,Early Years,Children's Services and Education,Third Party Payments,Other establishments,09-Mar-22,6559324,"1,740.20",SUPPLIER,BRUNEL-MEREDITH PRESCHOOL,300000020459959
Portsmouth City Council,PCC,Children's and Education Services,Early Years,Children's Services and Education,Third Party Payments,Other establishments,09-Mar-22,6559324,"2,288.00",SUPPLIER,BRUNEL-MEREDITH PRESCHOOL,300000020459959
Portsmouth City Council,PCC,Children's and Education Services,Early Years,Children's Services and Education,Third Party Payments,Other establishments,11-Mar-22,6560073,162.18,SUPPLIER,CHERUBZ DAYCARE LIMITED,300000020470397
Portsmouth City Council,PCC,Children's and Education Services,Early Years,Children's Services and Education,Third Party Payments,Other establishments,11-Mar-22,6560073,858,SUPPLIER,CHERUBZ DAYCARE LIMITED,300000020470397
Portsmouth City Council,PCC,Children's and Education Services,Early Years,Children's Services and Education,Third Party Payments,Other establishments,11-Mar-22,6560073,"3,679.20",SUPPLIER,CHERUBZ DAYCARE LIMITED,300000020470397
Portsmouth City Council,PCC,Children's and Education Services,Early Years,Children's Services and Education,Third Party Payments,Other establishments,11-Mar-22,6560073,"4,049.06",SUPPLIER,CHERUBZ DAYCARE LIMITED,300000020470397
Portsmouth City Council,PCC,Children's and Education Services,Asylum seekers,Children's Services and Education,Third Party Payments,Other establishments,03-Mar-22,6558749,0.04,SUPPLIER,THE CHILDRENS FAMILY TRUST,300000020479545
Portsmouth City Council,PCC,Children's and Education Services,Asylum seekers,Children's Services and Education,Third Party Payments,Other establishments,03-Mar-22,6558749,231.28,SUPPLIER,THE CHILDRENS FAMILY TRUST,300000020479545
Portsmouth City Council,PCC,Children's and Education Services,Asylum seekers,Children's Services and Education,Third Party Payments,Other establishments,03-Mar-22,6558749,578.19,SUPPLIER,THE CHILDRENS FAMILY TRUST,300000020479545
Portsmouth City Council,PCC,Children's and Education Services,Asylum seekers,Children's Services and Education,Third Party Payments,Other establishments,03-Mar-22,6558749,809.47,SUPPLIER,THE CHILDRENS FAMILY TRUST,300000020479545
Portsmouth City Council,PCC,Children's and Education Services,Asylum seekers,Children's Services and Education,Third Party Payments,Other establishments,03-Mar-22,6558749,809.47,SUPPLIER,THE CHILDRENS FAMILY TRUST,300000020479545
Portsmouth City Council,PCC,Children's and Education Services,Asylum seekers,Children's Services and Education,Third Party Payments,Other establishments,03-Mar-22,6558749,809.47,SUPPLIER,THE CHILDRENS FAMILY TRUST,300000020479545
Portsmouth City Council,PCC,Children's and Education Services,Children Looked After,Children's Services and Education,Third Party Payments,Other establishments,03-Mar-22,6558749,-0.04,SUPPLIER,THE CHILDRENS FAMILY TRUST,300000020479545
Portsmouth City Council,PCC,Children's and Education Services,Children Looked After,Children's Services and Education,Third Party Payments,Other establishments,03-Mar-22,6558749,215.62,SUPPLIER,THE CHILDRENS FAMILY TRUST,300000020479545
Portsmouth City Council,PCC,Children's and Education Services,Children Looked After,Children's Services and Education,Third Party Payments,Other establishments,03-Mar-22,6558749,539.06,SUPPLIER,THE CHILDRENS FAMILY TRUST,300000020479545
Portsmouth City Council,PCC,Children's and Education Services,Children Looked After,Children's Services and Education,Third Party Payments,Other establishments,03-Mar-22,6558749,754.68,SUPPLIER,THE CHILDRENS FAMILY TRUST,300000020479545
Portsmouth City Council,PCC,Children's and Education Services,Children Looked After,Children's Services and Education,Third Party Payments,Other establishments,03-Mar-22,6558749,754.68,SUPPLIER,THE CHILDRENS FAMILY TRUST,300000020479545
Portsmouth City Council,PCC,Children's and Education Services,Children Looked After,Children's Services and Education,Third Party Payments,Other establishments,03-Mar-22,6558749,754.68,SUPPLIER,THE CHILDRENS FAMILY TRUST,300000020479545
Portsmouth City Council,PCC,Children's and Education Services,Children Looked After,Children's Services and Education,Third Party Payments,Other establishments,03-Mar-22,6558749,221.22,SUPPLIER,THE CHILDRENS FAMILY TRUST,300000020479545
Portsmouth City Council,PCC,Children's and Education Services,Children Looked After,Children's Services and Education,Third Party Payments,Other establishments,03-Mar-22,6558749,553.05,SUPPLIER,THE CHILDRENS FAMILY TRUST,300000020479545
Portsmouth City Council,PCC,Children's and Education Services,Children Looked After,Children's Services and Education,Third Party Payments,Other establishments,03-Mar-22,6558749,774.27,SUPPLIER,THE CHILDRENS FAMILY TRUST,300000020479545
Portsmouth City Council,PCC,Children's and Education Services,Children Looked After,Children's Services and Education,Third Party Payments,Other establishments,03-Mar-22,6558749,774.27,SUPPLIER,THE CHILDRENS FAMILY TRUST,300000020479545
Portsmouth City Council,PCC,Children's and Education Services,Children Looked After,Children's Services and Education,Third Party Payments,Other establishments,03-Mar-22,6558749,774.27,SUPPLIER,THE CHILDRENS FAMILY TRUST,300000020479545
Portsmouth City Council,PCC,Children's and Education Services,Children Looked After,Children's Services and Education,Third Party Payments,Other establishments,03-Mar-22,6558749,219,SUPPLIER,THE CHILDRENS FAMILY TRUST,300000020479545
Portsmouth City Council,PCC,Children's and Education Services,Children Looked After,Children's Services and Education,Third Party Payments,Other establishments,03-Mar-22,6558749,547.5,SUPPLIER,THE CHILDRENS FAMILY TRUST,300000020479545
Portsmouth City Council,PCC,Children's and Education Services,Children Looked After,Children's Services and Education,Third Party Payments,Other establishments,03-Mar-22,6558749,766.5,SUPPLIER,THE CHILDRENS FAMILY TRUST,300000020479545
Portsmouth City Council,PCC,Children's and Education Services,Children Looked After,Children's Services and Education,Third Party Payments,Other establishments,03-Mar-22,6558749,766.5,SUPPLIER,THE CHILDRENS FAMILY TRUST,300000020479545
Portsmouth City Council,PCC,Children's and Education Services,Children Looked After,Children's Services and Education,Third Party Payments,Other establishments,03-Mar-22,6558749,766.5,SUPPLIER,THE CHILDRENS FAMILY TRUST,300000020479545
Portsmouth City Council,PCC,Children's and Education Services,Children Looked After,Children's Services and Education,Third Party Payments,Other establishments,03-Mar-22,6558749,-0.04,SUPPLIER,THE CHILDRENS FAMILY TRUST,300000020479545
Portsmouth City Council,PCC,Children's and Education Services,Children Looked After,Children's Services and Education,Third Party Payments,Other establishments,03-Mar-22,6558749,221.22,SUPPLIER,THE CHILDRENS FAMILY TRUST,300000020479545
Portsmouth City Council,PCC,Children's and Education Services,Children Looked After,Children's Services and Education,Third Party Payments,Other establishments,03-Mar-22,6558749,553.06,SUPPLIER,THE CHILDRENS FAMILY TRUST,300000020479545
Portsmouth City Council,PCC,Children's and Education Services,Children Looked After,Children's Services and Education,Third Party Payments,Other establishments,03-Mar-22,6558749,774.28,SUPPLIER,THE CHILDRENS FAMILY TRUST,300000020479545
Portsmouth City Council,PCC,Children's and Education Services,Children Looked After,Children's Services and Education,Third Party Payments,Other establishments,03-Mar-22,6558749,774.28,SUPPLIER,THE CHILDRENS FAMILY TRUST,300000020479545
Portsmouth City Council,PCC,Children's and Education Services,Children Looked After,Children's Services and Education,Third Party Payments,Other establishments,03-Mar-22,6558749,774.28,SUPPLIER,THE CHILDRENS FAMILY TRUST,300000020479545
Portsmouth City Council,PCC,Children's and Education Services,Asylum seekers,Children's Services and Education,Third Party Payments,Other establishments,03-Mar-22,6558749,0.01,SUPPLIER,THE CHILDRENS FAMILY TRUST,300000020479545
Portsmouth City Council,PCC,Children's and Education Services,Asylum seekers,Children's Services and Education,Third Party Payments,Other establishments,03-Mar-22,6558749,231.28,SUPPLIER,THE CHILDRENS FAMILY TRUST,300000020479545
Portsmouth City Council,PCC,Children's and Education Services,Asylum seekers,Children's Services and Education,Third Party Payments,Other establishments,03-Mar-22,6558749,578.19,SUPPLIER,THE CHILDRENS FAMILY TRUST,300000020479545
Portsmouth City Council,PCC,Children's and Education Services,Safeguarding Children and Young Peoples Services,Children's Services and Education,Third Party Payments,Other establishments,04-Mar-22,6558936,103.43,SUPPLIER,COMPASS FOSTERING LIMITED,300000020462668
Portsmouth City Council,PCC,Children's and Education Services,Safeguarding Children and Young Peoples Services,Children's Services and Education,Third Party Payments,Other establishments,04-Mar-22,6558936,206.86,SUPPLIER,COMPASS FOSTERING LIMITED,300000020462668
Portsmouth City Council,PCC,Children's and Education Services,Safeguarding Children and Young Peoples Services,Children's Services and Education,Third Party Payments,Other establishments,04-Mar-22,6558936,724.01,SUPPLIER,COMPASS FOSTERING LIMITED,300000020462668
Portsmouth City Council,PCC,Children's and Education Services,Safeguarding Children and Young Peoples Services,Children's Services and Education,Third Party Payments,Other establishments,04-Mar-22,6558936,724.01,SUPPLIER,COMPASS FOSTERING LIMITED,300000020462668
Portsmouth City Council,PCC,Children's and Education Services,Safeguarding Children and Young Peoples Services,Children's Services and Education,Third Party Payments,Other establishments,04-Mar-22,6558936,724.01,SUPPLIER,COMPASS FOSTERING LIMITED,300000020462668
Portsmouth City Council,PCC,Children's and Education Services,Safeguarding Children and Young Peoples Services,Children's Services and Education,Third Party Payments,Other establishments,04-Mar-22,6558936,724.01,SUPPLIER,COMPASS FOSTERING LIMITED,300000020462668
Portsmouth City Council,PCC,Children's and Education Services,Family Support Services,Children's Services and Education,Third Party Payments,Other establishments,03-Mar-22,6558744,475.71,SUPPLIER,VIVID HOUSING LTD,300000020481282
Portsmouth City Council,PCC,Children's and Education Services,Family Support Services,Children's Services and Education,Third Party Payments,Other establishments,03-Mar-22,6558744,475.71,SUPPLIER,VIVID HOUSING LTD,300000020481282
Portsmouth City Council,PCC,Children's and Education Services,Safeguarding Children and Young Peoples Services,Children's Services and Education,Third Party Payments,Other establishments,28-Mar-22,6562773,-760.84,SUPPLIER,SAKURA CARE LIMITED,300000020469343
Portsmouth City Council,PCC,Children's and Education Services,Children Looked After,Children's Services and Education,Third Party Payments,Other establishments,04-Mar-22,6558877,-364.29,SUPPLIER,FIVE RIVERS CHILD CARE LIMITED,300000020461320
Portsmouth City Council,PCC,Children's and Education Services,Children Looked After,Children's Services and Education,Third Party Payments,Other establishments,04-Mar-22,6558877,242.86,SUPPLIER,FIVE RIVERS CHILD CARE LIMITED,300000020461320
Portsmouth City Council,PCC,Children's and Education Services,Children Looked After,Children's Services and Education,Third Party Payments,Other establishments,04-Mar-22,6558877,364.29,SUPPLIER,FIVE RIVERS CHILD CARE LIMITED,300000020461320
Portsmouth City Council,PCC,Children's and Education Services,Children Looked After,Children's Services and Education,Third Party Payments,Other establishments,04-Mar-22,6558877,485.71,SUPPLIER,FIVE RIVERS CHILD CARE LIMITED,300000020461320
Portsmouth City Council,PCC,Children's and Education Services,Children Looked After,Children's Services and Education,Third Party Payments,Other establishments,04-Mar-22,6558857,-0.24,SUPPLIER,BLUE SKY FOSTERING,300000020464936
Portsmouth City Council,PCC,Children's and Education Services,Children Looked After,Children's Services and Education,Third Party Payments,Other establishments,04-Mar-22,6558857,220.86,SUPPLIER,BLUE SKY FOSTERING,300000020464936
Portsmouth City Council,PCC,Children's and Education Services,Children Looked After,Children's Services and Education,Third Party Payments,Other establishments,04-Mar-22,6558857,552.14,SUPPLIER,BLUE SKY FOSTERING,300000020464936
Portsmouth City Council,PCC,Children's and Education Services,Children Looked After,Children's Services and Education,Third Party Payments,Other establishments,04-Mar-22,6558857,773,SUPPLIER,BLUE SKY FOSTERING,300000020464936
Portsmouth City Council,PCC,Children's and Education Services,Children Looked After,Children's Services and Education,Third Party Payments,Other establishments,04-Mar-22,6558857,773,SUPPLIER,BLUE SKY FOSTERING,300000020464936
Portsmouth City Council,PCC,Children's and Education Services,Children Looked After,Children's Services and Education,Third Party Payments,Other establishments,04-Mar-22,6558857,773,SUPPLIER,BLUE SKY FOSTERING,300000020464936
Portsmouth City Council,PCC,Children's and Education Services,Children Looked After,Children's Services and Education,Third Party Payments,Other establishments,04-Mar-22,6558857,-0.24,SUPPLIER,BLUE SKY FOSTERING,300000020464936
Portsmouth City Council,PCC,Children's and Education Services,Children Looked After,Children's Services and Education,Third Party Payments,Other establishments,04-Mar-22,6558857,220.86,SUPPLIER,BLUE SKY FOSTERING,300000020464936
Portsmouth City Council,PCC,Children's and Education Services,Children Looked After,Children's Services and Education,Third Party Payments,Other establishments,04-Mar-22,6558857,552.14,SUPPLIER,BLUE SKY FOSTERING,300000020464936
Portsmouth City Council,PCC,Children's and Education Services,Children Looked After,Children's Services and Education,Third Party Payments,Other establishments,04-Mar-22,6558857,773,SUPPLIER,BLUE SKY FOSTERING,300000020464936
Portsmouth City Council,PCC,Children's and Education Services,Children Looked After,Children's Services and Education,Third Party Payments,Other establishments,04-Mar-22,6558857,773,SUPPLIER,BLUE SKY FOSTERING,300000020464936
Portsmouth City Council,PCC,Children's and Education Services,Children Looked After,Children's Services and Education,Third Party Payments,Other establishments,04-Mar-22,6558857,773,SUPPLIER,BLUE SKY FOSTERING,300000020464936
Portsmouth City Council,PCC,Children's and Education Services,Safeguarding Children and Young Peoples Services,Children's Services and Education,Third Party Payments,Other establishments,04-Mar-22,6558935,57.79,SUPPLIER,COMPASS FOSTERING LIMITED,300000020462668
Portsmouth City Council,PCC,Children's and Education Services,Safeguarding Children and Young Peoples Services,Children's Services and Education,Third Party Payments,Other establishments,04-Mar-22,6558935,115.58,SUPPLIER,COMPASS FOSTERING LIMITED,300000020462668
Portsmouth City Council,PCC,Children's and Education Services,Safeguarding Children and Young Peoples Services,Children's Services and Education,Third Party Payments,Other establishments,04-Mar-22,6558935,404.53,SUPPLIER,COMPASS FOSTERING LIMITED,300000020462668
Portsmouth City Council,PCC,Children's and Education Services,Safeguarding Children and Young Peoples Services,Children's Services and Education,Third Party Payments,Other establishments,04-Mar-22,6558935,404.53,SUPPLIER,COMPASS FOSTERING LIMITED,300000020462668
Portsmouth City Council,PCC,Children's and Education Services,Safeguarding Children and Young Peoples Services,Children's Services and Education,Third Party Payments,Other establishments,04-Mar-22,6558935,404.53,SUPPLIER,COMPASS FOSTERING LIMITED,300000020462668
Portsmouth City Council,PCC,Children's and Education Services,Safeguarding Children and Young Peoples Services,Children's Services and Education,Third Party Payments,Other establishments,04-Mar-22,6558935,404.53,SUPPLIER,COMPASS FOSTERING LIMITED,300000020462668
Portsmouth City Council,PCC,Children's and Education Services,Children Looked After,Children's Services and Education,Third Party Payments,Other establishments,04-Mar-22,6558935,-0.04,SUPPLIER,COMPASS FOSTERING LIMITED,300000020462668
Portsmouth City Council,PCC,Children's and Education Services,Children Looked After,Children's Services and Education,Third Party Payments,Other establishments,04-Mar-22,6558935,122.71,SUPPLIER,COMPASS FOSTERING LIMITED,300000020462668
Portsmouth City Council,PCC,Children's and Education Services,Children Looked After,Children's Services and Education,Third Party Payments,Other establishments,04-Mar-22,6558935,245.42,SUPPLIER,COMPASS FOSTERING LIMITED,300000020462668
Portsmouth City Council,PCC,Children's and Education Services,Children Looked After,Children's Services and Education,Third Party Payments,Other establishments,04-Mar-22,6558935,858.98,SUPPLIER,COMPASS FOSTERING LIMITED,300000020462668
Portsmouth City Council,PCC,Children's and Education Services,Children Looked After,Children's Services and Education,Third Party Payments,Other establishments,04-Mar-22,6558935,858.98,SUPPLIER,COMPASS FOSTERING LIMITED,300000020462668
Portsmouth City Council,PCC,Children's and Education Services,Children Looked After,Children's Services and Education,Third Party Payments,Other establishments,04-Mar-22,6558935,858.98,SUPPLIER,COMPASS FOSTERING LIMITED,300000020462668
Portsmouth City Council,PCC,Children's and Education Services,Children Looked After,Children's Services and Education,Third Party Payments,Other establishments,04-Mar-22,6558935,858.98,SUPPLIER,COMPASS FOSTERING LIMITED,300000020462668
Portsmouth City Council,PCC,Children's and Education Services,Asylum seekers,Children's Services and Education,Third Party Payments,Other establishments,04-Mar-22,6558935,0.04,SUPPLIER,COMPASS FOSTERING LIMITED,300000020462668
Portsmouth City Council,PCC,Children's and Education Services,Asylum seekers,Children's Services and Education,Third Party Payments,Other establishments,04-Mar-22,6558935,117.71,SUPPLIER,COMPASS FOSTERING LIMITED,300000020462668
Portsmouth City Council,PCC,Children's and Education Services,Asylum seekers,Children's Services and Education,Third Party Payments,Other establishments,04-Mar-22,6558935,235.42,SUPPLIER,COMPASS FOSTERING LIMITED,300000020462668
Portsmouth City Council,PCC,Children's and Education Services,Asylum seekers,Children's Services and Education,Third Party Payments,Other establishments,04-Mar-22,6558935,823.96,SUPPLIER,COMPASS FOSTERING LIMITED,300000020462668
Portsmouth City Council,PCC,Children's and Education Services,Asylum seekers,Children's Services and Education,Third Party Payments,Other establishments,04-Mar-22,6558935,823.96,SUPPLIER,COMPASS FOSTERING LIMITED,300000020462668
Portsmouth City Council,PCC,Children's and Education Services,Asylum seekers,Children's Services and Education,Third Party Payments,Other establishments,04-Mar-22,6558935,823.96,SUPPLIER,COMPASS FOSTERING LIMITED,300000020462668
Portsmouth City Council,PCC,Children's and Education Services,Asylum seekers,Children's Services and Education,Third Party Payments,Other establishments,04-Mar-22,6558935,823.96,SUPPLIER,COMPASS FOSTERING LIMITED,300000020462668
Portsmouth City Council,PCC,Children's and Education Services,Children Looked After,Children's Services and Education,Third Party Payments,Other establishments,03-Mar-22,6558705,-2.75,SUPPLIER,HORIZON CARE AND EDUCATION GROUP LTD,300000020480667
Portsmouth City Council,PCC,Children's and Education Services,Children Looked After,Children's Services and Education,Third Party Payments,Other establishments,03-Mar-22,6558705,80.29,SUPPLIER,HORIZON CARE AND EDUCATION GROUP LTD,300000020480667
Portsmouth City Council,PCC,Children's and Education Services,Children Looked After,Children's Services and Education,Third Party Payments,Other establishments,03-Mar-22,6558705,160.58,SUPPLIER,HORIZON CARE AND EDUCATION GROUP LTD,300000020480667
Portsmouth City Council,PCC,Children's and Education Services,Children Looked After,Children's Services and Education,Third Party Payments,Other establishments,03-Mar-22,6558705,562.02,SUPPLIER,HORIZON CARE AND EDUCATION GROUP LTD,300000020480667
Portsmouth City Council,PCC,Children's and Education Services,Children Looked After,Children's Services and Education,Third Party Payments,Other establishments,03-Mar-22,6558705,562.02,SUPPLIER,HORIZON CARE AND EDUCATION GROUP LTD,300000020480667
Portsmouth City Council,PCC,Children's and Education Services,Children Looked After,Children's Services and Education,Third Party Payments,Other establishments,03-Mar-22,6558705,562.02,SUPPLIER,HORIZON CARE AND EDUCATION GROUP LTD,300000020480667
Portsmouth City Council,PCC,Children's and Education Services,Children Looked After,Children's Services and Education,Third Party Payments,Other establishments,03-Mar-22,6558705,562.02,SUPPLIER,HORIZON CARE AND EDUCATION GROUP LTD,300000020480667
Portsmouth City Council,PCC,Children's and Education Services,Children Looked After,Children's Services and Education,Third Party Payments,Other establishments,03-Mar-22,6558705,-12.71,SUPPLIER,HORIZON CARE AND EDUCATION GROUP LTD,300000020480667
Portsmouth City Council,PCC,Children's and Education Services,Children Looked After,Children's Services and Education,Third Party Payments,Other establishments,03-Mar-22,6558705,80.61,SUPPLIER,HORIZON CARE AND EDUCATION GROUP LTD,300000020480667
Portsmouth City Council,PCC,Children's and Education Services,Children Looked After,Children's Services and Education,Third Party Payments,Other establishments,03-Mar-22,6558705,161.22,SUPPLIER,HORIZON CARE AND EDUCATION GROUP LTD,300000020480667
Portsmouth City Council,PCC,Children's and Education Services,Children Looked After,Children's Services and Education,Third Party Payments,Other establishments,03-Mar-22,6558705,564.27,SUPPLIER,HORIZON CARE AND EDUCATION GROUP LTD,300000020480667
Portsmouth City Council,PCC,Children's and Education Services,Children Looked After,Children's Services and Education,Third Party Payments,Other establishments,03-Mar-22,6558705,564.27,SUPPLIER,HORIZON CARE AND EDUCATION GROUP LTD,300000020480667
Portsmouth City Council,PCC,Children's and Education Services,Children Looked After,Children's Services and Education,Third Party Payments,Other establishments,03-Mar-22,6558705,564.27,SUPPLIER,HORIZON CARE AND EDUCATION GROUP LTD,300000020480667
Portsmouth City Council,PCC,Children's and Education Services,Children Looked After,Children's Services and Education,Third Party Payments,Other establishments,03-Mar-22,6558705,564.27,SUPPLIER,HORIZON CARE AND EDUCATION GROUP LTD,300000020480667
Portsmouth City Council,PCC,Children's and Education Services,Children Looked After,Children's Services and Education,Third Party Payments,Other establishments,03-Mar-22,6558705,0.04,SUPPLIER,HORIZON CARE AND EDUCATION GROUP LTD,300000020480667
Portsmouth City Council,PCC,Children's and Education Services,Children Looked After,Children's Services and Education,Third Party Payments,Other establishments,03-Mar-22,6558705,99.43,SUPPLIER,HORIZON CARE AND EDUCATION GROUP LTD,300000020480667
Portsmouth City Council,PCC,Children's and Education Services,Children Looked After,Children's Services and Education,Third Party Payments,Other establishments,03-Mar-22,6558705,198.86,SUPPLIER,HORIZON CARE AND EDUCATION GROUP LTD,300000020480667
Portsmouth City Council,PCC,Children's and Education Services,Children Looked After,Children's Services and Education,Third Party Payments,Other establishments,03-Mar-22,6558705,696,SUPPLIER,HORIZON CARE AND EDUCATION GROUP LTD,300000020480667
Portsmouth City Council,PCC,Children's and Education Services,Children Looked After,Children's Services and Education,Third Party Payments,Other establishments,03-Mar-22,6558705,696,SUPPLIER,HORIZON CARE AND EDUCATION GROUP LTD,300000020480667
Portsmouth City Council,PCC,Children's and Education Services,Children Looked After,Children's Services and Education,Third Party Payments,Other establishments,03-Mar-22,6558705,696,SUPPLIER,HORIZON CARE AND EDUCATION GROUP LTD,300000020480667
Portsmouth City Council,PCC,Children's and Education Services,Children Looked After,Children's Services and Education,Third Party Payments,Other establishments,03-Mar-22,6558705,696,SUPPLIER,HORIZON CARE AND EDUCATION GROUP LTD,300000020480667
Portsmouth City Council,PCC,Children's and Education Services,Children Looked After,Children's Services and Education,Third Party Payments,Other establishments,03-Mar-22,6558705,0.04,SUPPLIER,HORIZON CARE AND EDUCATION GROUP LTD,300000020480667
Portsmouth City Council,PCC,Children's and Education Services,Children Looked After,Children's Services and Education,Third Party Payments,Other establishments,03-Mar-22,6558705,80.2,SUPPLIER,HORIZON CARE AND EDUCATION GROUP LTD,300000020480667
Portsmouth City Council,PCC,Children's and Education Services,Children Looked After,Children's Services and Education,Third Party Payments,Other establishments,03-Mar-22,6558705,160.4,SUPPLIER,HORIZON CARE AND EDUCATION GROUP LTD,300000020480667
Portsmouth City Council,PCC,Children's and Education Services,Children Looked After,Children's Services and Education,Third Party Payments,Other establishments,03-Mar-22,6558705,561.39,SUPPLIER,HORIZON CARE AND EDUCATION GROUP LTD,300000020480667
Portsmouth City Council,PCC,Children's and Education Services,Children Looked After,Children's Services and Education,Third Party Payments,Other establishments,03-Mar-22,6558705,561.39,SUPPLIER,HORIZON CARE AND EDUCATION GROUP LTD,300000020480667
Portsmouth City Council,PCC,Children's and Education Services,Children Looked After,Children's Services and Education,Third Party Payments,Other establishments,03-Mar-22,6558705,561.39,SUPPLIER,HORIZON CARE AND EDUCATION GROUP LTD,300000020480667
